Workbook

Sheet _com.sap.ip.bi.xl.hiddensheet (hidden)

Sheet Cover Page
B11: APPLE PARTS LIST
B14: This document and the information in it are provided in confidence, and may not be disclosed to any third party or used for any other purpose than was intended by the author.
B17: If you have any questions about the information contained in this document, please contact the Tech Data Apple team at Apple@techdata.com or you can call 727-539-7429 ext. 82038
B20: Please note: Authorization may differ between products. If you are unsure of your authorization please check with your Tech Data sales team, or contact the Tech Data Apple team
B23: Updated 12/12/2018
B24: APPLECARE PART NUMBERS
B25: Product Name | C25: Tech Data Part Number | D25: Apple Part Number | E25: Description | F25: Product Type
B26: Apple TV | C26: 11035823 | D26: S3166LL/A | E26: AppleCare Protection Plan for Apple TV | F26: Apple TV
B27: HomePod | C27: 13115194 | D27: S6446LL/A | E27: AppleCare+ for HomePod | F27: HomePod
B28: Series 3 | C28: 11867130 | D28: S5427LL/A | E28: AppleCare+ for Apple Watch Series 3 and Series 3 Nike+ | F28: Apple Watch
B29: Series 4 | C29: 13441597 | D29: S6822LL/A | E29: AppleCare+ for Apple Watch Series 4 and Series 4 Nike+ | F29: Apple Watch
B30: iMac 27" | C30: 12694940 | D30: S6048LL/A | E30: AppleCare+ for iMac - 3 Year | F30: iMac
B31: iMac 21.5" | C31: 12694940 | D31: S6048LL/A | E31: AppleCare+ for iMac - 3 Year | F31: iMac
B32: iMac Pro | C32: 12694940 | D32: S6048LL/A | E32: AppleCare+ for iMac - 3 Year | F32: iMac
B33: iPad Pro 12.9 | C33: 13162262 | D33: S6540LL/A | E33: AppleCare+ for iPad Pro | F33: iPad
B34: iPad Pro 11 | C34: 13162262 | D34: S6540LL/A | E34: AppleCare+ for iPad Pro | F34: iPad
B35: iPad Pro 10.5 | C35: 13162262 | D35: S6540LL/A | E35: AppleCare+ for iPad Pro | F35: iPad
B36: iPad | C36: 13162263 | D36: S6539LL/A | E36: AppleCare+ for iPad/iPad mini | F36: iPad
B37: iPad mini 4 | C37: 13162263 | D37: S6539LL/A | E37: AppleCare+ for iPad/iPad mini | F37: iPad
B38: iPod Touch | C38: 11213028 | D38: S5094LL/A | E38: AppleCare+ for iPod touch/classic - 2 year | F38: iPod Touch
B39: Mac mini | C39: 12694941 | D39: S6190LL/A | E39: AppleCare+ for Mac mini | F39: Mac Mini
B40: Mac Pro | C40: 12694945 | D40: S6194LL/A | E40: AppleCare+ for Mac Pro | F40: Mac Pro
B41: MBP 13" | C41: 12694944 | D41: S6201LL/A | E41: AppleCare+ for 13-inch MacBook Pro - 3 Year | F41: MacBook Pro 13"
B42: MBP 15" | C42: 12694942 | D42: S6054LL/A | E42: AppleCare+ for 15-inch MacBook Pro - 3 Year | F42: MacBook Pro 15"
B43: MacBook 12" | C43: 12694943 | D43: S6034LL/A | E43: AppleCare+ for 12-inch MacBook/13-inch MacBook Air | F43: MacBook/MacBook Air
B44: MB Air 13" | C44: 12694943 | D44: S6034LL/A | E44: AppleCare+ for 12-inch MacBook/13-inch MacBook Air | F44: MacBook/MacBook Air

Sheet Mac
D1: Stocked by Tech Data | E1: Model | F1: Touch Bar | G1: Color | H1: Display | I1: Processor | J1: Memory | K1: Storage
A7: *To view our current inventory levels, please visit shop.techdata.com
A15: *Red text denotes EOL product
A16: Tech Data Part Number | B16: Apple Part Number | C16: Description | D16: Stocked by Tech Data | E16: Model | F16: Touch Bar | G16: Color | H16: Display | I16: Processor | J16: Memory | K16: Storage | L16: Graphics | M16: Keyboard | N16: Mouse | O16: Ethernet (Mac mini only) | P16: AppleCare
A17: 12695088 | B17: MMQA2LL/A | C17: IMAC 21.5 I5/2.3/8GB/1TB/640-USA | D17: =IF(S17="APPLE CPU","Yes",IF(S17="APPLE CTO BOX","Yes","No")) -> Yes | E17: iMac 21.5" | F17: No | G17: N/A | H17: Non-Retina | I17: 2.3GHz dual-core Intel Core i5 | J17: 8GB 2133MHz | K17: 1TB Serial ATA Drive @ 5400 rpm | L17: Intel Iris Plus Graphics 640 | M17: Standard US | N17: Standard US | P17: =VLOOKUP(E17,'Cover Page'!$B$26:$F$44,2,FALSE) -> 12694940 | R17: =VLOOKUP(A17&"",'Material Master'!A:D,4,FALSE) -> # | S17: =VLOOKUP(A17&"",'Material Master'!A:E,5,FALSE) -> APPLE CPU
A18: 12695089 | B18: MNDY2LL/A | C18: IMAC 21.5 I5/3.0/8GB/1TB/555-USA | D18: =IF(S18="APPLE CPU","Yes",IF(S18="APPLE CTO BOX","Yes","No")) -> Yes | E18: iMac 21.5" | F18: No | G18: N/A | H18: Retina 4K | I18: 3.0GHz quad-core Intel Core i5 | J18: 8GB 2400MHz | K18: 1TB Serial ATA Drive @ 5400 rpm | L18: Radeon Pro 555 with 2GB memory | M18: Standard US | N18: Standard US | P18: =VLOOKUP(E18,'Cover Page'!$B$26:$F$44,2,FALSE) -> 12694940 | R18: =VLOOKUP(A18&"",'Material Master'!A:D,4,FALSE) -> # | S18: =VLOOKUP(A18&"",'Material Master'!A:E,5,FALSE) -> APPLE CPU
A19: 12695090 | B19: MNE02LL/A | C19: IMAC 21.5 I5/3.4/8GB/1TB FD/560-USA | D19: Yes | E19: iMac 21.5" | F19: No | G19: N/A | H19: Retina 4K | I19: 3.4GHz quad-core Intel Core i5 | J19: 8GB 2400MHz | K19: 1TB Fusion Drive | L19: Radeon Pro 560 with 4GB video memory | M19: Standard US | N19: Standard US | P19: =VLOOKUP(E19,'Cover Page'!$B$26:$F$44,2,FALSE) -> 12694940 | R19: =VLOOKUP(A19&"",'Material Master'!A:D,4,FALSE) -> # | S19: =VLOOKUP(A19&"",'Material Master'!A:E,5,FALSE) -> APPLE CPU
A20: 12705780 | B20: Z0TK00057 | C20: BTO IMAC 21.5 I5/3.0 16GB 1TB 555 | D20: Yes | E20: iMac 21.5" | F20: No | G20: N/A | H20: Retina 4K | I20: 3.0GHz quad-core Intel Core i5 | J20: 16GB 2400MHz | K20: 1TB Serial ATA Drive @ 5400 rpm | L20: Radeon Pro 555 with 2GB video memory | M20: Standard US | N20: Standard US | P20: =VLOOKUP(E20,'Cover Page'!$B$26:$F$44,2,FALSE) -> 12694940 | R20: =VLOOKUP(A20&"",'Material Master'!A:D,4,FALSE) -> # | S20: =VLOOKUP(A20&"",'Material Master'!A:E,5,FALSE) -> APPLE CTO BOX
A21: 12842793 | B21: Z0TH0003Z | C21: BTO IMAC 21.5 I5/2.3 16GB 1TB 640 | D21: Yes | E21: iMac 21.5" | F21: No | G21: N/A | H21: Retina 4K | I21: 2.3GHz dual-core Intel Core i5 | J21: 16GB 2133MHz | K21: 1TB Serial ATA Drive @ 5400 rpm | L21: Intel Iris Plus Graphics 640 | M21: Standard US | N21: Standard US | P21: =VLOOKUP(E21,'Cover Page'!$B$26:$F$44,2,FALSE) -> 12694940 | R21: =VLOOKUP(A21&"",'Material Master'!A:D,4,FALSE) -> # | S21: =VLOOKUP(A21&"",'Material Master'!A:E,5,FALSE) -> APPLE CTO BOX
A22: 12695091 | B22: MNE92LL/A | C22: IMAC 27 I5/3.4/8GB/1TB FD/570-USA | D22: Yes | E22: iMac 27" | F22: No | G22: N/A | H22: Retina 5K | I22: 3.4GHz quad-core Intel Core i5 | J22: 8GB 2400MHz | K22: 1TB Fusion Drive | L22: Radeon Pro 570 with 4GB video memory | M22: Standard US | N22: Standard US | P22: =VLOOKUP(E22,'Cover Page'!$B$26:$F$44,2,FALSE) -> 12694940 | R22: =VLOOKUP(A22&"",'Material Master'!A:D,4,FALSE) -> # | S22: =VLOOKUP(A22&"",'Material Master'!A:E,5,FALSE) -> APPLE CPU
A23: 12695092 | B23: MNEA2LL/A | C23: IMAC 27 I5/3.5/8GB/1TB FD/575-USA | D23: Yes | E23: iMac 27" | F23: No | G23: N/A | H23: Retina 5K | I23: 3.5GHz quad-core Intel Core i5 | J23: 8GB 2400MHz | K23: 1TB Fusion Drive | L23: Radeon Pro 575 with 4GB video memory | M23: Standard US | N23: Standard US | P23: =VLOOKUP(E23,'Cover Page'!$B$26:$F$44,2,FALSE) -> 12694940 | R23: =VLOOKUP(A23&"",'Material Master'!A:D,4,FALSE) -> # | S23: =VLOOKUP(A23&"",'Material Master'!A:E,5,FALSE) -> APPLE CPU
A24: 12695093 | B24: MNED2LL/A | C24: IMAC 27 I5/3.8/8GB/2TB FD/580-USA | D24: Yes | E24: iMac 27" | F24: No | G24: N/A | H24: Retina 5K | I24: 3.8GHz quad-core Intel Core i5 | J24: 8GB 2400MHz | K24: 2TB Fusion Drive | L24: Radeon Pro 580 with 8GB video memory | M24: Standard US | N24: Standard US | P24: =VLOOKUP(E24,'Cover Page'!$B$26:$F$44,2,FALSE) -> 12694940 | R24: =VLOOKUP(A24&"",'Material Master'!A:D,4,FALSE) -> # | S24: =VLOOKUP(A24&"",'Material Master'!A:E,5,FALSE) -> APPLE CPU
A25: 12706075 | B25: Z0TP0005J | C25: BTO IMAC 27 I5/3.4 16GB 1TB 570 | D25: Yes | E25: iMac 27" | F25: No | G25: N/A | H25: Retina 5K | I25: 3.4GHz quad-core Intel Core i5 | J25: 16GB 2400MHz | K25: 1TB Fusion Drive | L25: Radeon Pro 570 with 4GB video memory | M25: Standard US | N25: Standard US | P25: =VLOOKUP(E25,'Cover Page'!$B$26:$F$44,2,FALSE) -> 12694940 | R25: =VLOOKUP(A25&"",'Material Master'!A:D,4,FALSE) -> # | S25: =VLOOKUP(A25&"",'Material Master'!A:E,5,FALSE) -> APPLE CTO BOX
A26: 13075632 | B26: Z0TR006UM | C26: BTO IMAC 27 I7/4.2 32GB 1TB 580 | D26: Yes | E26: iMac 27" | F26: No | G26: N/A | H26: Retina 5K | I26: 4.2GHz Quad-core Intel Core i7 | J26: 32GB 2400MHz | K26: 1TB Flash Storage | L26: Radeon Pro 580 with 8GB video memory | M26: Standard US | N26: Standard US | P26: =VLOOKUP(E26,'Cover Page'!$B$26:$F$44,2,FALSE) -> 12694940 | R26: =VLOOKUP(A26&"",'Material Master'!A:D,4,FALSE) -> # | S26: =VLOOKUP(A26&"",'Material Master'!A:E,5,FALSE) -> APPLE CTO BOX
A27: 12706071 | B27: Z0TR00043 | C27: BTO IMAC 27 I7/4.2 16GB 3TB 580 | D27: Yes | E27: iMac 27" | F27: No | G27: N/A | H27: Retina 5K | I27: 4.2GHz Quad-core Intel Core i7 | J27: 16GB 2400MHz | K27: 3TB Fusion Drive | L27: Radeon Pro 580 with 8GB video memory | M27: Standard US | N27: Standard US | P27: =VLOOKUP(E27,'Cover Page'!$B$26:$F$44,2,FALSE) -> 12694940 | R27: =VLOOKUP(A27&"",'Material Master'!A:D,4,FALSE) -> # | S27: =VLOOKUP(A27&"",'Material Master'!A:E,5,FALSE) -> APPLE CTO BOX
A28: 12706074 | B28: Z0TR0004Q | C28: BTO IMAC 27 I7/4.2 8GB 3TB 580 | D28: Yes | E28: iMac 27" | F28: No | G28: N/A | H28: Retina 5K | I28: 4.2GHz Quad-core Intel Core i7 | J28: 8GB 2400MHz | K28: 3TB Fusion Drive | L28: Radeon Pro 580 with 8GB video memory | M28: Standard US | N28: Standard US | P28: =VLOOKUP(E28,'Cover Page'!$B$26:$F$44,2,FALSE) -> 12694940 | R28: =VLOOKUP(A28&"",'Material Master'!A:D,4,FALSE) -> # | S28: =VLOOKUP(A28&"",'Material Master'!A:E,5,FALSE) -> APPLE CTO BOX
A29: 13107999 | B29: Z0TR006Y5 | C29: BTO IMAC 27 I7/4.2 8GB 1TB 580 | D29: Yes | E29: iMac 27" | F29: No | G29: N/A | H29: Retina 5K | I29: 4.2GHz Quad-core Intel Core i7 | J29: 8GB 2400MHz | K29: 1TB Flash Storage | L29: Radeon Pro 580 with 8GB video memory | M29: Standard US | N29: Standard US | P29: =VLOOKUP(E29,'Cover Page'!$B$26:$F$44,2,FALSE) -> 12694940 | R29: =VLOOKUP(A29&"",'Material Master'!A:D,4,FALSE) -> # | S29: =VLOOKUP(A29&"",'Material Master'!A:E,5,FALSE) -> APPLE CTO BOX
A30: 13133082 | B30: Z0TR006V8 | C30: BTO IMAC 27 I5/3.8 16GB 512GB 580 | D30: Yes | E30: iMac 27" | F30: No | G30: N/A | H30: Retina 5K | I30: 3.8GHz quad-core Intel Core i5 | J30: 16GB 2400MHz | K30: 512GB SSD Storage | L30: Radeon Pro 580 with 8GB video memory | M30: Standard US | N30: Standard US | P30: =VLOOKUP(E30,'Cover Page'!$B$26:$F$44,2,FALSE) -> 12694940 | R30: =VLOOKUP(A30&"",'Material Master'!A:D,4,FALSE) -> # | S30: =VLOOKUP(A30&"",'Material Master'!A:E,5,FALSE) -> APPLE CTO BOX
A31: 13041069 | B31: MQ2Y2LL/A | C31: IMAC PRO 27 X/3.2 8C 32GB 1TB VG56 USA | D31: Yes | E31: iMac Pro | F31: No | G31: Space Gray | H31: Retina 5K | I31: 3.2GHz 8-core Intel Xeon W | J31: 32GB 2666MHz | K31: 1TB Flash Storage | L31: Radeon Pro Vega 56 with 8GB HBM2 memory | M31: Space Gray Magic Keyboard with Numeric Keypad | N31: Space Gray Magic Mouse 2 | P31: =VLOOKUP(E31,'Cover Page'!$B$26:$F$44,2,FALSE) -> 12694940 | R31: =VLOOKUP(A31&"",'Material Master'!A:D,4,FALSE) -> # | S31: =VLOOKUP(A31&"",'Material Master'!A:E,5,FALSE) -> APPLE CPU
A32: 13113951 | B32: Z0UR00085 | C32: BTO IMAC PRO 27 X/3.0 10C 64GB 1TB VG64 | D32: Yes | E32: iMac Pro | F32: No | G32: Space Gray | H32: Retina 5K | I32: 3.0GHz 10-core Intel Xeon W | J32: 64GB 2666MHz | K32: 1TB Flash Storage | L32: Radeon Pro Vega 64 with 16GB HBM2 memory | M32: Space Gray Magic Keyboard with Numeric Keypad | N32: Space Gray Magic Mouse 2 | P32: =VLOOKUP(E32,'Cover Page'!$B$26:$F$44,2,FALSE) -> 12694940 | R32: =VLOOKUP(A32&"",'Material Master'!A:D,4,FALSE) -> # | S32: =VLOOKUP(A32&"",'Material Master'!A:E,5,FALSE) -> APPLE CTO BOX
A33: 13478931 | B33: MRTR2LL/A | C33: MAC MINI I3/3.6GHZ QC INTEL 128GB | D33: Yes | E33: Mac Mini | F33: No | G33: Space Gray | H33: N/A | I33: 3.6GHz quad‑core 8th‑generation Intel Core i3 | J33: 8GB 2666MHz | K33: 128GB SSD | L33: Intel UHD Graphics 630 | M33: N/A | N33: N/A | P33: =VLOOKUP(E33,'Cover Page'!$B$26:$F$44,2,FALSE) -> 12694941 | R33: =VLOOKUP(A33&"",'Material Master'!A:D,4,FALSE) -> # | S33: =VLOOKUP(A33&"",'Material Master'!A:E,5,FALSE) -> APPLE CPU
A34: 13478932 | B34: MRTT2LL/A | C34: MAC MINI I5/3.0GHZ 6 CORE INTEL 256GB | D34: Yes | E34: Mac mini | F34: No | G34: Space Gray | H34: N/A | I34: 3.0GHz 6‑core 8th‑generation Intel Core i5 | J34: 8GB 2666MHz | K34: 256GB SSD | L34: Intel UHD Graphics 630 | M34: N/A | N34: N/A | O34: Gigabit Ethernet | P34: =VLOOKUP(E34,'Cover Page'!$B$26:$F$44,2,FALSE) -> 12694941 | R34: =VLOOKUP(A34&"",'Material Master'!A:D,4,FALSE) -> # | S34: =VLOOKUP(A34&"",'Material Master'!A:E,5,FALSE) -> APPLE CPU
A35: 11587809 | B35: MGEQ2LL/A | C35: MAC MINI I5/2.8 8GB 1TB FUSION | D35: Yes | E35: Mac mini | F35: No | G35: N/A | H35: N/A | I35: 2.8GHz Dual-Core Intel Core i5 | J35: 8GB 1600MHz | K35: 1TB Fusion Drive | L35: Intel Iris Graphics | M35: N/A | N35: N/A | P35: =VLOOKUP(E35,'Cover Page'!$B$26:$F$44,2,FALSE) -> 12694941 | R35: =VLOOKUP(A35&"",'Material Master'!A:D,4,FALSE) -> 01 | S35: =VLOOKUP(A35&"",'Material Master'!A:E,5,FALSE) -> APPLE CPU
A36: 11754958 | B36: Z0R8?ABTMM2 | C36: BTO MAC MINI I7/3.0 16GB 1TB FUSION | D36: Yes | E36: Mac mini | F36: No | G36: N/A | H36: N/A | I36: 3.0GHz Dual-Core Intel Core i7 | J36: 16GB 1600MHz | K36: 1TB Fusion Drive | L36: Intel Iris Graphics | M36: N/A | N36: N/A | P36: =VLOOKUP(E36,'Cover Page'!$B$26:$F$44,2,FALSE) -> 12694941 | R36: =VLOOKUP(A36&"",'Material Master'!A:D,4,FALSE) -> 01 | S36: =VLOOKUP(A36&"",'Material Master'!A:E,5,FALSE) -> APPLE CTO BOX
A37: 13480432 | B37: Z0W10003X | C37: BTO MAC MINI I3/3.6GHZ/8GB/256GB SPGR | D37: No | E37: Mac mini | F37: No | G37: Space Gray | H37: N/A | I37: 3.6GHz quad‑core 8th‑generation Intel Core i3 | J37: 8GB 2666MHz | K37: 256GB SSD | L37: Intel UHD Graphics 630 | M37: N/A | N37: N/A | O37: Gigabit Ethernet | P37: =VLOOKUP(E37,'Cover Page'!$B$26:$F$44,2,FALSE) -> 12694941 | R37: =VLOOKUP(A37&"",'Material Master'!A:D,4,FALSE) -> # | S37: =VLOOKUP(A37&"",'Material Master'!A:E,5,FALSE) -> APPLE CTO SYSTEMS
A38: 13480433 | B38: Z0W100050 | C38: BTO MAC MINI I3/3.6GHZ/8GB/512GB SPGR | D38: No | E38: Mac mini | F38: No | G38: Space Gray | H38: N/A | I38: 3.6GHz quad‑core 8th‑generation Intel Core i3 | J38: 8GB 2666MHz | K38: 512GB SSD | L38: Intel UHD Graphics 630 | M38: N/A | N38: N/A | O38: Gigabit Ethernet | P38: =VLOOKUP(E38,'Cover Page'!$B$26:$F$44,2,FALSE) -> 12694941 | R38: =VLOOKUP(A38&"",'Material Master'!A:D,4,FALSE) -> # | S38: =VLOOKUP(A38&"",'Material Master'!A:E,5,FALSE) -> APPLE CTO SYSTEMS
A39: 13480434 | B39: Z0W10009U | C39: BTO MAC MINI I3/3.6GHZ/8GB/1TB SPGR | D39: No | E39: Mac mini | F39: No | G39: Space Gray | H39: N/A | I39: 3.6GHz quad‑core 8th‑generation Intel Core i3 | J39: 8GB 2666MHz | K39: 1TB SSD | L39: Intel UHD Graphics 630 | M39: N/A | N39: N/A | O39: Gigabit Ethernet | P39: =VLOOKUP(E39,'Cover Page'!$B$26:$F$44,2,FALSE) -> 12694941 | R39: =VLOOKUP(A39&"",'Material Master'!A:D,4,FALSE) -> # | S39: =VLOOKUP(A39&"",'Material Master'!A:E,5,FALSE) -> APPLE CTO SYSTEMS
A40: 13480435 | B40: Z0W10000E | C40: BTO MAC MINI I3/3.6GHZ/8GB/2TB SPGR | D40: No | E40: Mac mini | F40: No | G40: Space Gray | H40: N/A | I40: 3.6GHz quad‑core 8th‑generation Intel Core i3 | J40: 8GB 2666MHz | K40: 2TB SSD | L40: Intel UHD Graphics 630 | M40: N/A | N40: N/A | O40: Gigabit Ethernet | P40: =VLOOKUP(E40,'Cover Page'!$B$26:$F$44,2,FALSE) -> 12694941 | R40: =VLOOKUP(A40&"",'Material Master'!A:D,4,FALSE) -> # | S40: =VLOOKUP(A40&"",'Material Master'!A:E,5,FALSE) -> APPLE CTO SYSTEMS
A41: 13480436 | B41: Z0W10000F | C41: BTO MAC MINI I3/3.6GHZ/8GB/128GB 10GE SPGR | D41: No | E41: Mac mini | F41: No | G41: Space Gray | H41: N/A | I41: 3.6GHz quad‑core 8th‑generation Intel Core i3 | J41: 8GB 2666MHz | K41: 128GB SSD | L41: Intel UHD Graphics 630 | M41: N/A | N41: N/A | O41: 10 Gigabit Ethernet | P41: =VLOOKUP(E41,'Cover Page'!$B$26:$F$44,2,FALSE) -> 12694941 | R41: =VLOOKUP(A41&"",'Material Master'!A:D,4,FALSE) -> # | S41: =VLOOKUP(A41&"",'Material Master'!A:E,5,FALSE) -> APPLE CTO SYSTEMS
A42: 13480437 | B42: Z0W10000G | C42: BTO MAC MINI I3/3.6GHZ/8GB/256GB 10GE SPGR | D42: No | E42: Mac mini | F42: No | G42: Space Gray | H42: N/A | I42: 3.6GHz quad‑core 8th‑generation Intel Core i3 | J42: 8GB 2666MHz | K42: 256GB SSD | L42: Intel UHD Graphics 630 | M42: N/A | N42: N/A | O42: 10 Gigabit Ethernet | P42: =VLOOKUP(E42,'Cover Page'!$B$26:$F$44,2,FALSE) -> 12694941 | R42: =VLOOKUP(A42&"",'Material Master'!A:D,4,FALSE) -> # | S42: =VLOOKUP(A42&"",'Material Master'!A:E,5,FALSE) -> APPLE CTO SYSTEMS
A43: 13480438 | B43: Z0W10000H | C43: BTO MAC MINI I3/3.6GHZ/8GB/512GB 10GE SPGR | D43: No | E43: Mac mini | F43: No | G43: Space Gray | H43: N/A | I43: 3.6GHz quad‑core 8th‑generation Intel Core i3 | J43: 8GB 2666MHz | K43: 512GB SSD | L43: Intel UHD Graphics 630 | M43: N/A | N43: N/A | O43: 10 Gigabit Ethernet | P43: =VLOOKUP(E43,'Cover Page'!$B$26:$F$44,2,FALSE) -> 12694941 | R43: =VLOOKUP(A43&"",'Material Master'!A:D,4,FALSE) -> # | S43: =VLOOKUP(A43&"",'Material Master'!A:E,5,FALSE) -> APPLE CTO SYSTEMS
A44: 13480439 | B44: Z0W10000J | C44: BTO MAC MINI I3/3.6GHZ/8GB/1TB 10GE SPGR | D44: No | E44: Mac mini | F44: No | G44: Space Gray | H44: N/A | I44: 3.6GHz quad‑core 8th‑generation Intel Core i3 | J44: 8GB 2666MHz | K44: 1TB SSD | L44: Intel UHD Graphics 630 | M44: N/A | N44: N/A | O44: 10 Gigabit Ethernet | P44: =VLOOKUP(E44,'Cover Page'!$B$26:$F$44,2,FALSE) -> 12694941 | R44: =VLOOKUP(A44&"",'Material Master'!A:D,4,FALSE) -> # | S44: =VLOOKUP(A44&"",'Material Master'!A:E,5,FALSE) -> APPLE CTO SYSTEMS
A45: 13480440 | B45: Z0W10000K | C45: BTO MAC MINI I3/3.6GHZ/8GB/2TB 10GE SPGR | D45: No | E45: Mac mini | F45: No | G45: Space Gray | H45: N/A | I45: 3.6GHz quad‑core 8th‑generation Intel Core i3 | J45: 8GB 2666MHz | K45: 2TB SSD | L45: Intel UHD Graphics 630 | M45: N/A | N45: N/A | O45: 10 Gigabit Ethernet | P45: =VLOOKUP(E45,'Cover Page'!$B$26:$F$44,2,FALSE) -> 12694941 | R45: =VLOOKUP(A45&"",'Material Master'!A:D,4,FALSE) -> # | S45: =VLOOKUP(A45&"",'Material Master'!A:E,5,FALSE) -> APPLE CTO SYSTEMS
A46: 13480441 | B46: Z0W10004P | C46: BTO MAC MINI I3/3.6GHZ/16GB/128GB SPGR | D46: No | E46: Mac mini | F46: No | G46: Space Gray | H46: N/A | I46: 3.6GHz quad‑core 8th‑generation Intel Core i3 | J46: 16GB 2666MHz | K46: 128GB SSD | L46: Intel UHD Graphics 630 | M46: N/A | N46: N/A | O46: Gigabit Ethernet | P46: =VLOOKUP(E46,'Cover Page'!$B$26:$F$44,2,FALSE) -> 12694941 | R46: =VLOOKUP(A46&"",'Material Master'!A:D,4,FALSE) -> # | S46: =VLOOKUP(A46&"",'Material Master'!A:E,5,FALSE) -> APPLE CTO SYSTEMS
A47: 13480373 | B47: Z0W10003W | C47: BTO MAC MINI I3/3.6GHZ/16GB/256GB SPGR | D47: No | E47: Mac mini | F47: No | G47: Space Gray | H47: N/A | I47: 3.6GHz quad‑core 8th‑generation Intel Core i3 | J47: 16GB 2666MHz | K47: 256GB SSD | L47: Intel UHD Graphics 630 | M47: N/A | N47: N/A | O47: Gigabit Ethernet | P47: =VLOOKUP(E47,'Cover Page'!$B$26:$F$44,2,FALSE) -> 12694941 | R47: =VLOOKUP(A47&"",'Material Master'!A:D,4,FALSE) -> # | S47: =VLOOKUP(A47&"",'Material Master'!A:E,5,FALSE) -> APPLE CTO SYSTEMS
A48: 13480374 | B48: Z0W100064 | C48: BTO MAC MINI I3/3.6GHZ/16GB/512GB SPGR | D48: No | E48: Mac mini | F48: No | G48: Space Gray | H48: N/A | I48: 3.6GHz quad‑core 8th‑generation Intel Core i3 | J48: 16GB 2666MHz | K48: 512GB SSD | L48: Intel UHD Graphics 630 | M48: N/A | N48: N/A | O48: Gigabit Ethernet | P48: =VLOOKUP(E48,'Cover Page'!$B$26:$F$44,2,FALSE) -> 12694941 | R48: =VLOOKUP(A48&"",'Material Master'!A:D,4,FALSE) -> # | S48: =VLOOKUP(A48&"",'Material Master'!A:E,5,FALSE) -> APPLE CTO SYSTEMS
A49: 13480375 | B49: Z0W10006G | C49: BTO MAC MINI I3/3.6GHZ/16GB/1TB SPGR | D49: No | E49: Mac mini | F49: No | G49: Space Gray | H49: N/A | I49: 3.6GHz quad‑core 8th‑generation Intel Core i3 | J49: 16GB 2666MHz | K49: 1TB SSD | L49: Intel UHD Graphics 630 | M49: N/A | N49: N/A | O49: Gigabit Ethernet | P49: =VLOOKUP(E49,'Cover Page'!$B$26:$F$44,2,FALSE) -> 12694941 | R49: =VLOOKUP(A49&"",'Material Master'!A:D,4,FALSE) -> # | S49: =VLOOKUP(A49&"",'Material Master'!A:E,5,FALSE) -> APPLE CTO SYSTEMS
A50: 13480376 | B50: Z0W1000A0 | C50: BTO MAC MINI I3/3.6GHZ/16GB/2TB SPGR | D50: No | E50: Mac mini | F50: No | G50: Space Gray | H50: N/A | I50: 3.6GHz quad‑core 8th‑generation Intel Core i3 | J50: 16GB 2666MHz | K50: 2TB SSD | L50: Intel UHD Graphics 630 | M50: N/A | N50: N/A | O50: Gigabit Ethernet | P50: =VLOOKUP(E50,'Cover Page'!$B$26:$F$44,2,FALSE) -> 12694941 | R50: =VLOOKUP(A50&"",'Material Master'!A:D,4,FALSE) -> # | S50: =VLOOKUP(A50&"",'Material Master'!A:E,5,FALSE) -> APPLE CTO SYSTEMS
A51: 13480377 | B51: Z0W10005Y | C51: BTO MAC MINI I3/3.6GHZ/16GB/128GB 10GE SPGR | D51: No | E51: Mac mini | F51: No | G51: Space Gray | H51: N/A | I51: 3.6GHz quad‑core 8th‑generation Intel Core i3 | J51: 16GB 2666MHz | K51: 128GB SSD | L51: Intel UHD Graphics 630 | M51: N/A | N51: N/A | O51: 10 Gigabit Ethernet | P51: =VLOOKUP(E51,'Cover Page'!$B$26:$F$44,2,FALSE) -> 12694941 | R51: =VLOOKUP(A51&"",'Material Master'!A:D,4,FALSE) -> # | S51: =VLOOKUP(A51&"",'Material Master'!A:E,5,FALSE) -> APPLE CTO SYSTEMS
A52: 13480378 | B52: Z0W10006P | C52: BTO MAC MINI I3/3.6GHZ/16GB/256GB 10GE SPGR | D52: No | E52: Mac mini | F52: No | G52: Space Gray | H52: N/A | I52: 3.6GHz quad‑core 8th‑generation Intel Core i3 | J52: 16GB 2666MHz | K52: 256GB SSD | L52: Intel UHD Graphics 630 | M52: N/A | N52: N/A | O52: 10 Gigabit Ethernet | P52: =VLOOKUP(E52,'Cover Page'!$B$26:$F$44,2,FALSE) -> 12694941 | R52: =VLOOKUP(A52&"",'Material Master'!A:D,4,FALSE) -> # | S52: =VLOOKUP(A52&"",'Material Master'!A:E,5,FALSE) -> APPLE CTO SYSTEMS
A53: 13480379 | B53: Z0W10006U | C53: BTO MAC MINI I3/3.6GHZ/16GB/512GB 10GE SPGR | D53: No | E53: Mac mini | F53: No | G53: Space Gray | H53: N/A | I53: 3.6GHz quad‑core 8th‑generation Intel Core i3 | J53: 16GB 2666MHz | K53: 512GB SSD | L53: Intel UHD Graphics 630 | M53: N/A | N53: N/A | O53: 10 Gigabit Ethernet | P53: =VLOOKUP(E53,'Cover Page'!$B$26:$F$44,2,FALSE) -> 12694941 | R53: =VLOOKUP(A53&"",'Material Master'!A:D,4,FALSE) -> # | S53: =VLOOKUP(A53&"",'Material Master'!A:E,5,FALSE) -> APPLE CTO SYSTEMS
A54: 13480380 | B54: Z0W10008B | C54: BTO MAC MINI I3/3.6GHZ/16GB/1TB 10GE SPGR | D54: No | E54: Mac mini | F54: No | G54: Space Gray | H54: N/A | I54: 3.6GHz quad‑core 8th‑generation Intel Core i3 | J54: 16GB 2666MHz | K54: 1TB SSD | L54: Intel UHD Graphics 630 | M54: N/A | N54: N/A | O54: 10 Gigabit Ethernet | P54: =VLOOKUP(E54,'Cover Page'!$B$26:$F$44,2,FALSE) -> 12694941 | R54: =VLOOKUP(A54&"",'Material Master'!A:D,4,FALSE) -> # | S54: =VLOOKUP(A54&"",'Material Master'!A:E,5,FALSE) -> APPLE CTO SYSTEMS
A55: 13480381 | B55: Z0W100089 | C55: BTO MAC MINI I3/3.6GHZ/16GB/2TB 10GE SPGR | D55: No | E55: Mac mini | F55: No | G55: Space Gray | H55: N/A | I55: 3.6GHz quad‑core 8th‑generation Intel Core i3 | J55: 16GB 2666MHz | K55: 2TB SSD | L55: Intel UHD Graphics 630 | M55: N/A | N55: N/A | O55: 10 Gigabit Ethernet | P55: =VLOOKUP(E55,'Cover Page'!$B$26:$F$44,2,FALSE) -> 12694941 | R55: =VLOOKUP(A55&"",'Material Master'!A:D,4,FALSE) -> # | S55: =VLOOKUP(A55&"",'Material Master'!A:E,5,FALSE) -> APPLE CTO SYSTEMS
A56: 13480382 | B56: Z0W10003Z | C56: BTO MAC MINI I3/3.6GHZ/32GB/128GB SPGR | D56: No | E56: Mac mini | F56: No | G56: Space Gray | H56: N/A | I56: 3.6GHz quad‑core 8th‑generation Intel Core i3 | J56: 32GB 2666MHz | K56: 128GB SSD | L56: Intel UHD Graphics 630 | M56: N/A | N56: N/A | O56: Gigabit Ethernet | P56: =VLOOKUP(E56,'Cover Page'!$B$26:$F$44,2,FALSE) -> 12694941 | R56: =VLOOKUP(A56&"",'Material Master'!A:D,4,FALSE) -> # | S56: =VLOOKUP(A56&"",'Material Master'!A:E,5,FALSE) -> APPLE CTO SYSTEMS
A57: 13480423 | B57: Z0W10003V | C57: BTO MAC MINI I3/3.6GHZ/32GB/256GB SPGR | D57: No | E57: Mac mini | F57: No | G57: Space Gray | H57: N/A | I57: 3.6GHz quad‑core 8th‑generation Intel Core i3 | J57: 32GB 2666MHz | K57: 256GB SSD | L57: Intel UHD Graphics 630 | M57: N/A | N57: N/A | O57: Gigabit Ethernet | P57: =VLOOKUP(E57,'Cover Page'!$B$26:$F$44,2,FALSE) -> 12694941 | R57: =VLOOKUP(A57&"",'Material Master'!A:D,4,FALSE) -> # | S57: =VLOOKUP(A57&"",'Material Master'!A:E,5,FALSE) -> APPLE CTO SYSTEMS
A58: 13480424 | B58: Z0W10000C | C58: BTO MAC MINI I3/3.6GHZ/32GB/512GB SPGR | D58: No | E58: Mac mini | F58: No | G58: Space Gray | H58: N/A | I58: 3.6GHz quad‑core 8th‑generation Intel Core i3 | J58: 32GB 2666MHz | K58: 512GB SSD | L58: Intel UHD Graphics 630 | M58: N/A | N58: N/A | O58: Gigabit Ethernet | P58: =VLOOKUP(E58,'Cover Page'!$B$26:$F$44,2,FALSE) -> 12694941 | R58: =VLOOKUP(A58&"",'Material Master'!A:D,4,FALSE) -> # | S58: =VLOOKUP(A58&"",'Material Master'!A:E,5,FALSE) -> APPLE CTO SYSTEMS
A59: 13480425 | B59: Z0W10007M | C59: BTO MAC MINI I3/3.6GHZ/32GB/1TB SPGR | D59: No | E59: Mac mini | F59: No | G59: Space Gray | H59: N/A | I59: 3.6GHz quad‑core 8th‑generation Intel Core i3 | J59: 32GB 2666MHz | K59: 1TB SSD | L59: Intel UHD Graphics 630 | M59: N/A | N59: N/A | O59: Gigabit Ethernet | P59: =VLOOKUP(E59,'Cover Page'!$B$26:$F$44,2,FALSE) -> 12694941 | R59: =VLOOKUP(A59&"",'Material Master'!A:D,4,FALSE) -> # | S59: =VLOOKUP(A59&"",'Material Master'!A:E,5,FALSE) -> APPLE CTO SYSTEMS
A60: 13480426 | B60: Z0W10007K | C60: BTO MAC MINI I3/3.6GHZ/32GB/2TB SPGR | D60: No | E60: Mac mini | F60: No | G60: Space Gray | H60: N/A | I60: 3.6GHz quad‑core 8th‑generation Intel Core i3 | J60: 32GB 2666MHz | K60: 2TB SSD | L60: Intel UHD Graphics 630 | M60: N/A | N60: N/A | O60: Gigabit Ethernet | P60: =VLOOKUP(E60,'Cover Page'!$B$26:$F$44,2,FALSE) -> 12694941 | R60: =VLOOKUP(A60&"",'Material Master'!A:D,4,FALSE) -> # | S60: =VLOOKUP(A60&"",'Material Master'!A:E,5,FALSE) -> APPLE CTO SYSTEMS
A61: 13480427 | B61: Z0W10003Y | C61: BTO MAC MINI I3/3.6GHZ/32GB/128GB 10GE SPGR | D61: No | E61: Mac mini | F61: No | G61: Space Gray | H61: N/A | I61: 3.6GHz quad‑core 8th‑generation Intel Core i3 | J61: 32GB 2666MHz | K61: 128GB SSD | L61: Intel UHD Graphics 630 | M61: N/A | N61: N/A | O61: 10 Gigabit Ethernet | P61: =VLOOKUP(E61,'Cover Page'!$B$26:$F$44,2,FALSE) -> 12694941 | R61: =VLOOKUP(A61&"",'Material Master'!A:D,4,FALSE) -> # | S61: =VLOOKUP(A61&"",'Material Master'!A:E,5,FALSE) -> APPLE CTO SYSTEMS
A62: 13480428 | B62: Z0W10003R | C62: BTO MAC MINI I3/3.6GHZ/32GB/256GB 10GE SPGR | D62: No | E62: Mac mini | F62: No | G62: Space Gray | H62: N/A | I62: 3.6GHz quad‑core 8th‑generation Intel Core i3 | J62: 32GB 2666MHz | K62: 256GB SSD | L62: Intel UHD Graphics 630 | M62: N/A | N62: N/A | O62: 10 Gigabit Ethernet | P62: =VLOOKUP(E62,'Cover Page'!$B$26:$F$44,2,FALSE) -> 12694941 | R62: =VLOOKUP(A62&"",'Material Master'!A:D,4,FALSE) -> # | S62: =VLOOKUP(A62&"",'Material Master'!A:E,5,FALSE) -> APPLE CTO SYSTEMS
A63: 13480429 | B63: Z0W1000EJ | C63: BTO MAC MINI I3/3.6GHZ/32GB/512GB 10GE SPGR | D63: No | E63: Mac mini | F63: No | G63: Space Gray | H63: N/A | I63: 3.6GHz quad‑core 8th‑generation Intel Core i3 | J63: 32GB 2666MHz | K63: 512GB SSD | L63: Intel UHD Graphics 630 | M63: N/A | N63: N/A | O63: 10 Gigabit Ethernet | P63: =VLOOKUP(E63,'Cover Page'!$B$26:$F$44,2,FALSE) -> 12694941 | R63: =VLOOKUP(A63&"",'Material Master'!A:D,4,FALSE) -> # | S63: =VLOOKUP(A63&"",'Material Master'!A:E,5,FALSE) -> APPLE CTO SYSTEMS
A64: 13480430 | B64: Z0W100098 | C64: BTO MAC MINI I3/3.6GHZ/32GB/1TB 10GE SPGR | D64: No | E64: Mac mini | F64: No | G64: Space Gray | H64: N/A | I64: 3.6GHz quad‑core 8th‑generation Intel Core i3 | J64: 32GB 2666MHz | K64: 1TB SSD | L64: Intel UHD Graphics 630 | M64: N/A | N64: N/A | O64: 10 Gigabit Ethernet | P64: =VLOOKUP(E64,'Cover Page'!$B$26:$F$44,2,FALSE) -> 12694941 | R64: =VLOOKUP(A64&"",'Material Master'!A:D,4,FALSE) -> # | S64: =VLOOKUP(A64&"",'Material Master'!A:E,5,FALSE) -> APPLE CTO SYSTEMS
A65: 13480431 | B65: Z0W10008L | C65: BTO MAC MINI I3/3.6GHZ/32GB/2TB 10GE SPGR | D65: No | E65: Mac mini | F65: No | G65: Space Gray | H65: N/A | I65: 3.6GHz quad‑core 8th‑generation Intel Core i3 | J65: 32GB 2666MHz | K65: 2TB SSD | L65: Intel UHD Graphics 630 | M65: N/A | N65: N/A | O65: 10 Gigabit Ethernet | P65: =VLOOKUP(E65,'Cover Page'!$B$26:$F$44,2,FALSE) -> 12694941 | R65: =VLOOKUP(A65&"",'Material Master'!A:D,4,FALSE) -> # | S65: =VLOOKUP(A65&"",'Material Master'!A:E,5,FALSE) -> APPLE CTO SYSTEMS
A66: 13480351 | B66: Z0W10003Q | C66: BTO MAC MINI I3/3.6GHZ/64GB/128GB SPGR | D66: No | E66: Mac mini | F66: No | G66: Space Gray | H66: N/A | I66: 3.6GHz quad‑core 8th‑generation Intel Core i3 | J66: 64GB 2666MHz | K66: 128GB SSD | L66: Intel UHD Graphics 630 | M66: N/A | N66: N/A | O66: Gigabit Ethernet | P66: =VLOOKUP(E66,'Cover Page'!$B$26:$F$44,2,FALSE) -> 12694941 | R66: =VLOOKUP(A66&"",'Material Master'!A:D,4,FALSE) -> # | S66: =VLOOKUP(A66&"",'Material Master'!A:E,5,FALSE) -> APPLE CTO SYSTEMS
A67: 13480352 | B67: Z0W1000K7 | C67: BTO MAC MINI I3/3.6GHZ/64GB/256GB SPGR | D67: No | E67: Mac mini | F67: No | G67: Space Gray | H67: N/A | I67: 3.6GHz quad‑core 8th‑generation Intel Core i3 | J67: 64GB 2666MHz | K67: 256GB SSD | L67: Intel UHD Graphics 630 | M67: N/A | N67: N/A | O67: Gigabit Ethernet | P67: =VLOOKUP(E67,'Cover Page'!$B$26:$F$44,2,FALSE) -> 12694941 | R67: =VLOOKUP(A67&"",'Material Master'!A:D,4,FALSE) -> # | S67: =VLOOKUP(A67&"",'Material Master'!A:E,5,FALSE) -> APPLE CTO SYSTEMS
A68: 13480353 | B68: Z0W1000K8 | C68: BTO MAC MINI I3/3.6GHZ/64GB/512GB SPGR | D68: No | E68: Mac mini | F68: No | G68: Space Gray | H68: N/A | I68: 3.6GHz quad‑core 8th‑generation Intel Core i3 | J68: 64GB 2666MHz | K68: 512GB SSD | L68: Intel UHD Graphics 630 | M68: N/A | N68: N/A | O68: Gigabit Ethernet | P68: =VLOOKUP(E68,'Cover Page'!$B$26:$F$44,2,FALSE) -> 12694941 | R68: =VLOOKUP(A68&"",'Material Master'!A:D,4,FALSE) -> # | S68: =VLOOKUP(A68&"",'Material Master'!A:E,5,FALSE) -> APPLE CTO SYSTEMS
A69: 13480354 | B69: Z0W10000D | C69: BTO MAC MINI I3/3.6GHZ/64GB/1TB SPGR | D69: No | E69: Mac mini | F69: No | G69: Space Gray | H69: N/A | I69: 3.6GHz quad‑core 8th‑generation Intel Core i3 | J69: 64GB 2666MHz | K69: 1TB SSD | L69: Intel UHD Graphics 630 | M69: N/A | N69: N/A | O69: Gigabit Ethernet | P69: =VLOOKUP(E69,'Cover Page'!$B$26:$F$44,2,FALSE) -> 12694941 | R69: =VLOOKUP(A69&"",'Material Master'!A:D,4,FALSE) -> # | S69: =VLOOKUP(A69&"",'Material Master'!A:E,5,FALSE) -> APPLE CTO SYSTEMS
A70: 13480355 | B70: Z0W10008S | C70: BTO MAC MINI I3/3.6GHZ/64GB/2TB SPGR | D70: No | E70: Mac mini | F70: No | G70: Space Gray | H70: N/A | I70: 3.6GHz quad‑core 8th‑generation Intel Core i3 | J70: 64GB 2666MHz | K70: 2TB SSD | L70: Intel UHD Graphics 630 | M70: N/A | N70: N/A | O70: Gigabit Ethernet | P70: =VLOOKUP(E70,'Cover Page'!$B$26:$F$44,2,FALSE) -> 12694941 | R70: =VLOOKUP(A70&"",'Material Master'!A:D,4,FALSE) -> # | S70: =VLOOKUP(A70&"",'Material Master'!A:E,5,FALSE) -> APPLE CTO SYSTEMS
A71: 13480356 | B71: Z0W1000K9 | C71: BTO MAC MINI I3/3.6GHZ/64GB/128GB 10GE SPGR | D71: No | E71: Mac mini | F71: No | G71: Space Gray | H71: N/A | I71: 3.6GHz quad‑core 8th‑generation Intel Core i3 | J71: 64GB 2666MHz | K71: 128GB SSD | L71: Intel UHD Graphics 630 | M71: N/A | N71: N/A | O71: 10 Gigabit Ethernet | P71: =VLOOKUP(E71,'Cover Page'!$B$26:$F$44,2,FALSE) -> 12694941 | R71: =VLOOKUP(A71&"",'Material Master'!A:D,4,FALSE) -> # | S71: =VLOOKUP(A71&"",'Material Master'!A:E,5,FALSE) -> APPLE CTO SYSTEMS
A72: 13480357 | B72: Z0W1000KA | C72: BTO MAC MINI I3/3.6GHZ/64GB/256GB 10GE SPGR | D72: No | E72: Mac mini | F72: No | G72: Space Gray | H72: N/A | I72: 3.6GHz quad‑core 8th‑generation Intel Core i3 | J72: 64GB 2666MHz | K72: 256GB SSD | L72: Intel UHD Graphics 630 | M72: N/A | N72: N/A | O72: 10 Gigabit Ethernet | P72: =VLOOKUP(E72,'Cover Page'!$B$26:$F$44,2,FALSE) -> 12694941 | R72: =VLOOKUP(A72&"",'Material Master'!A:D,4,FALSE) -> # | S72: =VLOOKUP(A72&"",'Material Master'!A:E,5,FALSE) -> APPLE CTO SYSTEMS
A73: 13480358 | B73: Z0W1000KB | C73: BTO MAC MINI I3/3.6GHZ/64GB/512GB 10GE SPGR | D73: No | E73: Mac mini | F73: No | G73: Space Gray | H73: N/A | I73: 3.6GHz quad‑core 8th‑generation Intel Core i3 | J73: 64GB 2666MHz | K73: 512GB SSD | L73: Intel UHD Graphics 630 | M73: N/A | N73: N/A | O73: 10 Gigabit Ethernet | P73: =VLOOKUP(E73,'Cover Page'!$B$26:$F$44,2,FALSE) -> 12694941 | R73: =VLOOKUP(A73&"",'Material Master'!A:D,4,FALSE) -> # | S73: =VLOOKUP(A73&"",'Material Master'!A:E,5,FALSE) -> APPLE CTO SYSTEMS
A74: 13480359 | B74: Z0W1000KC | C74: BTO MAC MINI I3/3.6GHZ/64GB/1TB 10GE SPGR | D74: No | E74: Mac mini | F74: No | G74: Space Gray | H74: N/A | I74: 3.6GHz quad‑core 8th‑generation Intel Core i3 | J74: 64GB 2666MHz | K74: 1TB SSD | L74: Intel UHD Graphics 630 | M74: N/A | N74: N/A | O74: 10 Gigabit Ethernet | P74: =VLOOKUP(E74,'Cover Page'!$B$26:$F$44,2,FALSE) -> 12694941 | R74: =VLOOKUP(A74&"",'Material Master'!A:D,4,FALSE) -> # | S74: =VLOOKUP(A74&"",'Material Master'!A:E,5,FALSE) -> APPLE CTO SYSTEMS
A75: 13480360 | B75: Z0W1000KD | C75: BTO MAC MINI I3/3.6GHZ/64GB/2TB 10GE SPGR | D75: No | E75: Mac mini | F75: No | G75: Space Gray | H75: N/A | I75: 3.6GHz quad‑core 8th‑generation Intel Core i3 | J75: 64GB 2666MHz | K75: 2TB SSD | L75: Intel UHD Graphics 630 | M75: N/A | N75: N/A | O75: 10 Gigabit Ethernet | P75: =VLOOKUP(E75,'Cover Page'!$B$26:$F$44,2,FALSE) -> 12694941 | R75: =VLOOKUP(A75&"",'Material Master'!A:D,4,FALSE) -> # | S75: =VLOOKUP(A75&"",'Material Master'!A:E,5,FALSE) -> APPLE CTO SYSTEMS
A76: 13480331 | B76: Z0W10003P | C76: BTO MAC MINI I7/3.2GHZ/8GB/128GB SPGR | D76: No | E76: Mac mini | F76: No | G76: Space Gray | H76: N/A | I76: 3.2GHz 6‑core 8th‑generation Intel Core i7 | J76: 8GB 2666MHz | K76: 128GB SSD | L76: Intel UHD Graphics 630 | M76: N/A | N76: N/A | O76: Gigabit Ethernet | P76: =VLOOKUP(E76,'Cover Page'!$B$26:$F$44,2,FALSE) -> 12694941 | R76: =VLOOKUP(A76&"",'Material Master'!A:D,4,FALSE) -> # | S76: =VLOOKUP(A76&"",'Material Master'!A:E,5,FALSE) -> APPLE CTO SYSTEMS
A77: 13480332 | B77: Z0W10004G | C77: BTO MAC MINI I7/3.2GHZ/8GB/128GB 10GE SPGR | D77: No | E77: Mac mini | F77: No | G77: Space Gray | H77: N/A | I77: 3.2GHz 6‑core 8th‑generation Intel Core i7 | J77: 8GB 2666MHz | K77: 128GB SSD | L77: Intel UHD Graphics 630 | M77: N/A | N77: N/A | O77: 10 Gigabit Ethernet | P77: =VLOOKUP(E77,'Cover Page'!$B$26:$F$44,2,FALSE) -> 12694941 | R77: =VLOOKUP(A77&"",'Material Master'!A:D,4,FALSE) -> # | S77: =VLOOKUP(A77&"",'Material Master'!A:E,5,FALSE) -> APPLE CTO SYSTEMS
A78: 13480333 | B78: Z0W10003N | C78: BTO MAC MINI I7/3.2GHZ/16GB/128GB SPGR | D78: No | E78: Mac mini | F78: No | G78: Space Gray | H78: N/A | I78: 3.2GHz 6‑core 8th‑generation Intel Core i7 | J78: 16GB 2666MHz | K78: 128GB SSD | L78: Intel UHD Graphics 630 | M78: N/A | N78: N/A | O78: Gigabit Ethernet | P78: =VLOOKUP(E78,'Cover Page'!$B$26:$F$44,2,FALSE) -> 12694941 | R78: =VLOOKUP(A78&"",'Material Master'!A:D,4,FALSE) -> # | S78: =VLOOKUP(A78&"",'Material Master'!A:E,5,FALSE) -> APPLE CTO SYSTEMS
A79: 13480334 | B79: Z0W10007B | C79: BTO MAC MINI I7/3.2GHZ/16GB/128GB 10GE SPGR | D79: No | E79: Mac mini | F79: No | G79: Space Gray | H79: N/A | I79: 3.2GHz 6‑core 8th‑generation Intel Core i7 | J79: 16GB 2666MHz | K79: 128GB SSD | L79: Intel UHD Graphics 630 | M79: N/A | N79: N/A | O79: 10 Gigabit Ethernet | P79: =VLOOKUP(E79,'Cover Page'!$B$26:$F$44,2,FALSE) -> 12694941 | R79: =VLOOKUP(A79&"",'Material Master'!A:D,4,FALSE) -> # | S79: =VLOOKUP(A79&"",'Material Master'!A:E,5,FALSE) -> APPLE CTO SYSTEMS
A80: 13480335 | B80: Z0W10006C | C80: BTO MAC MINI I7/3.2GHZ/32GB/128GB SPGR | D80: No | E80: Mac mini | F80: No | G80: Space Gray | H80: N/A | I80: 3.2GHz 6‑core 8th‑generation Intel Core i7 | J80: 32GB 2666MHz | K80: 128GB SSD | L80: Intel UHD Graphics 630 | M80: N/A | N80: N/A | O80: Gigabit Ethernet | P80: =VLOOKUP(E80,'Cover Page'!$B$26:$F$44,2,FALSE) -> 12694941 | R80: =VLOOKUP(A80&"",'Material Master'!A:D,4,FALSE) -> # | S80: =VLOOKUP(A80&"",'Material Master'!A:E,5,FALSE) -> APPLE CTO SYSTEMS
A81: 13480336 | B81: Z0W10009H | C81: BTO MAC MINI I7/3.2GHZ/32GB/128GB 10GE SPGR | D81: No | E81: Mac mini | F81: No | G81: Space Gray | H81: N/A | I81: 3.2GHz 6‑core 8th‑generation Intel Core i7 | J81: 32GB 2666MHz | K81: 128GB SSD | L81: Intel UHD Graphics 630 | M81: N/A | N81: N/A | O81: 10 Gigabit Ethernet | P81: =VLOOKUP(E81,'Cover Page'!$B$26:$F$44,2,FALSE) -> 12694941 | R81: =VLOOKUP(A81&"",'Material Master'!A:D,4,FALSE) -> # | S81: =VLOOKUP(A81&"",'Material Master'!A:E,5,FALSE) -> APPLE CTO SYSTEMS
A82: 13480337 | B82: Z0W1000FW | C82: BTO MAC MINI I7/3.2GHZ/64GB/128GB SPGR | D82: =IF(S82="APPLE CPU","Yes",IF(S82="APPLE CTO BOX","Yes","No")) -> No | E82: Mac mini | F82: No | G82: Space Gray | H82: N/A | I82: 3.2GHz 6‑core 8th‑generation Intel Core i7 | J82: 64GB 2666MHz | K82: 128GB SSD | L82: Intel UHD Graphics 630 | M82: N/A | N82: N/A | O82: Gigabit Ethernet | P82: =VLOOKUP(E82,'Cover Page'!$B$26:$F$44,2,FALSE) -> 12694941 | R82: =VLOOKUP(A82&"",'Material Master'!A:D,4,FALSE) -> # | S82: =VLOOKUP(A82&"",'Material Master'!A:E,5,FALSE) -> APPLE CTO SYSTEMS
A83: 13480338 | B83: Z0W1000AB | C83: BTO MAC MINI I7/3.2GHZ/64GB/128GB 10GE SPGR | D83: No | E83: Mac mini | F83: No | G83: Space Gray | H83: N/A | I83: 3.2GHz 6‑core 8th‑generation Intel Core i7 | J83: 64GB 2666MHz | K83: 128GB SSD | L83: Intel UHD Graphics 630 | M83: N/A | N83: N/A | O83: 10 Gigabit Ethernet | P83: =VLOOKUP(E83,'Cover Page'!$B$26:$F$44,2,FALSE) -> 12694941 | R83: =VLOOKUP(A83&"",'Material Master'!A:D,4,FALSE) -> # | S83: =VLOOKUP(A83&"",'Material Master'!A:E,5,FALSE) -> APPLE CTO SYSTEMS
A84: 13480339 | B84: Z0W20006G | C84: BTO MAC MINI I5/3.0GHZ/8GB/512GB SPGR | D84: No | E84: Mac mini | F84: No | G84: Space Gray | H84: N/A | I84: 3.0GHz 6‑core 8th‑generation Intel Core i5 | J84: 8GB 2666MHz | K84: 512GB SSD | L84: Intel UHD Graphics 630 | M84: N/A | N84: N/A | O84: Gigabit Ethernet | P84: =VLOOKUP(E84,'Cover Page'!$B$26:$F$44,2,FALSE) -> 12694941 | R84: =VLOOKUP(A84&"",'Material Master'!A:D,4,FALSE) -> # | S84: =VLOOKUP(A84&"",'Material Master'!A:E,5,FALSE) -> APPLE CTO SYSTEMS
A85: 13480340 | B85: Z0W20009V | C85: BTO MAC MINI I5/3.0GHZ/8GB/1TB SPGR | D85: No | E85: Mac mini | F85: No | G85: Space Gray | H85: N/A | I85: 3.0GHz 6‑core 8th‑generation Intel Core i5 | J85: 8GB 2666MHz | K85: 1TB SSD | L85: Intel UHD Graphics 630 | M85: N/A | N85: N/A | O85: Gigabit Ethernet | P85: =VLOOKUP(E85,'Cover Page'!$B$26:$F$44,2,FALSE) -> 12694941 | R85: =VLOOKUP(A85&"",'Material Master'!A:D,4,FALSE) -> # | S85: =VLOOKUP(A85&"",'Material Master'!A:E,5,FALSE) -> APPLE CTO SYSTEMS
A86: 13480393 | B86: Z0W2000GH | C86: BTO MAC MINI I5/3.0GHZ/8GB/2TB SPGR | D86: No | E86: Mac mini | F86: No | G86: Space Gray | H86: N/A | I86: 3.0GHz 6‑core 8th‑generation Intel Core i5 | J86: 8GB 2666MHz | K86: 2TB SSD | L86: Intel UHD Graphics 630 | M86: N/A | N86: N/A | O86: Gigabit Ethernet | P86: =VLOOKUP(E86,'Cover Page'!$B$26:$F$44,2,FALSE) -> 12694941 | R86: =VLOOKUP(A86&"",'Material Master'!A:D,4,FALSE) -> # | S86: =VLOOKUP(A86&"",'Material Master'!A:E,5,FALSE) -> APPLE CTO SYSTEMS
A87: 13480394 | B87: Z0W20000D | C87: BTO MAC MINI I5/3.0GHZ/8GB/256GB 10GE SPGR | D87: No | E87: Mac mini | F87: No | G87: Space Gray | H87: N/A | I87: 3.0GHz 6‑core 8th‑generation Intel Core i5 | J87: 8GB 2666MHz | K87: 256GB SSD | L87: Intel UHD Graphics 630 | M87: N/A | N87: N/A | O87: 10 Gigabit Ethernet | P87: =VLOOKUP(E87,'Cover Page'!$B$26:$F$44,2,FALSE) -> 12694941 | R87: =VLOOKUP(A87&"",'Material Master'!A:D,4,FALSE) -> # | S87: =VLOOKUP(A87&"",'Material Master'!A:E,5,FALSE) -> APPLE CTO SYSTEMS
A88: 13480395 | B88: Z0W20000E | C88: BTO MAC MINI I5/3.0GHZ/8GB/512GB 10GE SPGR | D88: No | E88: Mac mini | F88: No | G88: Space Gray | H88: N/A | I88: 3.0GHz 6‑core 8th‑generation Intel Core i5 | J88: 8GB 2666MHz | K88: 512GB SSD | L88: Intel UHD Graphics 630 | M88: N/A | N88: N/A | O88: 10 Gigabit Ethernet | P88: =VLOOKUP(E88,'Cover Page'!$B$26:$F$44,2,FALSE) -> 12694941 | R88: =VLOOKUP(A88&"",'Material Master'!A:D,4,FALSE) -> # | S88: =VLOOKUP(A88&"",'Material Master'!A:E,5,FALSE) -> APPLE CTO SYSTEMS
A89: 13480396 | B89: Z0W20000F | C89: BTO MAC MINI I5/3.0GHZ/8GB/1TB 10GE SPGR | D89: No | E89: Mac mini | F89: No | G89: Space Gray | H89: N/A | I89: 3.0GHz 6‑core 8th‑generation Intel Core i5 | J89: 8GB 2666MHz | K89: 1TB SSD | L89: Intel UHD Graphics 630 | M89: N/A | N89: N/A | O89: 10 Gigabit Ethernet | P89: =VLOOKUP(E89,'Cover Page'!$B$26:$F$44,2,FALSE) -> 12694941 | R89: =VLOOKUP(A89&"",'Material Master'!A:D,4,FALSE) -> # | S89: =VLOOKUP(A89&"",'Material Master'!A:E,5,FALSE) -> APPLE CTO SYSTEMS
A90: 13480397 | B90: Z0W20000G | C90: BTO MAC MINI I5/3.0GHZ/8GB/2TB 10GE SPGR | D90: No | E90: Mac mini | F90: No | G90: Space Gray | H90: N/A | I90: 3.0GHz 6‑core 8th‑generation Intel Core i5 | J90: 8GB 2666MHz | K90: 2TB SSD | L90: Intel UHD Graphics 630 | M90: N/A | N90: N/A | O90: 10 Gigabit Ethernet | P90: =VLOOKUP(E90,'Cover Page'!$B$26:$F$44,2,FALSE) -> 12694941 | R90: =VLOOKUP(A90&"",'Material Master'!A:D,4,FALSE) -> # | S90: =VLOOKUP(A90&"",'Material Master'!A:E,5,FALSE) -> APPLE CTO SYSTEMS
A91: 13480398 | B91: Z0W20003V | C91: BTO MAC MINI I5/3.0GHZ/16GB/256GB SPGR | D91: No | E91: Mac mini | F91: No | G91: Space Gray | H91: N/A | I91: 3.0GHz 6‑core 8th‑generation Intel Core i5 | J91: 16GB 2666MHz | K91: 256GB SSD | L91: Intel UHD Graphics 630 | M91: N/A | N91: N/A | O91: Gigabit Ethernet | P91: =VLOOKUP(E91,'Cover Page'!$B$26:$F$44,2,FALSE) -> 12694941 | R91: =VLOOKUP(A91&"",'Material Master'!A:D,4,FALSE) -> # | S91: =VLOOKUP(A91&"",'Material Master'!A:E,5,FALSE) -> APPLE CTO SYSTEMS
A92: 13480399 | B92: Z0W20005R | C92: BTO MAC MINI I5/3.0GHZ/16GB/512GB SPGR | D92: No | E92: Mac mini | F92: No | G92: Space Gray | H92: N/A | I92: 3.0GHz 6‑core 8th‑generation Intel Core i5 | J92: 16GB 2666MHz | K92: 512GB SSD | L92: Intel UHD Graphics 630 | M92: N/A | N92: N/A | O92: Gigabit Ethernet | P92: =VLOOKUP(E92,'Cover Page'!$B$26:$F$44,2,FALSE) -> 12694941 | R92: =VLOOKUP(A92&"",'Material Master'!A:D,4,FALSE) -> # | S92: =VLOOKUP(A92&"",'Material Master'!A:E,5,FALSE) -> APPLE CTO SYSTEMS
A93: 13480400 | B93: Z0W20007X | C93: BTO MAC MINI I5/3.0GHZ/16GB/1TB SPGR | D93: No | E93: Mac mini | F93: No | G93: Space Gray | H93: N/A | I93: 3.0GHz 6‑core 8th‑generation Intel Core i5 | J93: 16GB 2666MHz | K93: 1TB SSD | L93: Intel UHD Graphics 630 | M93: N/A | N93: N/A | O93: Gigabit Ethernet | P93: =VLOOKUP(E93,'Cover Page'!$B$26:$F$44,2,FALSE) -> 12694941 | R93: =VLOOKUP(A93&"",'Material Master'!A:D,4,FALSE) -> # | S93: =VLOOKUP(A93&"",'Material Master'!A:E,5,FALSE) -> APPLE CTO SYSTEMS
A94: 13480401 | B94: Z0W2000AS | C94: BTO MAC MINI I5/3.0GHZ/16GB/2TB SPGR | D94: No | E94: Mac mini | F94: No | G94: Space Gray | H94: N/A | I94: 3.0GHz 6‑core 8th‑generation Intel Core i5 | J94: 16GB 2666MHz | K94: 2TB SSD | L94: Intel UHD Graphics 630 | M94: N/A | N94: N/A | O94: Gigabit Ethernet | P94: =VLOOKUP(E94,'Cover Page'!$B$26:$F$44,2,FALSE) -> 12694941 | R94: =VLOOKUP(A94&"",'Material Master'!A:D,4,FALSE) -> # | S94: =VLOOKUP(A94&"",'Material Master'!A:E,5,FALSE) -> APPLE CTO SYSTEMS
A95: 13480402 | B95: Z0W200091 | C95: BTO MAC MINI I5/3.0GHZ/16GB/256GB 10GE SPGR | D95: No | E95: Mac mini | F95: No | G95: Space Gray | H95: N/A | I95: 3.0GHz 6‑core 8th‑generation Intel Core i5 | J95: 16GB 2666MHz | K95: 256GB SSD | L95: Intel UHD Graphics 630 | M95: N/A | N95: N/A | O95: 10 Gigabit Ethernet | P95: =VLOOKUP(E95,'Cover Page'!$B$26:$F$44,2,FALSE) -> 12694941 | R95: =VLOOKUP(A95&"",'Material Master'!A:D,4,FALSE) -> # | S95: =VLOOKUP(A95&"",'Material Master'!A:E,5,FALSE) -> APPLE CTO SYSTEMS
A96: 13480413 | B96: Z0W20008A | C96: BTO MAC MINI I5/3.0GHZ/16GB/512GB 10GE SPGR | D96: No | E96: Mac mini | F96: No | G96: Space Gray | H96: N/A | I96: 3.0GHz 6‑core 8th‑generation Intel Core i5 | J96: 16GB 2666MHz | K96: 512GB SSD | L96: Intel UHD Graphics 630 | M96: N/A | N96: N/A | O96: 10 Gigabit Ethernet | P96: =VLOOKUP(E96,'Cover Page'!$B$26:$F$44,2,FALSE) -> 12694941 | R96: =VLOOKUP(A96&"",'Material Master'!A:D,4,FALSE) -> # | S96: =VLOOKUP(A96&"",'Material Master'!A:E,5,FALSE) -> APPLE CTO SYSTEMS
A97: 13480414 | B97: Z0W200070 | C97: BTO MAC MINI I5/3.0GHZ/16GB/1TB 10GE SPGR | D97: No | E97: Mac mini | F97: No | G97: Space Gray | H97: N/A | I97: 3.0GHz 6‑core 8th‑generation Intel Core i5 | J97: 16GB 2666MHz | K97: 1TB SSD | L97: Intel UHD Graphics 630 | M97: N/A | N97: N/A | O97: 10 Gigabit Ethernet | P97: =VLOOKUP(E97,'Cover Page'!$B$26:$F$44,2,FALSE) -> 12694941 | R97: =VLOOKUP(A97&"",'Material Master'!A:D,4,FALSE) -> # | S97: =VLOOKUP(A97&"",'Material Master'!A:E,5,FALSE) -> APPLE CTO SYSTEMS
A98: 13480415 | B98: Z0W2000GJ | C98: BTO MAC MINI I5/3.0GHZ/16GB/2TB 10GE SPGR | D98: No | E98: Mac mini | F98: No | G98: Space Gray | H98: N/A | I98: 3.0GHz 6‑core 8th‑generation Intel Core i5 | J98: 16GB 2666MHz | K98: 2TB SSD | L98: Intel UHD Graphics 630 | M98: N/A | N98: N/A | O98: 10 Gigabit Ethernet | P98: =VLOOKUP(E98,'Cover Page'!$B$26:$F$44,2,FALSE) -> 12694941 | R98: =VLOOKUP(A98&"",'Material Master'!A:D,4,FALSE) -> # | S98: =VLOOKUP(A98&"",'Material Master'!A:E,5,FALSE) -> APPLE CTO SYSTEMS
A99: 13480416 | B99: Z0W20003W | C99: BTO MAC MINI I5/3.0GHZ/32GB/256GB SPGR | D99: No | E99: Mac mini | F99: No | G99: Space Gray | H99: N/A | I99: 3.0GHz 6‑core 8th‑generation Intel Core i5 | J99: 32GB 2666MHz | K99: 256GB SSD | L99: Intel UHD Graphics 630 | M99: N/A | N99: N/A | O99: Gigabit Ethernet | P99: =VLOOKUP(E99,'Cover Page'!$B$26:$F$44,2,FALSE) -> 12694941 | R99: =VLOOKUP(A99&"",'Material Master'!A:D,4,FALSE) -> # | S99: =VLOOKUP(A99&"",'Material Master'!A:E,5,FALSE) -> APPLE CTO SYSTEMS
A100: 13480417 | B100: Z0W200051 | C100: BTO MAC MINI I5/3.0GHZ/32GB/512GB SPGR | D100: No | E100: Mac mini | F100: No | G100: Space Gray | H100: N/A | I100: 3.0GHz 6‑core 8th‑generation Intel Core i5 | J100: 32GB 2666MHz | K100: 512GB SSD | L100: Intel UHD Graphics 630 | M100: N/A | N100: N/A | O100: Gigabit Ethernet | P100: =VLOOKUP(E100,'Cover Page'!$B$26:$F$44,2,FALSE) -> 12694941 | R100: =VLOOKUP(A100&"",'Material Master'!A:D,4,FALSE) -> # | S100: =VLOOKUP(A100&"",'Material Master'!A:E,5,FALSE) -> APPLE CTO SYSTEMS
A101: 13480418 | B101: Z0W200007 | C101: BTO MAC MINI I5/3.0GHZ/32GB/1TB SPGR | D101: No | E101: Mac mini | F101: No | G101: Space Gray | H101: N/A | I101: 3.0GHz 6‑core 8th‑generation Intel Core i5 | J101: 32GB 2666MHz | K101: 1TB SSD | L101: Intel UHD Graphics 630 | M101: N/A | N101: N/A | O101: Gigabit Ethernet | P101: =VLOOKUP(E101,'Cover Page'!$B$26:$F$44,2,FALSE) -> 12694941 | R101: =VLOOKUP(A101&"",'Material Master'!A:D,4,FALSE) -> # | S101: =VLOOKUP(A101&"",'Material Master'!A:E,5,FALSE) -> APPLE CTO SYSTEMS
A102: 13480419 | B102: Z0W2000B1 | C102: BTO MAC MINI I5/3.0GHZ/32GB/2TB SPGR | D102: No | E102: Mac mini | F102: No | G102: Space Gray | H102: N/A | I102: 3.0GHz 6‑core 8th‑generation Intel Core i5 | J102: 32GB 2666MHz | K102: 2TB SSD | L102: Intel UHD Graphics 630 | M102: N/A | N102: N/A | O102: Gigabit Ethernet | P102: =VLOOKUP(E102,'Cover Page'!$B$26:$F$44,2,FALSE) -> 12694941 | R102: =VLOOKUP(A102&"",'Material Master'!A:D,4,FALSE) -> # | S102: =VLOOKUP(A102&"",'Material Master'!A:E,5,FALSE) -> APPLE CTO SYSTEMS
A103: 13480420 | B103: Z0W2000C0 | C103: BTO MAC MINI I5/3.0GHZ/32GB/256GB 10GE SPGR | D103: No | E103: Mac mini | F103: No | G103: Space Gray | H103: N/A | I103: 3.0GHz 6‑core 8th‑generation Intel Core i5 | J103: 32GB 2666MHz | K103: 256GB SSD | L103: Intel UHD Graphics 630 | M103: N/A | N103: N/A | O103: 10 Gigabit Ethernet | P103: =VLOOKUP(E103,'Cover Page'!$B$26:$F$44,2,FALSE) -> 12694941 | R103: =VLOOKUP(A103&"",'Material Master'!A:D,4,FALSE) -> # | S103: =VLOOKUP(A103&"",'Material Master'!A:E,5,FALSE) -> APPLE CTO SYSTEMS
A104: 13480421 | B104: Z0W20005Y | C104: BTO MAC MINI I5/3.0GHZ/32GB/512GB 10GE SPGR | D104: No | E104: Mac mini | F104: No | G104: Space Gray | H104: N/A | I104: 3.0GHz 6‑core 8th‑generation Intel Core i5 | J104: 32GB 2666MHz | K104: 512GB SSD | L104: Intel UHD Graphics 630 | M104: N/A | N104: N/A | O104: 10 Gigabit Ethernet | P104: =VLOOKUP(E104,'Cover Page'!$B$26:$F$44,2,FALSE) -> 12694941 | R104: =VLOOKUP(A104&"",'Material Master'!A:D,4,FALSE) -> # | S104: =VLOOKUP(A104&"",'Material Master'!A:E,5,FALSE) -> APPLE CTO SYSTEMS
A105: 13480422 | B105: Z0W20005Z | C105: BTO MAC MINI I5/3.0GHZ/32GB/1TB 10GE SPGR | D105: No | E105: Mac mini | F105: No | G105: Space Gray | H105: N/A | I105: 3.0GHz 6‑core 8th‑generation Intel Core i5 | J105: 32GB 2666MHz | K105: 1TB SSD | L105: Intel UHD Graphics 630 | M105: N/A | N105: N/A | O105: 10 Gigabit Ethernet | P105: =VLOOKUP(E105,'Cover Page'!$B$26:$F$44,2,FALSE) -> 12694941 | R105: =VLOOKUP(A105&"",'Material Master'!A:D,4,FALSE) -> # | S105: =VLOOKUP(A105&"",'Material Master'!A:E,5,FALSE) -> APPLE CTO SYSTEMS
A106: 13480322 | B106: Z0W2000MN | C106: BTO MAC MINI I5/3.0GHZ/32GB/2TB 10GE SPGR | D106: No | E106: Mac mini | F106: No | G106: Space Gray | H106: N/A | I106: 3.0GHz 6‑core 8th‑generation Intel Core i5 | J106: 32GB 2666MHz | K106: 2TB SSD | L106: Intel UHD Graphics 630 | M106: N/A | N106: N/A | O106: 10 Gigabit Ethernet | P106: =VLOOKUP(E106,'Cover Page'!$B$26:$F$44,2,FALSE) -> 12694941 | R106: =VLOOKUP(A106&"",'Material Master'!A:D,4,FALSE) -> # | S106: =VLOOKUP(A106&"",'Material Master'!A:E,5,FALSE) -> APPLE CTO SYSTEMS
A107: 13480323 | B107: Z0W20003X | C107: BTO MAC MINI I5/3.0GHZ/64GB/256GB SPGR | D107: No | E107: Mac mini | F107: No | G107: Space Gray | H107: N/A | I107: 3.0GHz 6‑core 8th‑generation Intel Core i5 | J107: 64GB 2666MHz | K107: 256GB SSD | L107: Intel UHD Graphics 630 | M107: N/A | N107: N/A | O107: Gigabit Ethernet | P107: =VLOOKUP(E107,'Cover Page'!$B$26:$F$44,2,FALSE) -> 12694941 | R107: =VLOOKUP(A107&"",'Material Master'!A:D,4,FALSE) -> # | S107: =VLOOKUP(A107&"",'Material Master'!A:E,5,FALSE) -> APPLE CTO SYSTEMS
A108: 13480324 | B108: Z0W200063 | C108: BTO MAC MINI I5/3.0GHZ/64GB/512GB SPGR | D108: No | E108: Mac mini | F108: No | G108: Space Gray | H108: N/A | I108: 3.0GHz 6‑core 8th‑generation Intel Core i5 | J108: 64GB 2666MHz | K108: 512GB SSD | L108: Intel UHD Graphics 630 | M108: N/A | N108: N/A | O108: Gigabit Ethernet | P108: =VLOOKUP(E108,'Cover Page'!$B$26:$F$44,2,FALSE) -> 12694941 | R108: =VLOOKUP(A108&"",'Material Master'!A:D,4,FALSE) -> # | S108: =VLOOKUP(A108&"",'Material Master'!A:E,5,FALSE) -> APPLE CTO SYSTEMS
A109: 13480325 | B109: Z0W2000G9 | C109: BTO MAC MINI I5/3.0GHZ/64GB/1TB SPGR | D109: No | E109: Mac mini | F109: No | G109: Space Gray | H109: N/A | I109: 3.0GHz 6‑core 8th‑generation Intel Core i5 | J109: 64GB 2666MHz | K109: 1TB SSD | L109: Intel UHD Graphics 630 | M109: N/A | N109: N/A | O109: Gigabit Ethernet | P109: =VLOOKUP(E109,'Cover Page'!$B$26:$F$44,2,FALSE) -> 12694941 | R109: =VLOOKUP(A109&"",'Material Master'!A:D,4,FALSE) -> # | S109: =VLOOKUP(A109&"",'Material Master'!A:E,5,FALSE) -> APPLE CTO SYSTEMS
A110: 13480326 | B110: Z0W200008 | C110: BTO MAC MINI I5/3.0GHZ/64GB/2TB SPGR | D110: No | E110: Mac mini | F110: No | G110: Space Gray | H110: N/A | I110: 3.0GHz 6‑core 8th‑generation Intel Core i5 | J110: 64GB 2666MHz | K110: 2TB SSD | L110: Intel UHD Graphics 630 | M110: N/A | N110: N/A | O110: Gigabit Ethernet | P110: =VLOOKUP(E110,'Cover Page'!$B$26:$F$44,2,FALSE) -> 12694941 | R110: =VLOOKUP(A110&"",'Material Master'!A:D,4,FALSE) -> # | S110: =VLOOKUP(A110&"",'Material Master'!A:E,5,FALSE) -> APPLE CTO SYSTEMS
A111: 13480327 | B111: Z0W2000MH | C111: BTO MAC MINI I5/3.0GHZ/64GB/256GB 10GE SPGR | D111: No | E111: Mac mini | F111: No | G111: Space Gray | H111: N/A | I111: 3.0GHz 6‑core 8th‑generation Intel Core i5 | J111: 64GB 2666MHz | K111: 256GB SSD | L111: Intel UHD Graphics 630 | M111: N/A | N111: N/A | O111: 10 Gigabit Ethernet | P111: =VLOOKUP(E111,'Cover Page'!$B$26:$F$44,2,FALSE) -> 12694941 | R111: =VLOOKUP(A111&"",'Material Master'!A:D,4,FALSE) -> # | S111: =VLOOKUP(A111&"",'Material Master'!A:E,5,FALSE) -> APPLE CTO SYSTEMS
A112: 13480328 | B112: Z0W2000UT | C112: BTO MAC MINI I5/3.0GHZ/64GB/512GB 10GE SPGR | D112: No | E112: Mac mini | F112: No | G112: Space Gray | H112: N/A | I112: 3.0GHz 6‑core 8th‑generation Intel Core i5 | J112: 64GB 2666MHz | K112: 512GB SSD | L112: Intel UHD Graphics 630 | M112: N/A | N112: N/A | O112: 10 Gigabit Ethernet | P112: =VLOOKUP(E112,'Cover Page'!$B$26:$F$44,2,FALSE) -> 12694941 | R112: =VLOOKUP(A112&"",'Material Master'!A:D,4,FALSE) -> # | S112: =VLOOKUP(A112&"",'Material Master'!A:E,5,FALSE) -> APPLE CTO SYSTEMS
A113: 13480329 | B113: Z0W200059 | C113: BTO MAC MINI I5/3.0GHZ/64GB/1TB 10GE SPGR | D113: No | E113: Mac mini | F113: No | G113: Space Gray | H113: N/A | I113: 3.0GHz 6‑core 8th‑generation Intel Core i5 | J113: 64GB 2666MHz | K113: 1TB SSD | L113: Intel UHD Graphics 630 | M113: N/A | N113: N/A | O113: 10 Gigabit Ethernet | P113: =VLOOKUP(E113,'Cover Page'!$B$26:$F$44,2,FALSE) -> 12694941 | R113: =VLOOKUP(A113&"",'Material Master'!A:D,4,FALSE) -> # | S113: =VLOOKUP(A113&"",'Material Master'!A:E,5,FALSE) -> APPLE CTO SYSTEMS
A114: 13480330 | B114: Z0W20007L | C114: BTO MAC MINI I5/3.0GHZ/64GB/2TB 10GE SPGR | D114: No | E114: Mac mini | F114: No | G114: Space Gray | H114: N/A | I114: 3.0GHz 6‑core 8th‑generation Intel Core i5 | J114: 64GB 2666MHz | K114: 2TB SSD | L114: Intel UHD Graphics 630 | M114: N/A | N114: N/A | O114: 10 Gigabit Ethernet | P114: =VLOOKUP(E114,'Cover Page'!$B$26:$F$44,2,FALSE) -> 12694941 | R114: =VLOOKUP(A114&"",'Material Master'!A:D,4,FALSE) -> # | S114: =VLOOKUP(A114&"",'Material Master'!A:E,5,FALSE) -> APPLE CTO SYSTEMS
A115: 13480363 | B115: Z0W200009 | C115: BTO MAC MINI I7/3.2GHZ/8GB/256GB SPGR | D115: No | E115: Mac mini | F115: No | G115: Space Gray | H115: N/A | I115: 3.2GHz 6‑core 8th‑generation Intel Core i7 | J115: 8GB 2666MHz | K115: 256GB SSD | L115: Intel UHD Graphics 630 | M115: N/A | N115: N/A | O115: Gigabit Ethernet | P115: =VLOOKUP(E115,'Cover Page'!$B$26:$F$44,2,FALSE) -> 12694941 | R115: =VLOOKUP(A115&"",'Material Master'!A:D,4,FALSE) -> # | S115: =VLOOKUP(A115&"",'Material Master'!A:E,5,FALSE) -> APPLE CTO SYSTEMS
A116: 13480364 | B116: Z0W20000A | C116: BTO MAC MINI I7/3.2GHZ/8GB/512GB SPGR | D116: No | E116: Mac mini | F116: No | G116: Space Gray | H116: N/A | I116: 3.2GHz 6‑core 8th‑generation Intel Core i7 | J116: 8GB 2666MHz | K116: 512GB SSD | L116: Intel UHD Graphics 630 | M116: N/A | N116: N/A | O116: Gigabit Ethernet | P116: =VLOOKUP(E116,'Cover Page'!$B$26:$F$44,2,FALSE) -> 12694941 | R116: =VLOOKUP(A116&"",'Material Master'!A:D,4,FALSE) -> # | S116: =VLOOKUP(A116&"",'Material Master'!A:E,5,FALSE) -> APPLE CTO SYSTEMS
A117: 13480365 | B117: Z0W20000B | C117: BTO MAC MINI I7/3.2GHZ/8GB/1TB SPGR | D117: No | E117: Mac mini | F117: No | G117: Space Gray | H117: N/A | I117: 3.2GHz 6‑core 8th‑generation Intel Core i7 | J117: 8GB 2666MHz | K117: 1TB SSD | L117: Intel UHD Graphics 630 | M117: N/A | N117: N/A | O117: Gigabit Ethernet | P117: =VLOOKUP(E117,'Cover Page'!$B$26:$F$44,2,FALSE) -> 12694941 | R117: =VLOOKUP(A117&"",'Material Master'!A:D,4,FALSE) -> # | S117: =VLOOKUP(A117&"",'Material Master'!A:E,5,FALSE) -> APPLE CTO SYSTEMS
A118: 13480366 | B118: Z0W20000C | C118: BTO MAC MINI I7/3.2GHZ/8GB/2TB SPGR | D118: No | E118: Mac mini | F118: No | G118: Space Gray | H118: N/A | I118: 3.2GHz 6‑core 8th‑generation Intel Core i7 | J118: 8GB 2666MHz | K118: 2TB SSD | L118: Intel UHD Graphics 630 | M118: N/A | N118: N/A | O118: Gigabit Ethernet | P118: =VLOOKUP(E118,'Cover Page'!$B$26:$F$44,2,FALSE) -> 12694941 | R118: =VLOOKUP(A118&"",'Material Master'!A:D,4,FALSE) -> # | S118: =VLOOKUP(A118&"",'Material Master'!A:E,5,FALSE) -> APPLE CTO SYSTEMS
A119: 13480367 | B119: Z0W20000H | C119: BTO MAC MINI I7/3.2GHZ/8GB/256GB 10GE SPGR | D119: No | E119: Mac mini | F119: No | G119: Space Gray | H119: N/A | I119: 3.2GHz 6‑core 8th‑generation Intel Core i7 | J119: 8GB 2666MHz | K119: 256GB SSD | L119: Intel UHD Graphics 630 | M119: N/A | N119: N/A | O119: 10 Gigabit Ethernet | P119: =VLOOKUP(E119,'Cover Page'!$B$26:$F$44,2,FALSE) -> 12694941 | R119: =VLOOKUP(A119&"",'Material Master'!A:D,4,FALSE) -> # | S119: =VLOOKUP(A119&"",'Material Master'!A:E,5,FALSE) -> APPLE CTO SYSTEMS
A120: 13480368 | B120: Z0W20000J | C120: BTO MAC MINI I7/3.2GHZ/8GB/512GB 10GE SPGR | D120: No | E120: Mac mini | F120: No | G120: Space Gray | H120: N/A | I120: 3.2GHz 6‑core 8th‑generation Intel Core i7 | J120: 8GB 2666MHz | K120: 512GB SSD | L120: Intel UHD Graphics 630 | M120: N/A | N120: N/A | O120: 10 Gigabit Ethernet | P120: =VLOOKUP(E120,'Cover Page'!$B$26:$F$44,2,FALSE) -> 12694941 | R120: =VLOOKUP(A120&"",'Material Master'!A:D,4,FALSE) -> # | S120: =VLOOKUP(A120&"",'Material Master'!A:E,5,FALSE) -> APPLE CTO SYSTEMS
A121: 13480369 | B121: Z0W20008D | C121: BTO MAC MINI I7/3.2GHZ/8GB/1TB 10GE SPGR | D121: No | E121: Mac mini | F121: No | G121: Space Gray | H121: N/A | I121: 3.2GHz 6‑core 8th‑generation Intel Core i7 | J121: 8GB 2666MHz | K121: 1TB SSD | L121: Intel UHD Graphics 630 | M121: N/A | N121: N/A | O121: 10 Gigabit Ethernet | P121: =VLOOKUP(E121,'Cover Page'!$B$26:$F$44,2,FALSE) -> 12694941 | R121: =VLOOKUP(A121&"",'Material Master'!A:D,4,FALSE) -> # | S121: =VLOOKUP(A121&"",'Material Master'!A:E,5,FALSE) -> APPLE CTO SYSTEMS
A122: 13480370 | B122: Z0W2000BC | C122: BTO MAC MINI I7/3.2GHZ/8GB/2TB 10GE SPGR | D122: No | E122: Mac mini | F122: No | G122: Space Gray | H122: N/A | I122: 3.2GHz 6‑core 8th‑generation Intel Core i7 | J122: 8GB 2666MHz | K122: 2TB SSD | L122: Intel UHD Graphics 630 | M122: N/A | N122: N/A | O122: 10 Gigabit Ethernet | P122: =VLOOKUP(E122,'Cover Page'!$B$26:$F$44,2,FALSE) -> 12694941 | R122: =VLOOKUP(A122&"",'Material Master'!A:D,4,FALSE) -> # | S122: =VLOOKUP(A122&"",'Material Master'!A:E,5,FALSE) -> APPLE CTO SYSTEMS
A123: 13480371 | B123: Z0W200041 | C123: BTO MAC MINI I7/3.2GHZ/16GB/256GB SPGR | D123: No | E123: Mac mini | F123: No | G123: Space Gray | H123: N/A | I123: 3.2GHz 6‑core 8th‑generation Intel Core i7 | J123: 16GB 2666MHz | K123: 256GB SSD | L123: Intel UHD Graphics 630 | M123: N/A | N123: N/A | O123: Gigabit Ethernet | P123: =VLOOKUP(E123,'Cover Page'!$B$26:$F$44,2,FALSE) -> 12694941 | R123: =VLOOKUP(A123&"",'Material Master'!A:D,4,FALSE) -> # | S123: =VLOOKUP(A123&"",'Material Master'!A:E,5,FALSE) -> APPLE CTO SYSTEMS
A124: 13480372 | B124: Z0W20005B | C124: BTO MAC MINI I7/3.2GHZ/16GB/512GB SPGR | D124: No | E124: Mac mini | F124: No | G124: Space Gray | H124: N/A | I124: 3.2GHz 6‑core 8th‑generation Intel Core i7 | J124: 16GB 2666MHz | K124: 512GB SSD | L124: Intel UHD Graphics 630 | M124: N/A | N124: N/A | O124: Gigabit Ethernet | P124: =VLOOKUP(E124,'Cover Page'!$B$26:$F$44,2,FALSE) -> 12694941 | R124: =VLOOKUP(A124&"",'Material Master'!A:D,4,FALSE) -> # | S124: =VLOOKUP(A124&"",'Material Master'!A:E,5,FALSE) -> APPLE CTO SYSTEMS
A125: 13480403 | B125: Z0W20005T | C125: BTO MAC MINI I7/3.2GHZ/16GB/1TB SPGR | D125: No | E125: Mac mini | F125: No | G125: Space Gray | H125: N/A | I125: 3.2GHz 6‑core 8th‑generation Intel Core i7 | J125: 16GB 2666MHz | K125: 1TB SSD | L125: Intel UHD Graphics 630 | M125: N/A | N125: N/A | O125: Gigabit Ethernet | P125: =VLOOKUP(E125,'Cover Page'!$B$26:$F$44,2,FALSE) -> 12694941 | R125: =VLOOKUP(A125&"",'Material Master'!A:D,4,FALSE) -> # | S125: =VLOOKUP(A125&"",'Material Master'!A:E,5,FALSE) -> APPLE CTO SYSTEMS
A126: 13480404 | B126: Z0W20009H | C126: BTO MAC MINI I7/3.2GHZ/16GB/2TB SPGR | D126: No | E126: Mac mini | F126: No | G126: Space Gray | H126: N/A | I126: 3.2GHz 6‑core 8th‑generation Intel Core i7 | J126: 16GB 2666MHz | K126: 2TB SSD | L126: Intel UHD Graphics 630 | M126: N/A | N126: N/A | O126: Gigabit Ethernet | P126: =VLOOKUP(E126,'Cover Page'!$B$26:$F$44,2,FALSE) -> 12694941 | R126: =VLOOKUP(A126&"",'Material Master'!A:D,4,FALSE) -> # | S126: =VLOOKUP(A126&"",'Material Master'!A:E,5,FALSE) -> APPLE CTO SYSTEMS
A127: 13480405 | B127: Z0W200064 | C127: BTO MAC MINI I7/3.2GHZ/16GB/256GB 10GE SPGR | D127: No | E127: Mac mini | F127: No | G127: Space Gray | H127: N/A | I127: 3.2GHz 6‑core 8th‑generation Intel Core i7 | J127: 16GB 2666MHz | K127: 256GB SSD | L127: Intel UHD Graphics 630 | M127: N/A | N127: N/A | O127: 10 Gigabit Ethernet | P127: =VLOOKUP(E127,'Cover Page'!$B$26:$F$44,2,FALSE) -> 12694941 | R127: =VLOOKUP(A127&"",'Material Master'!A:D,4,FALSE) -> # | S127: =VLOOKUP(A127&"",'Material Master'!A:E,5,FALSE) -> APPLE CTO SYSTEMS
A128: 13480406 | B128: Z0W20005D | C128: BTO MAC MINI I7/3.2GHZ/16GB/512GB 10GE SPGR | D128: No | E128: Mac mini | F128: No | G128: Space Gray | H128: N/A | I128: 3.2GHz 6‑core 8th‑generation Intel Core i7 | J128: 16GB 2666MHz | K128: 512GB SSD | L128: Intel UHD Graphics 630 | M128: N/A | N128: N/A | O128: 10 Gigabit Ethernet | P128: =VLOOKUP(E128,'Cover Page'!$B$26:$F$44,2,FALSE) -> 12694941 | R128: =VLOOKUP(A128&"",'Material Master'!A:D,4,FALSE) -> # | S128: =VLOOKUP(A128&"",'Material Master'!A:E,5,FALSE) -> APPLE CTO SYSTEMS
A129: 13480407 | B129: Z0W20007P | C129: BTO MAC MINI I7/3.2GHZ/16GB/1TB 10GE SPGR | D129: No | E129: Mac mini | F129: No | G129: Space Gray | H129: N/A | I129: 3.2GHz 6‑core 8th‑generation Intel Core i7 | J129: 16GB 2666MHz | K129: 1TB SSD | L129: Intel UHD Graphics 630 | M129: N/A | N129: N/A | O129: 10 Gigabit Ethernet | P129: =VLOOKUP(E129,'Cover Page'!$B$26:$F$44,2,FALSE) -> 12694941 | R129: =VLOOKUP(A129&"",'Material Master'!A:D,4,FALSE) -> # | S129: =VLOOKUP(A129&"",'Material Master'!A:E,5,FALSE) -> APPLE CTO SYSTEMS
A130: 13480408 | B130: Z0W2000BB | C130: BTO MAC MINI I7/3.2GHZ/16GB/2TB 10GE SPGR | D130: No | E130: Mac mini | F130: No | G130: Space Gray | H130: N/A | I130: 3.2GHz 6‑core 8th‑generation Intel Core i7 | J130: 16GB 2666MHz | K130: 2TB SSD | L130: Intel UHD Graphics 630 | M130: N/A | N130: N/A | O130: 10 Gigabit Ethernet | P130: =VLOOKUP(E130,'Cover Page'!$B$26:$F$44,2,FALSE) -> 12694941 | R130: =VLOOKUP(A130&"",'Material Master'!A:D,4,FALSE) -> # | S130: =VLOOKUP(A130&"",'Material Master'!A:E,5,FALSE) -> APPLE CTO SYSTEMS
A131: 13480409 | B131: Z0W200042 | C131: BTO MAC MINI I7/3.2GHZ/32GB/256GB SPGR | D131: No | E131: Mac mini | F131: No | G131: Space Gray | H131: N/A | I131: 3.2GHz 6‑core 8th‑generation Intel Core i7 | J131: 32GB 2666MHz | K131: 256GB SSD | L131: Intel UHD Graphics 630 | M131: N/A | N131: N/A | O131: Gigabit Ethernet | P131: =VLOOKUP(E131,'Cover Page'!$B$26:$F$44,2,FALSE) -> 12694941 | R131: =VLOOKUP(A131&"",'Material Master'!A:D,4,FALSE) -> # | S131: =VLOOKUP(A131&"",'Material Master'!A:E,5,FALSE) -> APPLE CTO SYSTEMS
A132: 13480410 | B132: Z0W20005J | C132: BTO MAC MINI I7/3.2GHZ/32GB/512GB SPGR | D132: No | E132: Mac mini | F132: No | G132: Space Gray | H132: N/A | I132: 3.2GHz 6‑core 8th‑generation Intel Core i7 | J132: 32GB 2666MHz | K132: 512GB SSD | L132: Intel UHD Graphics 630 | M132: N/A | N132: N/A | O132: Gigabit Ethernet | P132: =VLOOKUP(E132,'Cover Page'!$B$26:$F$44,2,FALSE) -> 12694941 | R132: =VLOOKUP(A132&"",'Material Master'!A:D,4,FALSE) -> # | S132: =VLOOKUP(A132&"",'Material Master'!A:E,5,FALSE) -> APPLE CTO SYSTEMS
A133: 13480411 | B133: Z0W20005A | C133: BTO MAC MINI I7/3.2GHZ/32GB/1TB SPGR | D133: No | E133: Mac mini | F133: No | G133: Space Gray | H133: N/A | I133: 3.2GHz 6‑core 8th‑generation Intel Core i7 | J133: 32GB 2666MHz | K133: 1TB SSD | L133: Intel UHD Graphics 630 | M133: N/A | N133: N/A | O133: Gigabit Ethernet | P133: =VLOOKUP(E133,'Cover Page'!$B$26:$F$44,2,FALSE) -> 12694941 | R133: =VLOOKUP(A133&"",'Material Master'!A:D,4,FALSE) -> # | S133: =VLOOKUP(A133&"",'Material Master'!A:E,5,FALSE) -> APPLE CTO SYSTEMS
A134: 13480412 | B134: Z0W20005V | C134: BTO MAC MINI I7/3.2GHZ/32GB/2TB SPGR | D134: No | E134: Mac mini | F134: No | G134: Space Gray | H134: N/A | I134: 3.2GHz 6‑core 8th‑generation Intel Core i7 | J134: 32GB 2666MHz | K134: 2TB SSD | L134: Intel UHD Graphics 630 | M134: N/A | N134: N/A | O134: Gigabit Ethernet | P134: =VLOOKUP(E134,'Cover Page'!$B$26:$F$44,2,FALSE) -> 12694941 | R134: =VLOOKUP(A134&"",'Material Master'!A:D,4,FALSE) -> # | S134: =VLOOKUP(A134&"",'Material Master'!A:E,5,FALSE) -> APPLE CTO SYSTEMS
A135: 13480383 | B135: Z0W2000AZ | C135: BTO MAC MINI I7/3.2GHZ/32GB/256GB 10GE SPGR | D135: No | E135: Mac mini | F135: No | G135: Space Gray | H135: N/A | I135: 3.2GHz 6‑core 8th‑generation Intel Core i7 | J135: 32GB 2666MHz | K135: 256GB SSD | L135: Intel UHD Graphics 630 | M135: N/A | N135: N/A | O135: 10 Gigabit Ethernet | P135: =VLOOKUP(E135,'Cover Page'!$B$26:$F$44,2,FALSE) -> 12694941 | R135: =VLOOKUP(A135&"",'Material Master'!A:D,4,FALSE) -> # | S135: =VLOOKUP(A135&"",'Material Master'!A:E,5,FALSE) -> APPLE CTO SYSTEMS
A136: 13480384 | B136: Z0W20005H | C136: BTO MAC MINI I7/3.2GHZ/32GB/512GB 10GE SPGR | D136: No | E136: Mac mini | F136: No | G136: Space Gray | H136: N/A | I136: 3.2GHz 6‑core 8th‑generation Intel Core i7 | J136: 32GB 2666MHz | K136: 512GB SSD | L136: Intel UHD Graphics 630 | M136: N/A | N136: N/A | O136: 10 Gigabit Ethernet | P136: =VLOOKUP(E136,'Cover Page'!$B$26:$F$44,2,FALSE) -> 12694941 | R136: =VLOOKUP(A136&"",'Material Master'!A:D,4,FALSE) -> # | S136: =VLOOKUP(A136&"",'Material Master'!A:E,5,FALSE) -> APPLE CTO SYSTEMS
A137: 13480385 | B137: Z0W200050 | C137: BTO MAC MINI I7/3.2GHZ/32GB/1TB 10GE SPGR | D137: Yes | E137: Mac mini | F137: No | G137: Space Gray | H137: N/A | I137: 3.2GHz 6‑core 8th‑generation Intel Core i7 | J137: 32GB 2666MHz | K137: 1TB SSD | L137: Intel UHD Graphics 630 | M137: N/A | N137: N/A | O137: 10 Gigabit Ethernet | P137: =VLOOKUP(E137,'Cover Page'!$B$26:$F$44,2,FALSE) -> 12694941 | R137: =VLOOKUP(A137&"",'Material Master'!A:D,4,FALSE) -> # | S137: =VLOOKUP(A137&"",'Material Master'!A:E,5,FALSE) -> APPLE CTO BOX
A138: 13480386 | B138: Z0W200085 | C138: BTO MAC MINI I7/3.2GHZ/32GB/2TB 10GE SPGR | D138: No | E138: Mac mini | F138: No | G138: Space Gray | H138: N/A | I138: 3.2GHz 6‑core 8th‑generation Intel Core i7 | J138: 32GB 2666MHz | K138: 2TB SSD | L138: Intel UHD Graphics 630 | M138: N/A | N138: N/A | O138: 10 Gigabit Ethernet | P138: =VLOOKUP(E138,'Cover Page'!$B$26:$F$44,2,FALSE) -> 12694941 | R138: =VLOOKUP(A138&"",'Material Master'!A:D,4,FALSE) -> # | S138: =VLOOKUP(A138&"",'Material Master'!A:E,5,FALSE) -> APPLE CTO SYSTEMS
A139: 13480387 | B139: Z0W200043 | C139: BTO MAC MINI I7/3.2GHZ/64GB/256GB SPGR | D139: No | E139: Mac mini | F139: No | G139: Space Gray | H139: N/A | I139: 3.2GHz 6‑core 8th‑generation Intel Core i7 | J139: 64GB 2666MHz | K139: 256GB SSD | L139: Intel UHD Graphics 630 | M139: N/A | N139: N/A | O139: Gigabit Ethernet | P139: =VLOOKUP(E139,'Cover Page'!$B$26:$F$44,2,FALSE) -> 12694941 | R139: =VLOOKUP(A139&"",'Material Master'!A:D,4,FALSE) -> # | S139: =VLOOKUP(A139&"",'Material Master'!A:E,5,FALSE) -> APPLE CTO SYSTEMS
A140: 13480388 | B140: Z0W200080 | C140: BTO MAC MINI I7/3.2GHZ/64GB/512GB SPGR | D140: No | E140: Mac mini | F140: No | G140: Space Gray | H140: N/A | I140: 3.2GHz 6‑core 8th‑generation Intel Core i7 | J140: 64GB 2666MHz | K140: 512GB SSD | L140: Intel UHD Graphics 630 | M140: N/A | N140: N/A | O140: Gigabit Ethernet | P140: =VLOOKUP(E140,'Cover Page'!$B$26:$F$44,2,FALSE) -> 12694941 | R140: =VLOOKUP(A140&"",'Material Master'!A:D,4,FALSE) -> # | S140: =VLOOKUP(A140&"",'Material Master'!A:E,5,FALSE) -> APPLE CTO SYSTEMS
A141: 13480389 | B141: Z0W200081 | C141: BTO MAC MINI I7/3.2GHZ/64GB/1TB SPGR | D141: No | E141: Mac mini | F141: No | G141: Space Gray | H141: N/A | I141: 3.2GHz 6‑core 8th‑generation Intel Core i7 | J141: 64GB 2666MHz | K141: 1TB SSD | L141: Intel UHD Graphics 630 | M141: N/A | N141: N/A | O141: Gigabit Ethernet | P141: =VLOOKUP(E141,'Cover Page'!$B$26:$F$44,2,FALSE) -> 12694941 | R141: =VLOOKUP(A141&"",'Material Master'!A:D,4,FALSE) -> # | S141: =VLOOKUP(A141&"",'Material Master'!A:E,5,FALSE) -> APPLE CTO SYSTEMS
A142: 13480390 | B142: Z0W20003Y | C142: BTO MAC MINI I7/3.2GHZ/64GB/2TB SPGR | D142: No | E142: Mac mini | F142: No | G142: Space Gray | H142: N/A | I142: 3.2GHz 6‑core 8th‑generation Intel Core i7 | J142: 64GB 2666MHz | K142: 2TB SSD | L142: Intel UHD Graphics 630 | M142: N/A | N142: N/A | O142: Gigabit Ethernet | P142: =VLOOKUP(E142,'Cover Page'!$B$26:$F$44,2,FALSE) -> 12694941 | R142: =VLOOKUP(A142&"",'Material Master'!A:D,4,FALSE) -> # | S142: =VLOOKUP(A142&"",'Material Master'!A:E,5,FALSE) -> APPLE CTO SYSTEMS
A143: 13480391 | B143: Z0W20006T | C143: BTO MAC MINI I7/3.2GHZ/64GB/256GB 10GE SPGR | D143: No | E143: Mac mini | F143: No | G143: Space Gray | H143: N/A | I143: 3.2GHz 6‑core 8th‑generation Intel Core i7 | J143: 64GB 2666MHz | K143: 256GB SSD | L143: Intel UHD Graphics 630 | M143: N/A | N143: N/A | O143: 10 Gigabit Ethernet | P143: =VLOOKUP(E143,'Cover Page'!$B$26:$F$44,2,FALSE) -> 12694941 | R143: =VLOOKUP(A143&"",'Material Master'!A:D,4,FALSE) -> # | S143: =VLOOKUP(A143&"",'Material Master'!A:E,5,FALSE) -> APPLE CTO SYSTEMS
A144: 13480392 | B144: Z0W20007Z | C144: BTO MAC MINI I7/3.2GHZ/64GB/512GB 10GE SPGR | D144: No | E144: Mac mini | F144: No | G144: Space Gray | H144: N/A | I144: 3.2GHz 6‑core 8th‑generation Intel Core i7 | J144: 64GB 2666MHz | K144: 512GB SSD | L144: Intel UHD Graphics 630 | M144: N/A | N144: N/A | O144: 10 Gigabit Ethernet | P144: =VLOOKUP(E144,'Cover Page'!$B$26:$F$44,2,FALSE) -> 12694941 | R144: =VLOOKUP(A144&"",'Material Master'!A:D,4,FALSE) -> # | S144: =VLOOKUP(A144&"",'Material Master'!A:E,5,FALSE) -> APPLE CTO SYSTEMS
A145: 13480361 | B145: Z0W20005K | C145: BTO MAC MINI I7/3.2GHZ/64GB/1TB 10GE SPGR | D145: No | E145: Mac mini | F145: No | G145: Space Gray | H145: N/A | I145: 3.2GHz 6‑core 8th‑generation Intel Core i7 | J145: 64GB 2666MHz | K145: 1TB SSD | L145: Intel UHD Graphics 630 | M145: N/A | N145: N/A | O145: 10 Gigabit Ethernet | P145: =VLOOKUP(E145,'Cover Page'!$B$26:$F$44,2,FALSE) -> 12694941 | R145: =VLOOKUP(A145&"",'Material Master'!A:D,4,FALSE) -> # | S145: =VLOOKUP(A145&"",'Material Master'!A:E,5,FALSE) -> APPLE CTO SYSTEMS
A146: 13480362 | B146: Z0W20000V | C146: BTO MAC MINI I7/3.2GHZ/64GB/2TB 10GE SPGR | D146: =IF(S146="APPLE CPU","Yes",IF(S146="APPLE CTO BOX","Yes","No")) -> No | E146: Mac mini | F146: No | G146: Space Gray | H146: N/A | I146: 3.2GHz 6‑core 8th‑generation Intel Core i7 | J146: 64GB 2666MHz | K146: 2TB SSD | L146: Intel UHD Graphics 630 | M146: N/A | N146: N/A | O146: 10 Gigabit Ethernet | P146: =VLOOKUP(E146,'Cover Page'!$B$26:$F$44,2,FALSE) -> 12694941 | R146: =VLOOKUP(A146&"",'Material Master'!A:D,4,FALSE) -> # | S146: =VLOOKUP(A146&"",'Material Master'!A:E,5,FALSE) -> APPLE CTO SYSTEMS
A147: 12654574 | B147: MQGG2LL/A | C147: MAC PRO X/3.0 8C 16GB 256GB D700 USA | D147: Yes | E147: Mac Pro | F147: No | G147: N/A | H147: N/A | I147: 3.0GHz 8-Core Intel Xeon E5 | J147: 16GB 1866MHz | K147: 256GB PCIe-based Flash Storage | L147: Dual AMD FirePro D700 with 6GB | M147: N/A | N147: N/A | P147: =VLOOKUP(E147,'Cover Page'!$B$26:$F$44,2,FALSE) -> 12694945 | R147: =VLOOKUP(A147&"",'Material Master'!A:D,4,FALSE) -> # | S147: =VLOOKUP(A147&"",'Material Master'!A:E,5,FALSE) -> APPLE CPU
A148: 11292667 | B148: MD878LL/A | C148: MAC PRO X/3.5 6C 16GB 256GB D500 USA | D148: Yes | E148: Mac Pro | F148: No | G148: N/A | H148: N/A | I148: 3.5GHz 6-Core Intel Xeon E5 | J148: 16GB 1866MHz | K148: 256GB PCIe-based Flash Storage | L148: Dual AMD FirePro D500 with 3GB | M148: N/A | N148: N/A | P148: =VLOOKUP(E148,'Cover Page'!$B$26:$F$44,2,FALSE) -> 12694945 | R148: =VLOOKUP(A148&"",'Material Master'!A:D,4,FALSE) -> # | S148: =VLOOKUP(A148&"",'Material Master'!A:E,5,FALSE) -> APPLE CPU
A149: 11309440 | B149: Z0P80000T | C149: BTO MAC PRO X/2.7 12C 64GB 1TB D700 | D149: Yes | E149: Mac Pro | F149: No | G149: N/A | H149: N/A | I149: 2.7GHz 12-Core Intel Xeon E5 w/ 30MB | J149: 64GB 1866MHz | K149: 1TB PCIe-based Flash Storage | L149: Dual AMD FirePro D700 with 6GB | M149: N/A | N149: N/A | P149: =VLOOKUP(E149,'Cover Page'!$B$26:$F$44,2,FALSE) -> 12694945 | R149: =VLOOKUP(A149&"",'Material Master'!A:D,4,FALSE) -> # | S149: =VLOOKUP(A149&"",'Material Master'!A:E,5,FALSE) -> APPLE CTO BOX
A150: 11406788 | B150: Z0P800025 | C150: BTO MAC PRO X/3.5 6C 32GB 512GB D500 | D150: Yes | E150: Mac Pro | F150: No | G150: N/A | H150: N/A | I150: 3.5GHz 6-Core Intel Xeon E5 w/ 12MB | J150: 32GB 1866MHz | K150: 512GB PCIe-based Flash Storage | L150: Dual AMD FirePro D500 with 3GB | M150: N/A | N150: N/A | P150: =VLOOKUP(E150,'Cover Page'!$B$26:$F$44,2,FALSE) -> 12694945 | R150: =VLOOKUP(A150&"",'Material Master'!A:D,4,FALSE) -> # | S150: =VLOOKUP(A150&"",'Material Master'!A:E,5,FALSE) -> APPLE CTO BOX
A151: 11406791 | B151: Z0P80002B | C151: BTO MAC PRO X/3.5 6C 16GB 512GB D500 | D151: Yes | E151: Mac Pro | F151: No | G151: N/A | H151: N/A | I151: 3.5GHz 6-Core Intel Xeon E5 w/ 12MB | J151: 16GB 1866MHz | K151: 512GB PCIe-based Flash Storage | L151: Dual AMD FirePro D500 with 3GB | M151: N/A | N151: N/A | P151: =VLOOKUP(E151,'Cover Page'!$B$26:$F$44,2,FALSE) -> 12694945 | R151: =VLOOKUP(A151&"",'Material Master'!A:D,4,FALSE) -> # | S151: =VLOOKUP(A151&"",'Material Master'!A:E,5,FALSE) -> APPLE CTO BOX
A152: 12695070 | B152: MNYF2LL/A | C152: MB 12 M3/1.2GHZ/8GB/256GB-USA SPGR | D152: Yes | E152: MacBook 12" | F152: No | G152: Space Gray | H152: Retina | I152: 1.2GHz dual-core Intel Core m3 | J152: 8GB 1866MHz | K152: 256GB Flash storage | L152: Intel HD Graphics 615 | M152: Standard US | N152: N/A | P152: =VLOOKUP(E152,'Cover Page'!$B$26:$F$44,2,FALSE) -> 12694943 | R152: =VLOOKUP(A152&"",'Material Master'!A:D,4,FALSE) -> # | S152: =VLOOKUP(A152&"",'Material Master'!A:E,5,FALSE) -> APPLE CPU
A153: 12695071 | B153: MNYG2LL/A | C153: MB 12 I5/1.3GHZ/8GB/512GB-USA SPGR | D153: Yes | E153: MacBook 12" | F153: No | G153: Space Gray | H153: Retina | I153: 1.3GHz dual-core Intel Core i5 | J153: 8GB 1866MHz | K153: 512GB Flash Storage | L153: Intel HD Graphics 615 | M153: Standard US | N153: N/A | P153: =VLOOKUP(E153,'Cover Page'!$B$26:$F$44,2,FALSE) -> 12694943 | R153: =VLOOKUP(A153&"",'Material Master'!A:D,4,FALSE) -> # | S153: =VLOOKUP(A153&"",'Material Master'!A:E,5,FALSE) -> APPLE CPU
A154: 12695072 | B154: MNYH2LL/A | C154: MB 12 M3/1.2GHZ/8GB/256GB-USA SLVR | D154: Yes | E154: MacBook 12" | F154: No | G154: Silver | H154: Retina | I154: 1.2GHz dual-core Intel Core m3 | J154: 8GB 1866MHz | K154: 256GB Flash storage | L154: Intel HD Graphics 615 | M154: Standard US | N154: N/A | P154: =VLOOKUP(E154,'Cover Page'!$B$26:$F$44,2,FALSE) -> 12694943 | R154: =VLOOKUP(A154&"",'Material Master'!A:D,4,FALSE) -> # | S154: =VLOOKUP(A154&"",'Material Master'!A:E,5,FALSE) -> APPLE CPU
A155: 12695073 | B155: MNYJ2LL/A | C155: MB 12 I5/1.3GHZ/8GB/512GB-USA SLVR | D155: Yes | E155: MacBook 12" | F155: No | G155: Silver | H155: Retina | I155: 1.3GHz dual-core Intel Core i5 | J155: 8GB 1866MHz | K155: 512GB Flash Storage | L155: Intel HD Graphics 615 | M155: Standard US | N155: N/A | P155: =VLOOKUP(E155,'Cover Page'!$B$26:$F$44,2,FALSE) -> 12694943 | R155: =VLOOKUP(A155&"",'Material Master'!A:D,4,FALSE) -> # | S155: =VLOOKUP(A155&"",'Material Master'!A:E,5,FALSE) -> APPLE CPU
A156: 13478933 | B156: MRQN2LL/A | C156: MB 12 M3/1.2GHZ/8GB/256GB-USA GOLD | D156: Yes | E156: MacBook 12" | F156: No | G156: Gold | H156: Retina | I156: 1.2GHz dual-core Intel Core m3 | J156: 8GB 1866MHz | K156: 256GB Flash storage | L156: Intel HD Graphics 615 | M156: Standard US | N156: N/A | P156: =VLOOKUP(E156,'Cover Page'!$B$26:$F$44,2,FALSE) -> 12694943 | R156: =VLOOKUP(A156&"",'Material Master'!A:D,4,FALSE) -> # | S156: =VLOOKUP(A156&"",'Material Master'!A:E,5,FALSE) -> APPLE CPU
A157: 13478964 | B157: MRQP2LL/A | C157: MB 12 I5/1.3GHZ /8GB/512GB-USA GOLD | D157: Yes | E157: MacBook 12" | F157: No | G157: Gold | H157: Retina | I157: 1.3GHz dual-core Intel Core i5 | J157: 8GB 16866MHz | K157: 512GB Flash storage | L157: Intel HD Graphics 615 | M157: Standard US | N157: N/A | P157: =VLOOKUP(E157,'Cover Page'!$B$26:$F$44,2,FALSE) -> 12694943 | R157: =VLOOKUP(A157&"",'Material Master'!A:D,4,FALSE) -> # | S157: =VLOOKUP(A157&"",'Material Master'!A:E,5,FALSE) -> APPLE CPU
A158: 12695074 | B158: MNYK2LL/A | C158: MB 12.0 GOLD/1.2GHZ/8GB/256GB-USA | D158: Yes | E158: MacBook 12" | F158: No | G158: Gold | H158: Retina | I158: 1.2GHz dual-core Intel Core m3 | J158: 8GB 1866MHz | K158: 256GB Flash storage | L158: Intel HD Graphics 615 | M158: Standard US | N158: N/A | P158: =VLOOKUP(E158,'Cover Page'!$B$26:$F$44,2,FALSE) -> 12694943 | R158: =VLOOKUP(A158&"",'Material Master'!A:D,4,FALSE) -> 01 | S158: =VLOOKUP(A158&"",'Material Master'!A:E,5,FALSE) -> APPLE CPU
A159: 12695075 | B159: MNYL2LL/A | C159: MB 12.0 GOLD/1.3GHZ/8GB/512GB-USA | D159: Yes | E159: MacBook 12" | F159: No | G159: Gold | H159: Retina | I159: 1.3GHz dual-core Intel Core i5 | J159: 8GB 1866MHz | K159: 512GB Flash Storage | L159: Intel HD Graphics 615 | M159: Standard US | N159: N/A | P159: =VLOOKUP(E159,'Cover Page'!$B$26:$F$44,2,FALSE) -> 12694943 | R159: =VLOOKUP(A159&"",'Material Master'!A:D,4,FALSE) -> 01 | S159: =VLOOKUP(A159&"",'Material Master'!A:E,5,FALSE) -> APPLE CPU
A160: 12695066 | B160: MNYM2LL/A | C160: MB 12.0 ROSE GOLD/1.2GHZ/8GB/256GB-USA | D160: Yes | E160: MacBook 12" | F160: No | G160: Rose Gold | H160: Retina | I160: 1.2GHz dual-core Intel Core m3 | J160: 8GB 1866MHz | K160: 256GB Flash storage | L160: Intel HD Graphics 615 | M160: Standard US | N160: N/A | P160: =VLOOKUP(E160,'Cover Page'!$B$26:$F$44,2,FALSE) -> 12694943 | R160: =VLOOKUP(A160&"",'Material Master'!A:D,4,FALSE) -> 01 | S160: =VLOOKUP(A160&"",'Material Master'!A:E,5,FALSE) -> APPLE CPU
A161: 12695067 | B161: MNYN2LL/A | C161: MB 12.0 ROSE GOLD/1.3GHZ/8GB/512GB-USA | D161: Yes | E161: MacBook 12" | F161: No | G161: Rose Gold | H161: Retina | I161: 1.3GHz dual-core Intel Core i5 | J161: 8GB 1866MHz | K161: 512GB Flash Storage | L161: Intel HD Graphics 615 | M161: Standard US | N161: N/A | P161: =VLOOKUP(E161,'Cover Page'!$B$26:$F$44,2,FALSE) -> 12694943 | R161: =VLOOKUP(A161&"",'Material Master'!A:D,4,FALSE) -> 01 | S161: =VLOOKUP(A161&"",'Material Master'!A:E,5,FALSE) -> APPLE CPU
A162: 13478965 | B162: MRE82LL/A | C162: MB AIR 13 I5/1.6GHZ/8GB/128GB SPGR | D162: Yes | E162: MB Air 13" | F162: No | G162: Space Gray | H162: Retina | I162: 1.6GHz dual-core Intel Core i5 | J162: 8GB 2133MHz | K162: 128GB SSD storage | L162: Intel UHD Graphics 617 | M162: Standard US | N162: N/A | P162: =VLOOKUP(E162,'Cover Page'!$B$26:$F$44,2,FALSE) -> 12694943 | R162: =VLOOKUP(A162&"",'Material Master'!A:D,4,FALSE) -> # | S162: =VLOOKUP(A162&"",'Material Master'!A:E,5,FALSE) -> APPLE CPU
A163: 13478966 | B163: MRE92LL/A | C163: MB AIR 13 I5/1.6GHZ/8GB/256GB SPGR | D163: Yes | E163: MB Air 13" | F163: No | G163: Space Gray | H163: Retina | I163: 1.6GHz dual-core Intel Core i5 | J163: 8GB 2133MHz | K163: 256GB SSD storage | L163: Intel UHD Graphics 617 | M163: Standard US | N163: N/A | P163: =VLOOKUP(E163,'Cover Page'!$B$26:$F$44,2,FALSE) -> 12694943 | R163: =VLOOKUP(A163&"",'Material Master'!A:D,4,FALSE) -> 40 | S163: =VLOOKUP(A163&"",'Material Master'!A:E,5,FALSE) -> APPLE CPU
A164: 13478967 | B164: MREA2LL/A | C164: MB AIR 13 I5/1.6GHZ/8GB/128GB SLVR | D164: Yes | E164: MB Air 13" | F164: No | G164: Silver | H164: Retina | I164: 1.6GHz dual-core Intel Core i5 | J164: 8GB 2133MHz | K164: 128GB SSD storage | L164: Intel UHD Graphics 617 | M164: Standard US | N164: N/A | P164: =VLOOKUP(E164,'Cover Page'!$B$26:$F$44,2,FALSE) -> 12694943 | R164: =VLOOKUP(A164&"",'Material Master'!A:D,4,FALSE) -> # | S164: =VLOOKUP(A164&"",'Material Master'!A:E,5,FALSE) -> APPLE CPU
A165: 13478968 | B165: MREC2LL/A | C165: MB AIR 13 I5/1.6GHZ/8GB/256GB SLVR | D165: Yes | E165: MB Air 13" | F165: No | G165: Silver | H165: Retina | I165: 1.6GHz dual-core Intel Core i5 | J165: 8GB 2133MHz | K165: 256GB SSD storage | L165: Intel UHD Graphics 617 | M165: Standard US | N165: N/A | P165: =VLOOKUP(E165,'Cover Page'!$B$26:$F$44,2,FALSE) -> 12694943 | R165: =VLOOKUP(A165&"",'Material Master'!A:D,4,FALSE) -> # | S165: =VLOOKUP(A165&"",'Material Master'!A:E,5,FALSE) -> APPLE CPU
A166: 13478969 | B166: MREE2LL/A | C166: MB AIR 13 I5/1.6GHZ/8GB/128GB GOLD | D166: Yes | E166: MB Air 13" | F166: No | G166: Gold | H166: Retina | I166: 1.6GHz dual-core Intel Core i5 | J166: 8GB 2133MHz | K166: 128GB SSD storage | L166: Intel UHD Graphics 617 | M166: Standard US | N166: N/A | P166: =VLOOKUP(E166,'Cover Page'!$B$26:$F$44,2,FALSE) -> 12694943 | R166: =VLOOKUP(A166&"",'Material Master'!A:D,4,FALSE) -> # | S166: =VLOOKUP(A166&"",'Material Master'!A:E,5,FALSE) -> APPLE CPU
A167: 13478970 | B167: MREF2LL/A | C167: MB AIR 13 I5/1.6GHZ/8GB/256GB GOLD | D167: Yes | E167: MB Air 13" | F167: No | G167: Gold | H167: Retina | I167: 1.6GHz dual-core Intel Core i5 | J167: 8GB 2133MHz | K167: 256GB SSD storage | L167: Intel UHD Graphics 617 | M167: Standard US | N167: N/A | P167: =VLOOKUP(E167,'Cover Page'!$B$26:$F$44,2,FALSE) -> 12694943 | R167: =VLOOKUP(A167&"",'Material Master'!A:D,4,FALSE) -> # | S167: =VLOOKUP(A167&"",'Material Master'!A:E,5,FALSE) -> APPLE CPU
A168: 12695068 | B168: MQD32LL/A | C168: MB AIR 13 I5/1.8GHZ/8GB/128GB | D168: Yes | E168: MB Air 13" | F168: No | G168: Silver | H168: Non-Retina | I168: 1.8GHz dual-core Intel Core i5 | J168: 8GB 1600MHz | K168: 128GB Flash Storage | L168: Intel HD Graphics 6000 | M168: Standard US | N168: N/A | P168: =VLOOKUP(E168,'Cover Page'!$B$26:$F$44,2,FALSE) -> 12694943 | R168: =VLOOKUP(A168&"",'Material Master'!A:D,4,FALSE) -> # | S168: =VLOOKUP(A168&"",'Material Master'!A:E,5,FALSE) -> APPLE CPU
A169: 12695069 | B169: MQD42LL/A | C169: MB AIR 13.3/1.8GHZ/8GB/256GB-USA | D169: Yes | E169: MB Air 13" | F169: No | G169: Silver | H169: Non-Retina | I169: 1.8GHz dual-core Intel Core i5 | J169: 8GB 1600MHz | K169: 256GB Flash Storage | L169: Intel HD Graphics 6000 | M169: Standard US | N169: N/A | P169: =VLOOKUP(E169,'Cover Page'!$B$26:$F$44,2,FALSE) -> 12694943 | R169: =VLOOKUP(A169&"",'Material Master'!A:D,4,FALSE) -> 01 | S169: =VLOOKUP(A169&"",'Material Master'!A:E,5,FALSE) -> APPLE CPU
A170: 12698809 | B170: Z0UU0000S | C170: BTO MB AIR 13 I7/2.2GHZ 8GB 128GB | D170: Yes | E170: MB Air 13" | F170: No | G170: Silver | H170: Non-Retina | I170: 2.2GHz Intel Dual-Core Core i7 | J170: 8GB 1600MHz | K170: 128GB Flash Storage | L170: Intel HD Graphics 6000 | M170: Standard US | N170: N/A | P170: =VLOOKUP(E170,'Cover Page'!$B$26:$F$44,2,FALSE) -> 12694943 | R170: =VLOOKUP(A170&"",'Material Master'!A:D,4,FALSE) -> # | S170: =VLOOKUP(A170&"",'Material Master'!A:E,5,FALSE) -> APPLE CTO BOX
A171: 12698810 | B171: Z0UU0003V | C171: BTO MB AIR 13 I7/2.2GHZ 8GB 256GB | D171: Yes | E171: MB Air 13" | F171: No | G171: Silver | H171: Non-Retina | I171: 2.2GHz Intel Dual-Core Core i7 | J171: 8GB 1600MHz | K171: 256GB Flash Storage | L171: Intel HD Graphics 6000 | M171: Standard US | N171: N/A | P171: =VLOOKUP(E171,'Cover Page'!$B$26:$F$44,2,FALSE) -> 12694943 | R171: =VLOOKUP(A171&"",'Material Master'!A:D,4,FALSE) -> # | S171: =VLOOKUP(A171&"",'Material Master'!A:E,5,FALSE) -> APPLE CTO BOX
A172: 12698812 | B172: Z0UV0002F | C172: BTO MACBOOK AIR I7/2.2 13 8GB 512GB | D172: Yes | E172: MB Air 13" | F172: No | G172: Silver | H172: Non-Retina | I172: 2.2GHz Intel Dual-Core Core i7 | J172: 8GB 1600MHz | K172: 512GB Flash Storage | L172: Intel HD Graphics 6000 | M172: Standard US | N172: N/A | P172: =VLOOKUP(E172,'Cover Page'!$B$26:$F$44,2,FALSE) -> 12694943 | R172: =VLOOKUP(A172&"",'Material Master'!A:D,4,FALSE) -> 01 | S172: =VLOOKUP(A172&"",'Material Master'!A:E,5,FALSE) -> APPLE CTO BOX
A173: 13480270 | B173: Z0VD0003U | C173: BTO MB AIR 13 I5/1.6GHZ 16GB 128GB SPGR | D173: No | E173: MB Air 13" | F173: No | G173: Space Gray | H173: Retina | I173: 1.6GHz dual-core 8th-gen i5 processor | J173: 16GB 2133MHz | K173: 128GB SSD | L173: Intel UHD Graphics 617 | M173: Standard US | N173: N/A | P173: =VLOOKUP(E173,'Cover Page'!$B$26:$F$44,2,FALSE) -> 12694943 | R173: =VLOOKUP(A173&"",'Material Master'!A:D,4,FALSE) -> # | S173: =VLOOKUP(A173&"",'Material Master'!A:E,5,FALSE) -> APPLE CTO SYSTEMS
A174: 13480264 | B174: Z0VE0004W | C174: BTO MB AIR 13 I5/1.6GHZ 8GB 512GB SPGR | D174: Yes | E174: MB Air 13" | F174: No | G174: Space Gray | H174: Retina | I174: 1.6GHz dual-core 8th-gen i5 processor | J174: 8GB 2133MHz | K174: 512GB SSD | L174: Intel UHD Graphics 617 | M174: Standard US | N174: N/A | P174: =VLOOKUP(E174,'Cover Page'!$B$26:$F$44,2,FALSE) -> 12694943 | R174: =VLOOKUP(A174&"",'Material Master'!A:D,4,FALSE) -> # | S174: =VLOOKUP(A174&"",'Material Master'!A:E,5,FALSE) -> APPLE CTO BOX
A175: 13480321 | B175: Z0VE0005Y | C175: BTO MB AIR 13 I5/1.6GHZ 8GB 1.5TB SPGR | D175: No | E175: MB Air 13" | F175: No | G175: Space Gray | H175: Retina | I175: 1.6GHz dual-core 8th-gen i5 processor | J175: 8GB 2133MHz | K175: 1.5TB SSD | L175: Intel UHD Graphics 617 | M175: Standard US | N175: N/A | P175: =VLOOKUP(E175,'Cover Page'!$B$26:$F$44,2,FALSE) -> 12694943 | R175: =VLOOKUP(A175&"",'Material Master'!A:D,4,FALSE) -> # | S175: =VLOOKUP(A175&"",'Material Master'!A:E,5,FALSE) -> APPLE CTO SYSTEMS
A176: 13480265 | B176: Z0VE0004N | C176: BTO MB AIR 13 I5/1.6GHZ 16GB 256GB SPGR | D176: Yes | E176: MB Air 13" | F176: No | G176: Space Gray | H176: Retina | I176: 1.6GHz dual-core 8th-gen i5 processor | J176: 16GB 2133MHz | K176: 256GB SSD | L176: Intel UHD Graphics 617 | M176: Standard US | N176: N/A | P176: =VLOOKUP(E176,'Cover Page'!$B$26:$F$44,2,FALSE) -> 12694943 | R176: =VLOOKUP(A176&"",'Material Master'!A:D,4,FALSE) -> # | S176: =VLOOKUP(A176&"",'Material Master'!A:E,5,FALSE) -> APPLE CTO BOX
A177: 13480266 | B177: Z0VE0003W | C177: BTO MB AIR 13 I5/1.6GHZ 16GB 512GB SPGR | D177: Yes | E177: MB Air 13" | F177: No | G177: Space Gray | H177: Retina | I177: 1.6GHz dual-core 8th-gen i5 processor | J177: 16GB 2133MHz | K177: 512GB SSD | L177: Intel UHD Graphics 617 | M177: Standard US | N177: N/A | P177: =VLOOKUP(E177,'Cover Page'!$B$26:$F$44,2,FALSE) -> 12694943 | R177: =VLOOKUP(A177&"",'Material Master'!A:D,4,FALSE) -> # | S177: =VLOOKUP(A177&"",'Material Master'!A:E,5,FALSE) -> APPLE CTO BOX
A178: 13480341 | B178: Z0VE00048 | C178: BTO MB AIR 13 I5/1.6GHZ 16GB 1.5TB SPGR | D178: No | E178: MB Air 13" | F178: No | G178: Space Gray | H178: Retina | I178: 1.6GHz dual-core 8th-gen i5 processor | J178: 16GB 2133MHz | K178: 1.5TB SSD | L178: Intel UHD Graphics 617 | M178: Standard US | N178: N/A | P178: =VLOOKUP(E178,'Cover Page'!$B$26:$F$44,2,FALSE) -> 12694943 | R178: =VLOOKUP(A178&"",'Material Master'!A:D,4,FALSE) -> # | S178: =VLOOKUP(A178&"",'Material Master'!A:E,5,FALSE) -> APPLE CTO SYSTEMS
A179: 13480342 | B179: Z0VG0004M | C179: BTO MB AIR 13 I5/1.6GHZ 16GB 128GB SLVR | D179: No | E179: MB Air 13" | F179: No | G179: Silver | H179: Retina | I179: 1.6GHz dual-core 8th-gen i5 processor | J179: 16GB 2133MHz | K179: 128GB SSD | L179: Intel UHD Graphics 617 | M179: Standard US | N179: N/A | P179: =VLOOKUP(E179,'Cover Page'!$B$26:$F$44,2,FALSE) -> 12694943 | R179: =VLOOKUP(A179&"",'Material Master'!A:D,4,FALSE) -> # | S179: =VLOOKUP(A179&"",'Material Master'!A:E,5,FALSE) -> APPLE CTO SYSTEMS
A180: 13480267 | B180: Z0VH00043 | C180: BTO MB AIR 13 I5/1.6GHZ 8GB 512GB SLVR | D180: Yes | E180: MB Air 13" | F180: No | G180: Silver | H180: Retina | I180: 1.6GHz dual-core 8th-gen i5 processor | J180: 8GB 2133MHz | K180: 512GB SSD | L180: Intel UHD Graphics 617 | M180: Standard US | N180: N/A | P180: =VLOOKUP(E180,'Cover Page'!$B$26:$F$44,2,FALSE) -> 12694943 | R180: =VLOOKUP(A180&"",'Material Master'!A:D,4,FALSE) -> # | S180: =VLOOKUP(A180&"",'Material Master'!A:E,5,FALSE) -> APPLE CTO BOX
A181: 13480343 | B181: Z0VH0006C | C181: BTO MB AIR 13 I5/1.6GHZ 8GB 1.5TB SLVR | D181: No | E181: MB Air 13" | F181: No | G181: Silver | H181: Retina | I181: 1.6GHz dual-core 8th-gen i5 processor | J181: 8GB 2133MHz | K181: 1.5TB SSD | L181: Intel UHD Graphics 617 | M181: Standard US | N181: N/A | P181: =VLOOKUP(E181,'Cover Page'!$B$26:$F$44,2,FALSE) -> 12694943 | R181: =VLOOKUP(A181&"",'Material Master'!A:D,4,FALSE) -> # | S181: =VLOOKUP(A181&"",'Material Master'!A:E,5,FALSE) -> APPLE CTO SYSTEMS
A182: 13480268 | B182: Z0VH0004P | C182: BTO MB AIR 13 I5/1.6GHZ 16GB 256GB SLVR | D182: Yes | E182: MB Air 13" | F182: No | G182: Silver | H182: Retina | I182: 1.6GHz dual-core 8th-gen i5 processor | J182: 16GB 2133MHz | K182: 256GB SSD | L182: Intel UHD Graphics 617 | M182: Standard US | N182: N/A | P182: =VLOOKUP(E182,'Cover Page'!$B$26:$F$44,2,FALSE) -> 12694943 | R182: =VLOOKUP(A182&"",'Material Master'!A:D,4,FALSE) -> # | S182: =VLOOKUP(A182&"",'Material Master'!A:E,5,FALSE) -> APPLE CTO BOX
A183: 13480269 | B183: Z0VH0004F | C183: BTO MB AIR 13 I5/1.6GHZ 16GB 512GB SLVR | D183: Yes | E183: MB Air 13" | F183: No | G183: Silver | H183: Retina | I183: 1.6GHz dual-core 8th-gen i5 processor | J183: 16GB 2133MHz | K183: 512GB SSD | L183: Intel UHD Graphics 617 | M183: Standard US | N183: N/A | P183: =VLOOKUP(E183,'Cover Page'!$B$26:$F$44,2,FALSE) -> 12694943 | R183: =VLOOKUP(A183&"",'Material Master'!A:D,4,FALSE) -> # | S183: =VLOOKUP(A183&"",'Material Master'!A:E,5,FALSE) -> APPLE CTO BOX
A184: 13480344 | B184: Z0VH0004A | C184: BTO MB AIR 13 I5/1.6GHZ 16GB 1.5TB SLVR | D184: No | E184: MB Air 13" | F184: No | G184: Silver | H184: Retina | I184: 1.6GHz dual-core 8th-gen i5 processor | J184: 16GB 2133MHz | K184: 1.5TB SSD | L184: Intel UHD Graphics 617 | M184: Standard US | N184: N/A | P184: =VLOOKUP(E184,'Cover Page'!$B$26:$F$44,2,FALSE) -> 12694943 | R184: =VLOOKUP(A184&"",'Material Master'!A:D,4,FALSE) -> # | S184: =VLOOKUP(A184&"",'Material Master'!A:E,5,FALSE) -> APPLE CTO SYSTEMS
A185: 13480345 | B185: Z0VJ0004D | C185: BTO MB AIR 13 I5/1.6GHZ 16GB 128GB GOLD | D185: No | E185: MB Air 13" | F185: No | G185: Gold | H185: Retina | I185: 1.6GHz dual-core 8th-gen i5 processor | J185: 16GB 2133MHz | K185: 128GB SSD | L185: Intel UHD Graphics 617 | M185: Standard US | N185: N/A | P185: =VLOOKUP(E185,'Cover Page'!$B$26:$F$44,2,FALSE) -> 12694943 | R185: =VLOOKUP(A185&"",'Material Master'!A:D,4,FALSE) -> # | S185: =VLOOKUP(A185&"",'Material Master'!A:E,5,FALSE) -> APPLE CTO SYSTEMS
A186: 13480346 | B186: Z0VK00034 | C186: BTO MB AIR 13 I5/1.6GHZ 8GB 512GB GOLD | D186: No | E186: MB Air 13" | F186: No | G186: Gold | H186: Retina | I186: 1.6GHz dual-core 8th-gen i5 processor | J186: 8GB 2133MHz | K186: 512GB SSD | L186: Intel UHD Graphics 617 | M186: Standard US | N186: N/A | P186: =VLOOKUP(E186,'Cover Page'!$B$26:$F$44,2,FALSE) -> 12694943 | R186: =VLOOKUP(A186&"",'Material Master'!A:D,4,FALSE) -> # | S186: =VLOOKUP(A186&"",'Material Master'!A:E,5,FALSE) -> APPLE CTO SYSTEMS
A187: 13480347 | B187: Z0VK00045 | C187: BTO MB AIR 13 I5/1.6GHZ 8GB 1.5TB GOLD | D187: No | E187: MB Air 13" | F187: No | G187: Gold | H187: Retina | I187: 1.6GHz dual-core 8th-gen i5 processor | J187: 8GB 2133MHz | K187: 1.5TB SSD | L187: Intel UHD Graphics 617 | M187: Standard US | N187: N/A | P187: =VLOOKUP(E187,'Cover Page'!$B$26:$F$44,2,FALSE) -> 12694943 | R187: =VLOOKUP(A187&"",'Material Master'!A:D,4,FALSE) -> # | S187: =VLOOKUP(A187&"",'Material Master'!A:E,5,FALSE) -> APPLE CTO SYSTEMS
A188: 13480348 | B188: Z0VK00036 | C188: BTO MB AIR 13 I5/1.6GHZ 16GB 256GB GOLD | D188: No | E188: MB Air 13" | F188: No | G188: Gold | H188: Retina | I188: 1.6GHz dual-core 8th-gen i5 processor | J188: 16GB 2133MHz | K188: 256GB SSD | L188: Intel UHD Graphics 617 | M188: Standard US | N188: N/A | P188: =VLOOKUP(E188,'Cover Page'!$B$26:$F$44,2,FALSE) -> 12694943 | R188: =VLOOKUP(A188&"",'Material Master'!A:D,4,FALSE) -> # | S188: =VLOOKUP(A188&"",'Material Master'!A:E,5,FALSE) -> APPLE CTO SYSTEMS
A189: 13480349 | B189: Z0VK0003C | C189: BTO MB AIR 13 I5/1.6GHZ 16GB 512GB GOLD | D189: No | E189: MB Air 13" | F189: No | G189: Gold | H189: Retina | I189: 1.6GHz dual-core 8th-gen i5 processor | J189: 16GB 2133MHz | K189: 512GB SSD | L189: Intel UHD Graphics 617 | M189: Standard US | N189: N/A | P189: =VLOOKUP(E189,'Cover Page'!$B$26:$F$44,2,FALSE) -> 12694943 | R189: =VLOOKUP(A189&"",'Material Master'!A:D,4,FALSE) -> # | S189: =VLOOKUP(A189&"",'Material Master'!A:E,5,FALSE) -> APPLE CTO SYSTEMS
A190: 13480350 | B190: Z0VK0002Y | C190: BTO MB AIR 13 I5/1.6GHZ 16GB 1.5TB GOLD | D190: No | E190: MB Air 13" | F190: No | G190: Gold | H190: Retina | I190: 1.6GHz dual-core 8th-gen i5 processor | J190: 16GB 2133MHz | K190: 1.5TB SSD | L190: Intel UHD Graphics 617 | M190: Standard US | N190: N/A | P190: =VLOOKUP(E190,'Cover Page'!$B$26:$F$44,2,FALSE) -> 12694943 | R190: =VLOOKUP(A190&"",'Material Master'!A:D,4,FALSE) -> # | S190: =VLOOKUP(A190&"",'Material Master'!A:E,5,FALSE) -> APPLE CTO SYSTEMS
A191: 12695082 | B191: MPXT2LL/A | C191: MBP 13 2.3GHZ DC/8GB/256GB-USA SPGR | D191: Yes | E191: MBP 13" | F191: No | G191: Space Gray | H191: Retina | I191: 2.3GHz dual-core Intel Core i5 | J191: 8GB 2133MHz | K191: 256GB Flash Storage | L191: Intel Iris Plus Graphics 640 | M191: Standard US | N191: N/A | P191: =VLOOKUP(E191,'Cover Page'!$B$26:$F$44,2,FALSE) -> 12694944 | R191: =VLOOKUP(A191&"",'Material Master'!A:D,4,FALSE) -> # | S191: =VLOOKUP(A191&"",'Material Master'!A:E,5,FALSE) -> APPLE CPU
A192: 12695081 | B192: MPXR2LL/A | C192: MBP 13 2.3GHZ DC/8GB/128GB-USA SLVR | D192: Yes | E192: MBP 13" | F192: No | G192: Silver | H192: Retina | I192: 2.3GHz dual-core Intel Core i5 | J192: 8GB 2133MHz | K192: 128GB Flash Storage | L192: Intel Iris Plus Graphics 640 | M192: Standard US | N192: N/A | P192: =VLOOKUP(E192,'Cover Page'!$B$26:$F$44,2,FALSE) -> 12694944 | R192: =VLOOKUP(A192&"",'Material Master'!A:D,4,FALSE) -> # | S192: =VLOOKUP(A192&"",'Material Master'!A:E,5,FALSE) -> APPLE CPU
A193: 12695080 | B193: MPXQ2LL/A | C193: MBP 13 2.3GHZ DC/8GB/128GB-USA SPGR | D193: Yes | E193: MBP 13" | F193: No | G193: Space Gray | H193: Retina | I193: 2.3GHz dual-core Intel Core i5 | J193: 8GB 2133MHz | K193: 128GB Flash Storage | L193: Intel Iris Plus Graphics 640 | M193: Standard US | N193: N/A | P193: =VLOOKUP(E193,'Cover Page'!$B$26:$F$44,2,FALSE) -> 12694944 | R193: =VLOOKUP(A193&"",'Material Master'!A:D,4,FALSE) -> # | S193: =VLOOKUP(A193&"",'Material Master'!A:E,5,FALSE) -> APPLE CPU
A194: 12695083 | B194: MPXU2LL/A | C194: MBP 13 2.3GHZ DC/8GB/256GB-USA SLVR | D194: Yes | E194: MBP 13" | F194: No | G194: Silver | H194: Retina | I194: 2.3GHz dual-core Intel Core i5 | J194: 8GB 2133MHz | K194: 256GB Flash Storage | L194: Intel Iris Plus Graphics 640 | M194: Standard US | N194: N/A | P194: =VLOOKUP(E194,'Cover Page'!$B$26:$F$44,2,FALSE) -> 12694944 | R194: =VLOOKUP(A194&"",'Material Master'!A:D,4,FALSE) -> # | S194: =VLOOKUP(A194&"",'Material Master'!A:E,5,FALSE) -> APPLE CPU
A195: 12707476 | B195: Z0UK00011 | C195: BTO MBP 13 I5/2.3 DC 16GB 256GB 640 SPGR | D195: Yes | E195: MBP 13" | F195: No | G195: Space Gray | H195: Retina | I195: 2.3GHz dual-core Intel Core i5 | J195: 16GB 2133MHz | K195: 256GB Flash Storage | L195: Intel Iris Plus Graphics 640 | M195: Standard US | N195: N/A | P195: =VLOOKUP(E195,'Cover Page'!$B$26:$F$44,2,FALSE) -> 12694944 | R195: =VLOOKUP(A195&"",'Material Master'!A:D,4,FALSE) -> # | S195: =VLOOKUP(A195&"",'Material Master'!A:E,5,FALSE) -> APPLE CTO BOX
A196: 12707475 | B196: Z0UL0000C | C196: BTO MBP 13 I5/2.3 DC 16GB 256GB 640 SLVR | D196: Yes | E196: MBP 13" | F196: No | G196: Silver | H196: Retina | I196: 2.3GHz dual-core Intel Core i5 | J196: 16GB 2133MHz | K196: 256GB Flash Storage | L196: Intel Iris Plus Graphics 640 | M196: Standard US | N196: N/A | P196: =VLOOKUP(E196,'Cover Page'!$B$26:$F$44,2,FALSE) -> 12694944 | R196: =VLOOKUP(A196&"",'Material Master'!A:D,4,FALSE) -> # | S196: =VLOOKUP(A196&"",'Material Master'!A:E,5,FALSE) -> APPLE CTO BOX
A197: 13360665 | B197: MR9Q2LL/A | C197: MBP 13TCH 2.3GHZ QC/8GB/256GB-USA SPGR | D197: Yes | E197: MBP 13" | F197: Yes | G197: Space Gray | H197: Retina True Tone | I197: 2.3GHz quad-core Intel Core i5 | J197: 8GB 2133MHz | K197: 256GB SSD Storage | L197: Intel Iris Plus Graphics 655 | M197: Standard US | N197: N/A | P197: =VLOOKUP(E197,'Cover Page'!$B$26:$F$44,2,FALSE) -> 12694944 | R197: =VLOOKUP(A197&"",'Material Master'!A:D,4,FALSE) -> # | S197: =VLOOKUP(A197&"",'Material Master'!A:E,5,FALSE) -> APPLE CPU
A198: 13360670 | B198: MR9R2LL/A | C198: MBP 13TCH 2.3GHZ QC/8GB/512GB-USA SPGR | D198: Yes | E198: MBP 13" | F198: Yes | G198: Space Gray | H198: Retina True Tone | I198: 2.3GHz quad-core Intel Core i5 | J198: 8GB 2133MHz | K198: 512GB SSD Storage | L198: Intel Iris Plus Graphics 655 | M198: Standard US | N198: N/A | P198: =VLOOKUP(E198,'Cover Page'!$B$26:$F$44,2,FALSE) -> 12694944 | R198: =VLOOKUP(A198&"",'Material Master'!A:D,4,FALSE) -> # | S198: =VLOOKUP(A198&"",'Material Master'!A:E,5,FALSE) -> APPLE CPU
A199: 13360667 | B199: MR9U2LL/A | C199: MBP 13TCH 2.3GHZ QC/8GB/256GB-USA SLVR | D199: Yes | E199: MBP 13" | F199: Yes | G199: Silver | H199: Retina True Tone | I199: 2.3GHz quad-core Intel Core i5 | J199: 8GB 2133MHz | K199: 256GB SSD Storage | L199: Intel Iris Plus Graphics 655 | M199: Standard US | N199: N/A | P199: =VLOOKUP(E199,'Cover Page'!$B$26:$F$44,2,FALSE) -> 12694944 | R199: =VLOOKUP(A199&"",'Material Master'!A:D,4,FALSE) -> # | S199: =VLOOKUP(A199&"",'Material Master'!A:E,5,FALSE) -> APPLE CPU
A200: 13360668 | B200: MR9V2LL/A | C200: MBP 13TCH 2.3GHZ QC/8GB/512GB-USA SLVR | D200: Yes | E200: MBP 13" | F200: Yes | G200: Silver | H200: Retina True Tone | I200: 2.3GHz quad-core Intel Core i5 | J200: 8GB 2133MHz | K200: 512GB SSD Storage | L200: Intel Iris Plus Graphics 655 | M200: Standard US | N200: N/A | P200: =VLOOKUP(E200,'Cover Page'!$B$26:$F$44,2,FALSE) -> 12694944 | R200: =VLOOKUP(A200&"",'Material Master'!A:D,4,FALSE) -> # | S200: =VLOOKUP(A200&"",'Material Master'!A:E,5,FALSE) -> APPLE CPU
A201: 13364600 | B201: Z0V90001H | C201: BTO MBP 13TCH I5/2.3 16GB 256GB 655 SLVR | D201: Yes | E201: MBP 13" | F201: Yes | G201: Silver | H201: Retina True Tone | I201: 2.3GHz quad-core Intel Core i5 | J201: 16GB 2133MHz | K201: 256GB SSD Storage | L201: Intel Iris Plus Graphics 655 | M201: Standard US | N201: N/A | P201: =VLOOKUP(E201,'Cover Page'!$B$26:$F$44,2,FALSE) -> 12694944 | R201: =VLOOKUP(A201&"",'Material Master'!A:D,4,FALSE) -> # | S201: =VLOOKUP(A201&"",'Material Master'!A:E,5,FALSE) -> APPLE CTO BOX
A202: 13364941 | B202: Z0V70006T | C202: BTO MBP 13TCH I5/2.3 16GB 256GB 655 SPGR | D202: Yes | E202: MBP 13" | F202: Yes | G202: Space Gray | H202: Retina True Tone | I202: 2.3GHz quad-core Intel Core i5 | J202: 16GB 2133MHz | K202: 256GB SSD Storage | L202: Intel Iris Plus Graphics 655 | M202: Standard US | N202: N/A | P202: =VLOOKUP(E202,'Cover Page'!$B$26:$F$44,2,FALSE) -> 12694944 | R202: =VLOOKUP(A202&"",'Material Master'!A:D,4,FALSE) -> # | S202: =VLOOKUP(A202&"",'Material Master'!A:E,5,FALSE) -> APPLE CTO BOX
A203: 13364942 | B203: Z0V90005Q | C203: BTO MBP 13TCH I5/2.3 16GB 512GB 655 SLVR | D203: Yes | E203: MBP 13" | F203: Yes | G203: Silver | H203: Retina True Tone | I203: 2.3GHz quad-core Intel Core i5 | J203: 16GB 2133MHz | K203: 512GB SSD Storage | L203: Intel Iris Plus Graphics 655 | M203: Standard US | N203: N/A | P203: =VLOOKUP(E203,'Cover Page'!$B$26:$F$44,2,FALSE) -> 12694944 | R203: =VLOOKUP(A203&"",'Material Master'!A:D,4,FALSE) -> # | S203: =VLOOKUP(A203&"",'Material Master'!A:E,5,FALSE) -> APPLE CTO BOX
A204: 13364943 | B204: Z0V70006E | C204: BTO MBP 13TCH I5/2.3 16GB 512GB 655 SPGR | D204: Yes | E204: MBP 13" | F204: Yes | G204: Space Gray | H204: Retina True Tone | I204: 2.3GHz quad-core Intel Core i5 | J204: 16GB 2133MHz | K204: 512GB SSD Storage | L204: Intel Iris Plus Graphics 655 | M204: Standard US | N204: N/A | P204: =VLOOKUP(E204,'Cover Page'!$B$26:$F$44,2,FALSE) -> 12694944 | R204: =VLOOKUP(A204&"",'Material Master'!A:D,4,FALSE) -> # | S204: =VLOOKUP(A204&"",'Material Master'!A:E,5,FALSE) -> APPLE CTO BOX
A205: 13364944 | B205: Z0V90001B | C205: BTO MBP 13TCH I7/2.7 16GB 1TB 655 SLVR | D205: Yes | E205: MBP 13" | F205: Yes | G205: Silver | H205: Retina True Tone | I205: 2.7GHz quad-core Intel Core i7 | J205: 16GB 2133MHz | K205: 1TB Pcle-based SSD | L205: Intel Iris Plus Graphics 655 | M205: Standard US | N205: N/A | P205: =VLOOKUP(E205,'Cover Page'!$B$26:$F$44,2,FALSE) -> 12694944 | R205: =VLOOKUP(A205&"",'Material Master'!A:D,4,FALSE) -> # | S205: =VLOOKUP(A205&"",'Material Master'!A:E,5,FALSE) -> APPLE CTO BOX
A206: 13364945 | B206: Z0V70006F | C206: BTO MBP 13TCH I7/2.7 16GB 1TB 655 SPGR | D206: Yes | E206: MBP 13" | F206: Yes | G206: Space Gray | H206: Retina True Tone | I206: 2.7GHz quad-core Intel Core i7 | J206: 16GB 2133MHz | K206: 1TB Pcle-based SSD | L206: Intel Iris Plus Graphics 655 | M206: Standard US | N206: N/A | P206: =VLOOKUP(E206,'Cover Page'!$B$26:$F$44,2,FALSE) -> 12694944 | R206: =VLOOKUP(A206&"",'Material Master'!A:D,4,FALSE) -> # | S206: =VLOOKUP(A206&"",'Material Master'!A:E,5,FALSE) -> APPLE CTO BOX
A207: 13364946 | B207: Z0V70005U | C207: BTO MBP 13TCH I7/2.7 16GB 256GB 655 SPGR | D207: Yes | E207: MBP 13" | F207: Yes | G207: Space Gray | H207: Retina True Tone | I207: 2.7GHz quad-core Intel Core i7 | J207: 16GB 2133MHz | K207: 256GB SSD Storage | L207: Intel Iris Plus Graphics 655 | M207: Standard US | N207: N/A | P207: =VLOOKUP(E207,'Cover Page'!$B$26:$F$44,2,FALSE) -> 12694944 | R207: =VLOOKUP(A207&"",'Material Master'!A:D,4,FALSE) -> # | S207: =VLOOKUP(A207&"",'Material Master'!A:E,5,FALSE) -> APPLE CTO BOX
A208: 13364599 | B208: Z0V90005G | C208: BTO MBP 13TCH I7/2.7 16GB 512GB 655 SLVR | D208: Yes | E208: MBP 13" | F208: Yes | G208: Silver | H208: Retina True Tone | I208: 2.7GHz quad-core Intel Core i7 | J208: 16GB 2133MHz | K208: 512GB Pcle-based SSD | L208: Intel Iris Plus Graphics 655 | M208: Standard US | N208: N/A | P208: =VLOOKUP(E208,'Cover Page'!$B$26:$F$44,2,FALSE) -> 12694944 | R208: =VLOOKUP(A208&"",'Material Master'!A:D,4,FALSE) -> # | S208: =VLOOKUP(A208&"",'Material Master'!A:E,5,FALSE) -> APPLE CTO BOX
A209: 13364947 | B209: Z0V70002G | C209: BTO MBP 13TCH I7/2.7 16GB 512GB 655 SPGR | D209: Yes | E209: MBP 13" | F209: Yes | G209: Space Gray | H209: Retina True Tone | I209: 2.7GHz quad-core Intel Core i7 | J209: 16GB 2133MHz | K209: 512GB Pcle-based SSD | L209: Intel Iris Plus Graphics 655 | M209: Standard US | N209: N/A | P209: =VLOOKUP(E209,'Cover Page'!$B$26:$F$44,2,FALSE) -> 12694944 | R209: =VLOOKUP(A209&"",'Material Master'!A:D,4,FALSE) -> # | S209: =VLOOKUP(A209&"",'Material Master'!A:E,5,FALSE) -> APPLE CTO BOX
A210: 11787654 | B210: Z0RF00003 | C210: CTO MACBOOK PRO I7/2.5 15 16GB 512GB RET | D210: =IF(S210="APPLE CPU","Yes",IF(S210="APPLE CTO BOX","Yes","No")) -> Yes | E210: MBP 15" | F210: No | G210: Silver | H210: Retina | I210: 2.5GHz Intel Quad-core Core i7 | J210: 16GB 1600MHz | K210: 512GB PCIe-based Flash Storage | L210: Intel Iris Pro Graphics | M210: Standard US | N210: N/A | P210: =VLOOKUP(E210,'Cover Page'!$B$26:$F$44,2,FALSE) -> 12694942 | R210: =VLOOKUP(A210&"",'Material Master'!A:D,4,FALSE) -> 01 | S210: =VLOOKUP(A210&"",'Material Master'!A:E,5,FALSE) -> APPLE CTO BOX
A211: 12051700 | B211: Z0RF0004A | C211: CTO MB PRO I7/2.8 15 16GB 512GB RET | D211: Yes | E211: MBP 15" | F211: No | G211: Silver | H211: Retina | I211: 2.8GHz Intel Quad-core Core i7 | J211: 16GB 1600MHz | K211: 512GB PCIe-based Flash Storage | L211: Intel Iris Pro Graphics | M211: Standard US | N211: N/A | P211: =VLOOKUP(E211,'Cover Page'!$B$26:$F$44,2,FALSE) -> 12694942 | R211: =VLOOKUP(A211&"",'Material Master'!A:D,4,FALSE) -> 01 | S211: =VLOOKUP(A211&"",'Material Master'!A:E,5,FALSE) -> APPLE CTO BOX
A212: 12698821 | B212: Z0UB0002C | C212: BTO MBP I7/2.8 15TCH 16GB 555 512GB SPGR | D212: Yes | E212: MBP 15" | F212: Yes | G212: Space Gray | H212: Retina | I212: 2.8GHz quad-core Intel Core i7 | J212: 16GB 2133MHz | K212: 512GB Flash Storage | L212: Radeon Pro 555 with 2GB memory | M212: Standard US | N212: N/A | P212: =VLOOKUP(E212,'Cover Page'!$B$26:$F$44,2,FALSE) -> 12694942 | R212: =VLOOKUP(A212&"",'Material Master'!A:D,4,FALSE) -> 01 | S212: =VLOOKUP(A212&"",'Material Master'!A:E,5,FALSE) -> APPLE CTO BOX
... 91 more rows

Sheet iPad
D1: Model | E1: Color | F1: Storage | G1: Cellular
A7: *To view our current inventory levels, please visit shop.techdata.com
A15: *Red text denotes EOL product
A16: Tech Data Part Number | B16: Apple Part Number | C16: Description | D16: Model | E16: Color | F16: Storage | G16: Cellular | H16: AppleCare
A17: 13478934 | B17: MTXN2LL/A | C17: IPAD PRO 11IN WLS 64GB SPACE GRY | D17: iPad Pro 11 | E17: Space Gray | F17: 64GB | G17: No | H17: =VLOOKUP(D17,'Cover Page'!$B$26:$C$44,2,FALSE) -> 13162262 | J17: =VLOOKUP(A17&"",'Material Master'!A:D,4,FALSE) -> 40
A18: 13478935 | B18: MTXP2LL/A | C18: IPAD PRO 11IN WLS 64GB SLVR | D18: iPad Pro 11 | E18: Silver | F18: 64GB | G18: No | H18: =VLOOKUP(D18,'Cover Page'!$B$26:$C$44,2,FALSE) -> 13162262 | J18: =VLOOKUP(A18&"",'Material Master'!A:D,4,FALSE) -> #
A19: 13478936 | B19: MTXQ2LL/A | C19: IPAD PRO 11IN WLS 256GB SPACE GRY | D19: iPad Pro 11 | E19: Space Gray | F19: 256GB | G19: No | H19: =VLOOKUP(D19,'Cover Page'!$B$26:$C$44,2,FALSE) -> 13162262 | J19: =VLOOKUP(A19&"",'Material Master'!A:D,4,FALSE) -> #
A20: 13478937 | B20: MTXR2LL/A | C20: IPAD PRO 11IN WLS 256GB SLVR | D20: iPad Pro 11 | E20: Silver | F20: 256GB | G20: No | H20: =VLOOKUP(D20,'Cover Page'!$B$26:$C$44,2,FALSE) -> 13162262 | J20: =VLOOKUP(A20&"",'Material Master'!A:D,4,FALSE) -> #
A21: 13478938 | B21: MTXT2LL/A | C21: IPAD PRO 11IN WLS 512GB SPACE GRY | D21: iPad Pro 11 | E21: Space Gray | F21: 512GB | G21: No | H21: =VLOOKUP(D21,'Cover Page'!$B$26:$C$44,2,FALSE) -> 13162262 | J21: =VLOOKUP(A21&"",'Material Master'!A:D,4,FALSE) -> #
A22: 13478939 | B22: MTXU2LL/A | C22: IPAD PRO 11IN WLS 512GB SLVR | D22: iPad Pro 11 | E22: Silver | F22: 512GB | G22: No | H22: =VLOOKUP(D22,'Cover Page'!$B$26:$C$44,2,FALSE) -> 13162262 | J22: =VLOOKUP(A22&"",'Material Master'!A:D,4,FALSE) -> #
A23: 13478940 | B23: MTXV2LL/A | C23: IPAD PRO 11IN WLS 1TB SPACE GRY | D23: iPad Pro 11 | E23: Space Gray | F23: 1TB | G23: No | H23: =VLOOKUP(D23,'Cover Page'!$B$26:$C$44,2,FALSE) -> 13162262 | J23: =VLOOKUP(A23&"",'Material Master'!A:D,4,FALSE) -> 40
A24: 13478941 | B24: MTXW2LL/A | C24: IPAD PRO 11IN WLS 1TB SLVR | D24: iPad Pro 11 | E24: Silver | F24: 1TB | G24: No | H24: =VLOOKUP(D24,'Cover Page'!$B$26:$C$44,2,FALSE) -> 13162262 | J24: =VLOOKUP(A24&"",'Material Master'!A:D,4,FALSE) -> 40
A25: 13478942 | B25: MU0T2LL/A | C25: IPAD PRO 11IN WLS + CELL 64GB SPACE GRY | D25: iPad Pro 11 | E25: Space Gray | F25: 64GB | G25: Yes | H25: =VLOOKUP(D25,'Cover Page'!$B$26:$C$44,2,FALSE) -> 13162262 | J25: =VLOOKUP(A25&"",'Material Master'!A:D,4,FALSE) -> #
A26: 13478943 | B26: MU0Y2LL/A | C26: IPAD PRO 11IN WLS + CELL 64GB SLVR | D26: iPad Pro 11 | E26: Silver | F26: 64GB | G26: Yes | H26: =VLOOKUP(D26,'Cover Page'!$B$26:$C$44,2,FALSE) -> 13162262 | J26: =VLOOKUP(A26&"",'Material Master'!A:D,4,FALSE) -> #
A27: 13478925 | B27: MU162LL/A | C27: IPAD PRO 11IN WLS + CELL 256GB SPACE GRY | D27: iPad Pro 11 | E27: Space Gray | F27: 256GB | G27: Yes | H27: =VLOOKUP(D27,'Cover Page'!$B$26:$C$44,2,FALSE) -> 13162262 | J27: =VLOOKUP(A27&"",'Material Master'!A:D,4,FALSE) -> #
A28: 13478926 | B28: MU1D2LL/A | C28: IPAD PRO 11IN WLS + CELL 256GB SLVR | D28: iPad Pro 11 | E28: Silver | F28: 256GB | G28: Yes | H28: =VLOOKUP(D28,'Cover Page'!$B$26:$C$44,2,FALSE) -> 13162262 | J28: =VLOOKUP(A28&"",'Material Master'!A:D,4,FALSE) -> 40
A29: 13478927 | B29: MU1K2LL/A | C29: IPAD PRO 11IN WLS + CELL 512GB SPACE GRY | D29: iPad Pro 11 | E29: Space Gray | F29: 512GB | G29: Yes | H29: =VLOOKUP(D29,'Cover Page'!$B$26:$C$44,2,FALSE) -> 13162262 | J29: =VLOOKUP(A29&"",'Material Master'!A:D,4,FALSE) -> #
A30: 13478928 | B30: MU1U2LL/A | C30: IPAD PRO 11IN WLS + CELL 512GB SLVR | D30: iPad Pro 11 | E30: Silver | F30: 512GB | G30: Yes | H30: =VLOOKUP(D30,'Cover Page'!$B$26:$C$44,2,FALSE) -> 13162262 | J30: =VLOOKUP(A30&"",'Material Master'!A:D,4,FALSE) -> 40
A31: 13478929 | B31: MU202LL/A | C31: IPAD PRO 11IN WLS + CELL 1TB SPACE GRY | D31: iPad Pro 11 | E31: Space Gray | F31: 1TB | G31: Yes | H31: =VLOOKUP(D31,'Cover Page'!$B$26:$C$44,2,FALSE) -> 13162262 | J31: =VLOOKUP(A31&"",'Material Master'!A:D,4,FALSE) -> 40
A32: 13478930 | B32: MU282LL/A | C32: IPAD PRO 11IN WLS + CELL 1TB SLVR | D32: iPad Pro 11 | E32: Silver | F32: 1TB | G32: Yes | H32: =VLOOKUP(D32,'Cover Page'!$B$26:$C$44,2,FALSE) -> 13162262 | J32: =VLOOKUP(A32&"",'Material Master'!A:D,4,FALSE) -> 40
A33: 13478948 | B33: MTEL2LL/A | C33: IPAD PRO 12.9IN WLS 64GB SPACE GRY | D33: iPad Pro 12.9 | E33: Space Gray | F33: 64GB | G33: No | H33: =VLOOKUP(D33,'Cover Page'!$B$26:$C$44,2,FALSE) -> 13162262 | J33: =VLOOKUP(A33&"",'Material Master'!A:D,4,FALSE) -> 40
A34: 13478949 | B34: MTEM2LL/A | C34: IPAD PRO 12.9IN WLS 64GB SLVR | D34: iPad Pro 12.9 | E34: Silver | F34: 64GB | G34: No | H34: =VLOOKUP(D34,'Cover Page'!$B$26:$C$44,2,FALSE) -> 13162262 | J34: =VLOOKUP(A34&"",'Material Master'!A:D,4,FALSE) -> 40
A35: 13478950 | B35: MTFL2LL/A | C35: IPAD PRO 12.9IN WLS 256GB SPACE GRY | D35: iPad Pro 12.9 | E35: Space Gray | F35: 256GB | G35: No | H35: =VLOOKUP(D35,'Cover Page'!$B$26:$C$44,2,FALSE) -> 13162262 | J35: =VLOOKUP(A35&"",'Material Master'!A:D,4,FALSE) -> 40
A36: 13478951 | B36: MTFN2LL/A | C36: IPAD PRO 12.9IN WLS 256GB SLVR | D36: iPad Pro 12.9 | E36: Silver | F36: 256GB | G36: No | H36: =VLOOKUP(D36,'Cover Page'!$B$26:$C$44,2,FALSE) -> 13162262 | J36: =VLOOKUP(A36&"",'Material Master'!A:D,4,FALSE) -> #
A37: 13478952 | B37: MTFP2LL/A | C37: IPAD PRO 12.9IN WLS 512GB SPACE GRY | D37: iPad Pro 12.9 | E37: Space Gray | F37: 512GB | G37: No | H37: =VLOOKUP(D37,'Cover Page'!$B$26:$C$44,2,FALSE) -> 13162262 | J37: =VLOOKUP(A37&"",'Material Master'!A:D,4,FALSE) -> #
A38: 13478953 | B38: MTFQ2LL/A | C38: IPAD PRO 12.9IN WLS 512GB SLVR | D38: iPad Pro 12.9 | E38: Silver | F38: 512GB | G38: No | H38: =VLOOKUP(D38,'Cover Page'!$B$26:$C$44,2,FALSE) -> 13162262 | J38: =VLOOKUP(A38&"",'Material Master'!A:D,4,FALSE) -> #
A39: 13478766 | B39: MTFR2LL/A | C39: IPAD PRO 12.9IN WLS 1TB SPACE GRY | D39: iPad Pro 12.9 | E39: Space Gray | F39: 1TB | G39: No | H39: =VLOOKUP(D39,'Cover Page'!$B$26:$C$44,2,FALSE) -> 13162262 | J39: =VLOOKUP(A39&"",'Material Master'!A:D,4,FALSE) -> 40
A40: 13478767 | B40: MTFT2LL/A | C40: IPAD PRO 12.9IN WLS 1TB SLVR | D40: iPad Pro 12.9 | E40: Silver | F40: 1TB | G40: No | H40: =VLOOKUP(D40,'Cover Page'!$B$26:$C$44,2,FALSE) -> 13162262 | J40: =VLOOKUP(A40&"",'Material Master'!A:D,4,FALSE) -> 40
A41: 13478768 | B41: MTHN2LL/A | C41: IPAD PRO 12.9IN WLS + CELL 64GB SPAC GRY | D41: iPad Pro 12.9 | E41: Space Gray | F41: 64GB | G41: Yes | H41: =VLOOKUP(D41,'Cover Page'!$B$26:$C$44,2,FALSE) -> 13162262 | J41: =VLOOKUP(A41&"",'Material Master'!A:D,4,FALSE) -> #
A42: 13478769 | B42: MTHU2LL/A | C42: IPAD PRO 12.9IN WLS + CELL 64GB SLVR | D42: iPad Pro 12.9 | E42: Silver | F42: 64GB | G42: Yes | H42: =VLOOKUP(D42,'Cover Page'!$B$26:$C$44,2,FALSE) -> 13162262 | J42: =VLOOKUP(A42&"",'Material Master'!A:D,4,FALSE) -> #
A43: 13478770 | B43: MTJ02LL/A | C43: IPAD PRO 12.9IN WLS + CELL 256GB GRY | D43: iPad Pro 12.9 | E43: Space Gray | F43: 256GB | G43: Yes | H43: =VLOOKUP(D43,'Cover Page'!$B$26:$C$44,2,FALSE) -> 13162262 | J43: =VLOOKUP(A43&"",'Material Master'!A:D,4,FALSE) -> 40
A44: 13478911 | B44: MTJA2LL/A | C44: IPAD PRO 12.9IN WLS + CELL 256GB SLVR | D44: iPad Pro 12.9 | E44: Silver | F44: 256GB | G44: Yes | H44: =VLOOKUP(D44,'Cover Page'!$B$26:$C$44,2,FALSE) -> 13162262 | J44: =VLOOKUP(A44&"",'Material Master'!A:D,4,FALSE) -> #
A45: 13478912 | B45: MTJH2LL/A | C45: IPAD PRO 12.9IN WLS + CELL 512GB GRY | D45: iPad Pro 12.9 | E45: Space Gray | F45: 512GB | G45: Yes | H45: =VLOOKUP(D45,'Cover Page'!$B$26:$C$44,2,FALSE) -> 13162262 | J45: =VLOOKUP(A45&"",'Material Master'!A:D,4,FALSE) -> 40
A46: 13478913 | B46: MTJN2LL/A | C46: IPAD PRO 12.9IN WLS + CELL 512GB SLVR | D46: iPad Pro 12.9 | E46: Silver | F46: 512GB | G46: Yes | H46: =VLOOKUP(D46,'Cover Page'!$B$26:$C$44,2,FALSE) -> 13162262 | J46: =VLOOKUP(A46&"",'Material Master'!A:D,4,FALSE) -> 40
A47: 13478914 | B47: MTJU2LL/A | C47: IPAD PRO 12.9IN WLS + CELL 1TB SPACE GRY | D47: iPad Pro 12.9 | E47: Space Gray | F47: 1TB | G47: Yes | H47: =VLOOKUP(D47,'Cover Page'!$B$26:$C$44,2,FALSE) -> 13162262 | J47: =VLOOKUP(A47&"",'Material Master'!A:D,4,FALSE) -> 40
A48: 13478915 | B48: MTL02LL/A | C48: IPAD PRO 12.9IN WLS + CELL 1TB SLVR | D48: iPad Pro 12.9 | E48: Silver | F48: 1TB | G48: Yes | H48: =VLOOKUP(D48,'Cover Page'!$B$26:$C$44,2,FALSE) -> 13162262 | J48: =VLOOKUP(A48&"",'Material Master'!A:D,4,FALSE) -> 40
A49: 12695065 | B49: MQDT2LL/A | C49: IPAD PRO 10.5 64GB WLS GRY US | D49: iPad Pro 10.5 | E49: Space Gray | F49: 64GB | G49: No | H49: =VLOOKUP(D49,'Cover Page'!$B$26:$C$44,2,FALSE) -> 13162262 | J49: =VLOOKUP(A49&"",'Material Master'!A:D,4,FALSE) -> #
A50: 12695117 | B50: MQDW2LL/A | C50: IPAD PRO 10.5 64GB WLS SLVR US | D50: iPad Pro 10.5 | E50: Silver | F50: 64GB | G50: No | H50: =VLOOKUP(D50,'Cover Page'!$B$26:$C$44,2,FALSE) -> 13162262 | J50: =VLOOKUP(A50&"",'Material Master'!A:D,4,FALSE) -> #
A51: 12695118 | B51: MQDX2LL/A | C51: IPAD PRO 10.5 64GB WLS GOLD US | D51: iPad Pro 10.5 | E51: Gold | F51: 64GB | G51: No | H51: =VLOOKUP(D51,'Cover Page'!$B$26:$C$44,2,FALSE) -> 13162262 | J51: =VLOOKUP(A51&"",'Material Master'!A:D,4,FALSE) -> #
A52: 12695119 | B52: MQDY2LL/A | C52: IPAD PRO 10.5 64GB ROSE GOLD US | D52: iPad Pro 10.5 | E52: Rose Gold | F52: 64GB | G52: No | H52: =VLOOKUP(D52,'Cover Page'!$B$26:$C$44,2,FALSE) -> 13162262 | J52: =VLOOKUP(A52&"",'Material Master'!A:D,4,FALSE) -> #
A53: 12695101 | B53: MPDY2LL/A | C53: IPAD PRO 10.5 256GB WLS GRY US | D53: iPad Pro 10.5 | E53: Space Gray | F53: 256GB | G53: No | H53: =VLOOKUP(D53,'Cover Page'!$B$26:$C$44,2,FALSE) -> 13162262 | J53: =VLOOKUP(A53&"",'Material Master'!A:D,4,FALSE) -> #
A54: 12695102 | B54: MPF02LL/A | C54: IPAD PRO 10.5 256GB WLS SLVR US | D54: iPad Pro 10.5 | E54: Silver | F54: 256GB | G54: No | H54: =VLOOKUP(D54,'Cover Page'!$B$26:$C$44,2,FALSE) -> 13162262 | J54: =VLOOKUP(A54&"",'Material Master'!A:D,4,FALSE) -> #
A55: 12695103 | B55: MPF12LL/A | C55: IPAD PRO 10.5 256GB WLS GOLD US | D55: iPad Pro 10.5 | E55: Gold | F55: 256GB | G55: No | H55: =VLOOKUP(D55,'Cover Page'!$B$26:$C$44,2,FALSE) -> 13162262 | J55: =VLOOKUP(A55&"",'Material Master'!A:D,4,FALSE) -> #
A56: 12695104 | B56: MPF22LL/A | C56: IPAD PRO 10.5 256GB WLS ROSE US | D56: iPad Pro 10.5 | E56: Rose Gold | F56: 256GB | G56: No | H56: =VLOOKUP(D56,'Cover Page'!$B$26:$C$44,2,FALSE) -> 13162262 | J56: =VLOOKUP(A56&"",'Material Master'!A:D,4,FALSE) -> #
A57: 12695105 | B57: MPGH2LL/A | C57: IPAD PRO 10.5 512GB WLS GRY US | D57: iPad Pro 10.5 | E57: Space Gray | F57: 512GB | G57: No | H57: =VLOOKUP(D57,'Cover Page'!$B$26:$C$44,2,FALSE) -> 13162262 | J57: =VLOOKUP(A57&"",'Material Master'!A:D,4,FALSE) -> #
A58: 12695106 | B58: MPGJ2LL/A | C58: IPAD PRO 10.5 512GB WLS SLVR US | D58: iPad Pro 10.5 | E58: Silver | F58: 512GB | G58: No | H58: =VLOOKUP(D58,'Cover Page'!$B$26:$C$44,2,FALSE) -> 13162262 | J58: =VLOOKUP(A58&"",'Material Master'!A:D,4,FALSE) -> #
A59: 12695107 | B59: MPGK2LL/A | C59: IPAD PRO 10.5 512GB WLS GOLD US | D59: iPad Pro 10.5 | E59: Gold | F59: 512GB | G59: No | H59: =VLOOKUP(D59,'Cover Page'!$B$26:$C$44,2,FALSE) -> 13162262 | J59: =VLOOKUP(A59&"",'Material Master'!A:D,4,FALSE) -> #
A60: 12695108 | B60: MPGL2LL/A | C60: IPAD PRO 10.5 512GB WLS ROSE US | D60: iPad Pro 10.5 | E60: Rose Gold | F60: 512GB | G60: No | H60: =VLOOKUP(D60,'Cover Page'!$B$26:$C$44,2,FALSE) -> 13162262 | J60: =VLOOKUP(A60&"",'Material Master'!A:D,4,FALSE) -> #
A61: 12695123 | B61: MQEY2LL/A | C61: IPAD PRO 10.5 64GB WLS CL GRY US | D61: iPad Pro 10.5 | E61: Space Gray | F61: 64GB | G61: Yes | H61: =VLOOKUP(D61,'Cover Page'!$B$26:$C$44,2,FALSE) -> 13162262 | J61: =VLOOKUP(A61&"",'Material Master'!A:D,4,FALSE) -> #
A62: 12695124 | B62: MQF02LL/A | C62: IPAD PRO 10.5 64GB WLS CL SLVR US | D62: iPad Pro 10.5 | E62: Silver | F62: 64GB | G62: Yes | H62: =VLOOKUP(D62,'Cover Page'!$B$26:$C$44,2,FALSE) -> 13162262 | J62: =VLOOKUP(A62&"",'Material Master'!A:D,4,FALSE) -> 21
A63: 12695125 | B63: MQF12LL/A | C63: IPAD PRO 10.5 64GB WLS CL GOLD US | D63: iPad Pro 10.5 | E63: Gold | F63: 64GB | G63: Yes | H63: =VLOOKUP(D63,'Cover Page'!$B$26:$C$44,2,FALSE) -> 13162262 | J63: =VLOOKUP(A63&"",'Material Master'!A:D,4,FALSE) -> #
A64: 12695126 | B64: MQF22LL/A | C64: IPAD PRO 10.5 64GB WLS CL ROSE US | D64: iPad Pro 10.5 | E64: Rose Gold | F64: 64GB | G64: Yes | H64: =VLOOKUP(D64,'Cover Page'!$B$26:$C$44,2,FALSE) -> 13162262 | J64: =VLOOKUP(A64&"",'Material Master'!A:D,4,FALSE) -> 21
A65: 12695109 | B65: MPHG2LL/A | C65: IPAD PRO 10.5 256GB WLS CL GRY US | D65: iPad Pro 10.5 | E65: Space Gray | F65: 256GB | G65: Yes | H65: =VLOOKUP(D65,'Cover Page'!$B$26:$C$44,2,FALSE) -> 13162262 | J65: =VLOOKUP(A65&"",'Material Master'!A:D,4,FALSE) -> #
A66: 12695110 | B66: MPHH2LL/A | C66: IPAD PRO 10.5 256GB WLS CL SLVR US | D66: iPad Pro 10.5 | E66: Silver | F66: 256GB | G66: Yes | H66: =VLOOKUP(D66,'Cover Page'!$B$26:$C$44,2,FALSE) -> 13162262 | J66: =VLOOKUP(A66&"",'Material Master'!A:D,4,FALSE) -> #
A67: 12695111 | B67: MPHJ2LL/A | C67: IPAD PRO 10.5 256GB WLS CL GOLD US | D67: iPad Pro 10.5 | E67: Gold | F67: 256GB | G67: Yes | H67: =VLOOKUP(D67,'Cover Page'!$B$26:$C$44,2,FALSE) -> 13162262 | J67: =VLOOKUP(A67&"",'Material Master'!A:D,4,FALSE) -> #
A68: 12695112 | B68: MPHK2LL/A | C68: IPAD PRO 10.5 256GB WLS CL ROSE US | D68: iPad Pro 10.5 | E68: Rose Gold | F68: 256GB | G68: Yes | H68: =VLOOKUP(D68,'Cover Page'!$B$26:$C$44,2,FALSE) -> 13162262 | J68: =VLOOKUP(A68&"",'Material Master'!A:D,4,FALSE) -> #
A69: 12693898 | B69: MPME2LL/A | C69: IPAD PRO 10.5 512GB WLS CL GRY US | D69: iPad Pro 10.5 | E69: Space Gray | F69: 512GB | G69: Yes | H69: =VLOOKUP(D69,'Cover Page'!$B$26:$C$44,2,FALSE) -> 13162262 | J69: =VLOOKUP(A69&"",'Material Master'!A:D,4,FALSE) -> #
A70: 12693899 | B70: MPMF2LL/A | C70: IPAD PRO 10.5 512GB WLS CL SLVR US | D70: iPad Pro 10.5 | E70: Silver | F70: 512GB | G70: Yes | H70: =VLOOKUP(D70,'Cover Page'!$B$26:$C$44,2,FALSE) -> 13162262 | J70: =VLOOKUP(A70&"",'Material Master'!A:D,4,FALSE) -> 21
A71: 12693900 | B71: MPMG2LL/A | C71: IPAD PRO 10.5 512GB WLS CL GOLD US | D71: iPad Pro 10.5 | E71: Gold | F71: 512GB | G71: Yes | H71: =VLOOKUP(D71,'Cover Page'!$B$26:$C$44,2,FALSE) -> 13162262 | J71: =VLOOKUP(A71&"",'Material Master'!A:D,4,FALSE) -> #
A72: 12695061 | B72: MPMH2LL/A | C72: IPAD PRO 10.5 512GB WLS CL ROSE US | D72: iPad Pro 10.5 | E72: Rose Gold | F72: 512GB | G72: Yes | H72: =VLOOKUP(D72,'Cover Page'!$B$26:$C$44,2,FALSE) -> 13162262 | J72: =VLOOKUP(A72&"",'Material Master'!A:D,4,FALSE) -> #
A73: 12695062 | B73: MQDA2LL/A | C73: IPAD PRO 12.9 64GB WLS GRY US | D73: iPad Pro 12.9 | E73: Space Gray | F73: 64GB | G73: No | H73: =VLOOKUP(D73,'Cover Page'!$B$26:$C$44,2,FALSE) -> 13162262 | J73: =VLOOKUP(A73&"",'Material Master'!A:D,4,FALSE) -> 98
A74: 12695063 | B74: MQDC2LL/A | C74: IPAD PRO 12.9 64GB WLS SLVR US | D74: iPad Pro 12.9 | E74: Silver | F74: 64GB | G74: No | H74: =VLOOKUP(D74,'Cover Page'!$B$26:$C$44,2,FALSE) -> 13162262 | J74: =VLOOKUP(A74&"",'Material Master'!A:D,4,FALSE) -> 01
A75: 12695064 | B75: MQDD2LL/A | C75: IPAD PRO 12.9 64GB WLS GOLD US | D75: iPad Pro 12.9 | E75: Gold | F75: 64GB | G75: No | H75: =VLOOKUP(D75,'Cover Page'!$B$26:$C$44,2,FALSE) -> 13162262 | J75: =VLOOKUP(A75&"",'Material Master'!A:D,4,FALSE) -> 01
A76: 12695095 | B76: MP6G2LL/A | C76: IPAD PRO 12.9 256GB WLS GRY US | D76: iPad Pro 12.9 | E76: Space Gray | F76: 256GB | G76: No | H76: =VLOOKUP(D76,'Cover Page'!$B$26:$C$44,2,FALSE) -> 13162262 | J76: =VLOOKUP(A76&"",'Material Master'!A:D,4,FALSE) -> 01
A77: 12695096 | B77: MP6H2LL/A | C77: IPAD PRO 12.9 256GB WLS SLVR US | D77: iPad Pro 12.9 | E77: Silver | F77: 256GB | G77: No | H77: =VLOOKUP(D77,'Cover Page'!$B$26:$C$44,2,FALSE) -> 13162262 | J77: =VLOOKUP(A77&"",'Material Master'!A:D,4,FALSE) -> 01
A78: 12695097 | B78: MP6J2LL/A | C78: IPAD PRO 12.9 256GB WLS GOLD US | D78: iPad Pro 12.9 | E78: Gold | F78: 256GB | G78: No | H78: =VLOOKUP(D78,'Cover Page'!$B$26:$C$44,2,FALSE) -> 13162262 | J78: =VLOOKUP(A78&"",'Material Master'!A:D,4,FALSE) -> 01
A79: 12695113 | B79: MPKY2LL/A | C79: IPAD PRO 12.9 512GB WLS GRY US | D79: iPad Pro 12.9 | E79: Space Gray | F79: 512GB | G79: No | H79: =VLOOKUP(D79,'Cover Page'!$B$26:$C$44,2,FALSE) -> 13162262 | J79: =VLOOKUP(A79&"",'Material Master'!A:D,4,FALSE) -> 01
A80: 12695114 | B80: MPL02LL/A | C80: IPAD PRO 12.9 512GB WLS SLVR US | D80: iPad Pro 12.9 | E80: Silver | F80: 512GB | G80: No | H80: =VLOOKUP(D80,'Cover Page'!$B$26:$C$44,2,FALSE) -> 13162262 | J80: =VLOOKUP(A80&"",'Material Master'!A:D,4,FALSE) -> 01
A81: 12695115 | B81: MPL12LL/A | C81: IPAD PRO 12.9 512GB WLS GOLD US | D81: iPad Pro 12.9 | E81: Gold | F81: 512GB | G81: No | H81: =VLOOKUP(D81,'Cover Page'!$B$26:$C$44,2,FALSE) -> 13162262 | J81: =VLOOKUP(A81&"",'Material Master'!A:D,4,FALSE) -> 01
A82: 12695120 | B82: MQED2LL/A | C82: IPAD PRO 12.9 64GB WLS CL GRY US | D82: iPad Pro 12.9 | E82: Space Gray | F82: 64GB | G82: Yes | H82: =VLOOKUP(D82,'Cover Page'!$B$26:$C$44,2,FALSE) -> 13162262 | J82: =VLOOKUP(A82&"",'Material Master'!A:D,4,FALSE) -> 01
A83: 12695121 | B83: MQEE2LL/A | C83: IPAD PRO 12.9 64GB WLS CL SLVR US | D83: iPad Pro 12.9 | E83: Silver | F83: 64GB | G83: Yes | H83: =VLOOKUP(D83,'Cover Page'!$B$26:$C$44,2,FALSE) -> 13162262 | J83: =VLOOKUP(A83&"",'Material Master'!A:D,4,FALSE) -> 01
A84: 12695122 | B84: MQEF2LL/A | C84: IPAD PRO 12.9 64GB WLS CL GOLD US | D84: iPad Pro 12.9 | E84: Gold | F84: 64GB | G84: Yes | H84: =VLOOKUP(D84,'Cover Page'!$B$26:$C$44,2,FALSE) -> 13162262 | J84: =VLOOKUP(A84&"",'Material Master'!A:D,4,FALSE) -> 01
A85: 12695098 | B85: MPA42LL/A | C85: IPAD PRO 12.9 256GB WLS CL GRY US | D85: iPad Pro 12.9 | E85: Space Gray | F85: 256GB | G85: Yes | H85: =VLOOKUP(D85,'Cover Page'!$B$26:$C$44,2,FALSE) -> 13162262 | J85: =VLOOKUP(A85&"",'Material Master'!A:D,4,FALSE) -> 01
A86: 12695099 | B86: MPA52LL/A | C86: IPAD PRO 12.9 256GB WLS CL SLVR US | D86: iPad Pro 12.9 | E86: Silver | F86: 256GB | G86: Yes | H86: =VLOOKUP(D86,'Cover Page'!$B$26:$C$44,2,FALSE) -> 13162262 | J86: =VLOOKUP(A86&"",'Material Master'!A:D,4,FALSE) -> 01
A87: 12695100 | B87: MPA62LL/A | C87: IPAD PRO 12.9 256GB WLS CL GOLD US | D87: iPad Pro 12.9 | E87: Gold | F87: 256GB | G87: Yes | H87: =VLOOKUP(D87,'Cover Page'!$B$26:$C$44,2,FALSE) -> 13162262 | J87: =VLOOKUP(A87&"",'Material Master'!A:D,4,FALSE) -> 01
A88: 12695116 | B88: MPLJ2LL/A | C88: IPAD PRO 12.9 512GB WLS CL GRY US | D88: iPad Pro 12.9 | E88: Space Gray | F88: 512GB | G88: Yes | H88: =VLOOKUP(D88,'Cover Page'!$B$26:$C$44,2,FALSE) -> 13162262 | J88: =VLOOKUP(A88&"",'Material Master'!A:D,4,FALSE) -> 01
A89: 12693896 | B89: MPLK2LL/A | C89: IPAD PRO 12.9 512GB WLS CL SLVR US | D89: iPad Pro 12.9 | E89: Silver | F89: 512GB | G89: Yes | H89: =VLOOKUP(D89,'Cover Page'!$B$26:$C$44,2,FALSE) -> 13162262 | J89: =VLOOKUP(A89&"",'Material Master'!A:D,4,FALSE) -> 01
A90: 12693897 | B90: MPLL2LL/A | C90: IPAD PRO 12.9 512GB WLS CL GOLD US | D90: iPad Pro 12.9 | E90: Gold | F90: 512GB | G90: Yes | H90: =VLOOKUP(D90,'Cover Page'!$B$26:$C$44,2,FALSE) -> 13162262 | J90: =VLOOKUP(A90&"",'Material Master'!A:D,4,FALSE) -> 01
A91: 13162293 | B91: MR7F2LL/A | C91: IPAD WI-FI 32GB SPACE GRAY-USA | D91: iPad | E91: Space Gray | F91: 32GB | G91: No | H91: =VLOOKUP(D91,'Cover Page'!$B$26:$C$44,2,FALSE) -> 13162263 | J91: =VLOOKUP(A91&"",'Material Master'!A:D,4,FALSE) -> #
A92: 13162287 | B92: MR7G2LL/A | C92: IPAD WI-FI 32GB SILVER-USA | D92: iPad | E92: Silver | F92: 32GB | G92: No | H92: =VLOOKUP(D92,'Cover Page'!$B$26:$C$44,2,FALSE) -> 13162263 | J92: =VLOOKUP(A92&"",'Material Master'!A:D,4,FALSE) -> #
A93: 13162246 | B93: MRJN2LL/A | C93: IPAD WI-FI 32GB GOLD-USA | D93: iPad | E93: Gold | F93: 32GB | G93: No | H93: =VLOOKUP(D93,'Cover Page'!$B$26:$C$44,2,FALSE) -> 13162263 | J93: =VLOOKUP(A93&"",'Material Master'!A:D,4,FALSE) -> #
A94: 13162289 | B94: MR7J2LL/A | C94: IPAD WI-FI 128GB SPACE GRAY-USA | D94: iPad | E94: Space Gray | F94: 128GB | G94: No | H94: =VLOOKUP(D94,'Cover Page'!$B$26:$C$44,2,FALSE) -> 13162263 | J94: =VLOOKUP(A94&"",'Material Master'!A:D,4,FALSE) -> #
A95: 13162294 | B95: MR7K2LL/A | C95: IPAD WI-FI 128GB SILVER-USA | D95: iPad | E95: Silver | F95: 128GB | G95: No | H95: =VLOOKUP(D95,'Cover Page'!$B$26:$C$44,2,FALSE) -> 13162263 | J95: =VLOOKUP(A95&"",'Material Master'!A:D,4,FALSE) -> #
A96: 13162302 | B96: MRJP2LL/A | C96: IPAD WI-FI 128GB GOLD-USA | D96: iPad | E96: Gold | F96: 128GB | G96: No | H96: =VLOOKUP(D96,'Cover Page'!$B$26:$C$44,2,FALSE) -> 13162263 | J96: =VLOOKUP(A96&"",'Material Master'!A:D,4,FALSE) -> #
A97: 13162288 | B97: MR6Y2LL/A | C97: IPAD WI-FI CELL 32GB SPACE GRAY AS-USA | D97: iPad | E97: Space Gray | F97: 32GB | G97: Yes | H97: =VLOOKUP(D97,'Cover Page'!$B$26:$C$44,2,FALSE) -> 13162263 | J97: =VLOOKUP(A97&"",'Material Master'!A:D,4,FALSE) -> #
A98: 13162290 | B98: MR702LL/A | C98: IPAD WI-FI CELLULAR 32GB SILVER AS-USA | D98: iPad | E98: Silver | F98: 32GB | G98: Yes | H98: =VLOOKUP(D98,'Cover Page'!$B$26:$C$44,2,FALSE) -> 13162263 | J98: =VLOOKUP(A98&"",'Material Master'!A:D,4,FALSE) -> #
A99: 13162248 | B99: MRM52LL/A | C99: IPAD WI-FI CELLULAR 32GB GOLD AS-USA | D99: iPad | E99: Gold | F99: 32GB | G99: Yes | H99: =VLOOKUP(D99,'Cover Page'!$B$26:$C$44,2,FALSE) -> 13162263 | J99: =VLOOKUP(A99&"",'Material Master'!A:D,4,FALSE) -> #
A100: 13162291 | B100: MR7C2LL/A | C100: IPAD WI-FI CELL 128GB SPACE GRAY AS-USA | D100: iPad | E100: Space Gray | F100: 128GB | G100: Yes | H100: =VLOOKUP(D100,'Cover Page'!$B$26:$C$44,2,FALSE) -> 13162263 | J100: =VLOOKUP(A100&"",'Material Master'!A:D,4,FALSE) -> #
A101: 13162292 | B101: MR7D2LL/A | C101: IPAD WI-FI CELLULAR 128GB SILVER AS-USA | D101: iPad | E101: Silver | F101: 128GB | G101: Yes | H101: =VLOOKUP(D101,'Cover Page'!$B$26:$C$44,2,FALSE) -> 13162263 | J101: =VLOOKUP(A101&"",'Material Master'!A:D,4,FALSE) -> #
A102: 13162249 | B102: MRM82LL/A | C102: IPAD WI-FI CELLULAR 128GB GOLD AS-USA | D102: iPad | E102: Gold | F102: 128GB | G102: Yes | H102: =VLOOKUP(D102,'Cover Page'!$B$26:$C$44,2,FALSE) -> 13162263 | J102: =VLOOKUP(A102&"",'Material Master'!A:D,4,FALSE) -> #
A103: 11858527 | B103: MK9N2LL/A | C103: IPAD MINI 4 WLS 128GB SPACE GRY USA | D103: iPad mini 4 | E103: Space Gray | F103: 128GB | G103: No | H103: =VLOOKUP(D103,'Cover Page'!$B$26:$C$44,2,FALSE) -> 13162263 | J103: =VLOOKUP(A103&"",'Material Master'!A:D,4,FALSE) -> #
A104: 11858528 | B104: MK9P2LL/A | C104: IPAD MINI 4 WLS 128GB SLVR USA | D104: iPad mini 4 | E104: Silver | F104: 128GB | G104: No | H104: =VLOOKUP(D104,'Cover Page'!$B$26:$C$44,2,FALSE) -> 13162263 | J104: =VLOOKUP(A104&"",'Material Master'!A:D,4,FALSE) -> #
A105: 11858529 | B105: MK9Q2LL/A | C105: IPAD MINI 4 WLS 128GB GOLD USA | D105: iPad mini 4 | E105: Gold | F105: 128GB | G105: No | H105: =VLOOKUP(D105,'Cover Page'!$B$26:$C$44,2,FALSE) -> 13162263 | J105: =VLOOKUP(A105&"",'Material Master'!A:D,4,FALSE) -> #
A106: 11858521 | B106: MK8D2LL/A | C106: IPAD MINI 4 WLS CELL 128GB GRY AS USA | D106: iPad mini 4 | E106: Space Gray | F106: 128GB | G106: Yes | H106: =VLOOKUP(D106,'Cover Page'!$B$26:$C$44,2,FALSE) -> 13162263 | J106: =VLOOKUP(A106&"",'Material Master'!A:D,4,FALSE) -> 21
A107: 11858522 | B107: MK8E2LL/A | C107: IPAD MINI 4 WLS CELL 128GB SLVR AS USA | D107: iPad mini 4 | E107: Silver | F107: 128GB | G107: Yes | H107: =VLOOKUP(D107,'Cover Page'!$B$26:$C$44,2,FALSE) -> 13162263 | J107: =VLOOKUP(A107&"",'Material Master'!A:D,4,FALSE) -> 21
A108: 11858523 | B108: MK8F2LL/A | C108: IPAD MINI 4 WLS CELL 128GB GOLD AS USA | D108: iPad mini 4 | E108: Gold | F108: 128GB | G108: Yes | H108: =VLOOKUP(D108,'Cover Page'!$B$26:$C$44,2,FALSE) -> 13162263 | J108: =VLOOKUP(A108&"",'Material Master'!A:D,4,FALSE) -> 21

Sheet Apple Watch
D1: Model | E1: Color | F1: Size | G1: Cellular | H1: Band Type
A7: *To view our current inventory levels, please visit shop.techdata.com
A15: *Red text denotes EOL product
A16: Tech Data Part Number | B16: Apple Part Number | C16: Description | D16: Model | E16: Color | F16: Size | G16: Cellular | H16: Band Type | I16: Band Color | J16: AppleCare
A17: 13441607 | B17: MTUD2LL/A | C17: APPLE WATCH S4 40 SIL AL WHT SP CEL-USA | D17: Series 4 | E17: Silver | F17: 40MM | G17: Yes | H17: Sport Band | I17: White | J17: =VLOOKUP(D17,'Cover Page'!$B$26:$C$44,2,FALSE) -> 13441597 | L17: =VLOOKUP(A17&"",'Material Master'!A:D,4,FALSE) -> 40
A18: 13441608 | B18: MTUF2LL/A | C18: APPLE WATCH S4 40 SIL AL SEA SL CEL-USA | D18: Series 4 | E18: Silver | F18: 40MM | G18: Yes | H18: Sport Loop | I18: Seashell | J18: =VLOOKUP(D18,'Cover Page'!$B$26:$C$44,2,FALSE) -> 13441597 | L18: =VLOOKUP(A18&"",'Material Master'!A:D,4,FALSE) -> 40
A19: 13441566 | B19: MTUG2LL/A | C19: APPLE WATCH S4 40 SG AL BLK SP CEL-USA | D19: Series 4 | E19: Space Gray | F19: 40MM | G19: Yes | H19: Sport Band | I19: Black | J19: =VLOOKUP(D19,'Cover Page'!$B$26:$C$44,2,FALSE) -> 13441597 | L19: =VLOOKUP(A19&"",'Material Master'!A:D,4,FALSE) -> #
A20: 13441567 | B20: MTUH2LL/A | C20: APPLE WATCH S4 40 SG AL BLK SL CEL-USA | D20: Series 4 | E20: Space Gray | F20: 40MM | G20: Yes | H20: Sport Loop | I20: Black | J20: =VLOOKUP(D20,'Cover Page'!$B$26:$C$44,2,FALSE) -> 13441597 | L20: =VLOOKUP(A20&"",'Material Master'!A:D,4,FALSE) -> 40
A21: 13441568 | B21: MTUJ2LL/A | C21: APPLE WATCH S4 40 G AL PS SP CEL-USA | D21: Series 4 | E21: Gold | F21: 40MM | G21: Yes | H21: Sport Band | I21: Pink Sand | J21: =VLOOKUP(D21,'Cover Page'!$B$26:$C$44,2,FALSE) -> 13441597 | L21: =VLOOKUP(A21&"",'Material Master'!A:D,4,FALSE) -> 40
A22: 13441569 | B22: MTUK2LL/A | C22: APPLE WATCH S4 40 G AL PS SL CEL-USA | D22: Series 4 | E22: Gold | F22: 40MM | G22: Yes | H22: Sport Loop | I22: Pink Sand | J22: =VLOOKUP(D22,'Cover Page'!$B$26:$C$44,2,FALSE) -> 13441597 | L22: =VLOOKUP(A22&"",'Material Master'!A:D,4,FALSE) -> 40
A23: 13441570 | B23: MTUL2LL/A | C23: APPLE WATCH S4 40 P SS WHT SP CEL-USA | D23: Series 4 | E23: Stain. Steel | F23: 40MM | G23: Yes | H23: Sport Band | I23: White | J23: =VLOOKUP(D23,'Cover Page'!$B$26:$C$44,2,FALSE) -> 13441597 | L23: =VLOOKUP(A23&"",'Material Master'!A:D,4,FALSE) -> 40
A24: 13441571 | B24: MTUM2LL/A | C24: APPLE WATCH S4 40 P SS ML CEL-USA | D24: Series 4 | E24: Stain. Steel | F24: 40MM | G24: Yes | H24: Mila. Loop | I24: Silver | J24: =VLOOKUP(D24,'Cover Page'!$B$26:$C$44,2,FALSE) -> 13441597 | L24: =VLOOKUP(A24&"",'Material Master'!A:D,4,FALSE) -> 40
A25: 13441572 | B25: MTUN2LL/A | C25: APPLE WATCH S4 40 SB SS BLK SP CEL-USA | D25: Series 4 | E25: Space Black | F25: 40MM | G25: Yes | H25: Sport Band | I25: Black | J25: =VLOOKUP(D25,'Cover Page'!$B$26:$C$44,2,FALSE) -> 13441597 | L25: =VLOOKUP(A25&"",'Material Master'!A:D,4,FALSE) -> 40
A26: 13441573 | B26: MTUQ2LL/A | C26: APPLE WATCH S4 40 SB SS ML CEL-USA | D26: Series 4 | E26: Space Black | F26: 40MM | G26: Yes | H26: Mila. Loop | I26: Space Black | J26: =VLOOKUP(D26,'Cover Page'!$B$26:$C$44,2,FALSE) -> 13441597 | L26: =VLOOKUP(A26&"",'Material Master'!A:D,4,FALSE) -> 40
A27: 13441574 | B27: MTUR2LL/A | C27: APPLE WATCH S4 40 G SS STN SP CEL-USA | D27: Series 4 | E27: Gold | F27: 40MM | G27: Yes | H27: Sport Band | I27: Stone | J27: =VLOOKUP(D27,'Cover Page'!$B$26:$C$44,2,FALSE) -> 13441597 | L27: =VLOOKUP(A27&"",'Material Master'!A:D,4,FALSE) -> 40
A28: 13441609 | B28: MTUT2LL/A | C28: APPLE WATCH S4 40 G SS ML CEL-USA | D28: Series 4 | E28: Gold | F28: 40MM | G28: Yes | H28: Mila. Loop | I28: Gold | J28: =VLOOKUP(D28,'Cover Page'!$B$26:$C$44,2,FALSE) -> 13441597 | L28: =VLOOKUP(A28&"",'Material Master'!A:D,4,FALSE) -> 40
A29: 13441610 | B29: MTUU2LL/A | C29: APPLE WATCH S4 44 SIL AL WHT SP CEL-USA | D29: Series 4 | E29: Silver | F29: 44MM | G29: Yes | H29: Sport Band | I29: White | J29: =VLOOKUP(D29,'Cover Page'!$B$26:$C$44,2,FALSE) -> 13441597 | L29: =VLOOKUP(A29&"",'Material Master'!A:D,4,FALSE) -> 40
A30: 13441611 | B30: MTUV2LL/A | C30: APPLE WATCH S4 44 SIL AL SEA SL CEL-USA | D30: Series 4 | E30: Silver | F30: 44MM | G30: Yes | H30: Sport Loop | I30: Seashell | J30: =VLOOKUP(D30,'Cover Page'!$B$26:$C$44,2,FALSE) -> 13441597 | L30: =VLOOKUP(A30&"",'Material Master'!A:D,4,FALSE) -> 40
A31: 13441612 | B31: MTUW2LL/A | C31: APPLE WATCH S4 44 SG AL BLK SP CEL-USA | D31: Series 4 | E31: Space Gray | F31: 44MM | G31: Yes | H31: Sport Band | I31: Black | J31: =VLOOKUP(D31,'Cover Page'!$B$26:$C$44,2,FALSE) -> 13441597 | L31: =VLOOKUP(A31&"",'Material Master'!A:D,4,FALSE) -> 40
A32: 13441613 | B32: MTUX2LL/A | C32: APPLE WATCH S4 44 SG AL BLK SL CEL-USA | D32: Series 4 | E32: Space Gray | F32: 44MM | G32: Yes | H32: Sport Loop | I32: Black | J32: =VLOOKUP(D32,'Cover Page'!$B$26:$C$44,2,FALSE) -> 13441597 | L32: =VLOOKUP(A32&"",'Material Master'!A:D,4,FALSE) -> 40
A33: 13441614 | B33: MTV02LL/A | C33: APPLE WATCH S4 44 G AL PS SP CEL-USA | D33: Series 4 | E33: Gold | F33: 44MM | G33: Yes | H33: Sport Band | I33: Pink Sand | J33: =VLOOKUP(D33,'Cover Page'!$B$26:$C$44,2,FALSE) -> 13441597 | L33: =VLOOKUP(A33&"",'Material Master'!A:D,4,FALSE) -> 40
A34: 13441615 | B34: MTV12LL/A | C34: APPLE WATCH S4 44 G AL PS SL CEL-USA | D34: Series 4 | E34: Gold | F34: 44MM | G34: Yes | H34: Sport Loop | I34: Pink Sand | J34: =VLOOKUP(D34,'Cover Page'!$B$26:$C$44,2,FALSE) -> 13441597 | L34: =VLOOKUP(A34&"",'Material Master'!A:D,4,FALSE) -> 40
A35: 13441616 | B35: MTV22LL/A | C35: APPLE WATCH S4 44 P SS WHT SP CEL-USA | D35: Series 4 | E35: Stain. Steel | F35: 44MM | G35: Yes | H35: Sport Band | I35: White | J35: =VLOOKUP(D35,'Cover Page'!$B$26:$C$44,2,FALSE) -> 13441597 | L35: =VLOOKUP(A35&"",'Material Master'!A:D,4,FALSE) -> 40
A36: 13441393 | B36: MTV42LL/A | C36: APPLE WATCH S4 44 P SS ML CEL-USA | D36: Series 4 | E36: Stain. Steel | F36: 44MM | G36: Yes | H36: Mila. Loop | I36: Silver | J36: =VLOOKUP(D36,'Cover Page'!$B$26:$C$44,2,FALSE) -> 13441597 | L36: =VLOOKUP(A36&"",'Material Master'!A:D,4,FALSE) -> #
A37: 13441394 | B37: MTV52LL/A | C37: APPLE WATCH S4 44 SB SS BLK SP CEL-USA | D37: Series 4 | E37: Space Black | F37: 44MM | G37: Yes | H37: Sport Band | I37: Black | J37: =VLOOKUP(D37,'Cover Page'!$B$26:$C$44,2,FALSE) -> 13441597 | L37: =VLOOKUP(A37&"",'Material Master'!A:D,4,FALSE) -> #
A38: 13441395 | B38: MTV62LL/A | C38: APPLE WATCH S4 44 SB SS ML CEL-USA | D38: Series 4 | E38: Space Black | F38: 44MM | G38: Yes | H38: Mila. Loop | I38: Space Black | J38: =VLOOKUP(D38,'Cover Page'!$B$26:$C$44,2,FALSE) -> 13441597 | L38: =VLOOKUP(A38&"",'Material Master'!A:D,4,FALSE) -> 40
A39: 13441396 | B39: MTV72LL/A | C39: APPLE WATCH S4 44 G SS STN SP CEL-USA | D39: Series 4 | E39: Gold | F39: 44MM | G39: Yes | H39: Sport Band | I39: Stone | J39: =VLOOKUP(D39,'Cover Page'!$B$26:$C$44,2,FALSE) -> 13441597 | L39: =VLOOKUP(A39&"",'Material Master'!A:D,4,FALSE) -> 40
A40: 13441397 | B40: MTV82LL/A | C40: APPLE WATCH S4 44 G SS ML CEL-USA | D40: Series 4 | E40: Gold | F40: 44MM | G40: Yes | H40: Mila. Loop | I40: Gold | J40: =VLOOKUP(D40,'Cover Page'!$B$26:$C$44,2,FALSE) -> 13441597 | L40: =VLOOKUP(A40&"",'Material Master'!A:D,4,FALSE) -> 40
A41: 13441398 | B41: MU642LL/A | C41: APPLE WATCH S4 40 SIL AL WHT SP GPS-USA | D41: Series 4 | E41: Silver | F41: 40MM | G41: No | H41: Sport Band | I41: White | J41: =VLOOKUP(D41,'Cover Page'!$B$26:$C$44,2,FALSE) -> 13441597 | L41: =VLOOKUP(A41&"",'Material Master'!A:D,4,FALSE) -> 40
A42: 13441399 | B42: MU652LL/A | C42: APPLE WATCH S4 40 SIL AL SEA SL GPS-USA | D42: Series 4 | E42: Silver | F42: 40MM | G42: No | H42: Sport Loop | I42: Seashell | J42: =VLOOKUP(D42,'Cover Page'!$B$26:$C$44,2,FALSE) -> 13441597 | L42: =VLOOKUP(A42&"",'Material Master'!A:D,4,FALSE) -> 40
A43: 13441400 | B43: MU662LL/A | C43: APPLE WATCH S4 40 SG AL BLK SP GPS-USA | D43: Series 4 | E43: Space Gray | F43: 40MM | G43: No | H43: Sport Band | I43: Black | J43: =VLOOKUP(D43,'Cover Page'!$B$26:$C$44,2,FALSE) -> 13441597 | L43: =VLOOKUP(A43&"",'Material Master'!A:D,4,FALSE) -> 40
A44: 13441621 | B44: MU672LL/A | C44: APPLE WATCH S4 40 SG AL BLK SL GPS-USA | D44: Series 4 | E44: Space Gray | F44: 40MM | G44: No | H44: Sport Loop | I44: Black | J44: =VLOOKUP(D44,'Cover Page'!$B$26:$C$44,2,FALSE) -> 13441597 | L44: =VLOOKUP(A44&"",'Material Master'!A:D,4,FALSE) -> 40
A45: 13441622 | B45: MU682LL/A | C45: APPLE WATCH S4 40 G AL PS SP GPS-USA | D45: Series 4 | E45: Gold | F45: 40MM | G45: No | H45: Sport Band | I45: Pink Sand | J45: =VLOOKUP(D45,'Cover Page'!$B$26:$C$44,2,FALSE) -> 13441597 | L45: =VLOOKUP(A45&"",'Material Master'!A:D,4,FALSE) -> 40
A46: 13441623 | B46: MU692LL/A | C46: APPLE WATCH S4 40 G AL PS SL GPS-USA | D46: Series 4 | E46: Gold | F46: 40MM | G46: No | H46: Sport Loop | I46: Pink Sand | J46: =VLOOKUP(D46,'Cover Page'!$B$26:$C$44,2,FALSE) -> 13441597 | L46: =VLOOKUP(A46&"",'Material Master'!A:D,4,FALSE) -> 40
A47: 13441624 | B47: MU6A2LL/A | C47: APPLE WATCH S4 44 SIL AL WHT SP GPS-USA | D47: Series 4 | E47: Silver | F47: 44MM | G47: No | H47: Sport Band | I47: White | J47: =VLOOKUP(D47,'Cover Page'!$B$26:$C$44,2,FALSE) -> 13441597 | L47: =VLOOKUP(A47&"",'Material Master'!A:D,4,FALSE) -> 40
A48: 13441625 | B48: MU6C2LL/A | C48: APPLE WATCH S4 44 SIL AL SEA SL GPS-USA | D48: Series 4 | E48: Silver | F48: 44MM | G48: No | H48: Sport Loop | I48: Seashell | J48: =VLOOKUP(D48,'Cover Page'!$B$26:$C$44,2,FALSE) -> 13441597 | L48: =VLOOKUP(A48&"",'Material Master'!A:D,4,FALSE) -> 40
A49: 13441626 | B49: MU6D2LL/A | C49: APPLE WATCH S4 44 SG AL BLK SP GPS-USA | D49: Series 4 | E49: Space Gray | F49: 44MM | G49: No | H49: Sport Band | I49: Black | J49: =VLOOKUP(D49,'Cover Page'!$B$26:$C$44,2,FALSE) -> 13441597 | L49: =VLOOKUP(A49&"",'Material Master'!A:D,4,FALSE) -> 40
A50: 13441627 | B50: MU6E2LL/A | C50: APPLE WATCH S4 44 SG AL BLK SL GPS-USA | D50: Series 4 | E50: Space Gray | F50: 44MM | G50: No | H50: Sport Loop | I50: Black | J50: =VLOOKUP(D50,'Cover Page'!$B$26:$C$44,2,FALSE) -> 13441597 | L50: =VLOOKUP(A50&"",'Material Master'!A:D,4,FALSE) -> 40
A51: 13441628 | B51: MU6F2LL/A | C51: APPLE WATCH S4 44 G AL PS SP GPS-USA | D51: Series 4 | E51: Gold | F51: 44MM | G51: No | H51: Sport Band | I51: Pink Sand | J51: =VLOOKUP(D51,'Cover Page'!$B$26:$C$44,2,FALSE) -> 13441597 | L51: =VLOOKUP(A51&"",'Material Master'!A:D,4,FALSE) -> 40
A52: 13441629 | B52: MU6G2LL/A | C52: APPLE WATCH S4 44 G AL PS SL GPS-USA | D52: Series 4 | E52: Gold | F52: 44MM | G52: No | H52: Sport Loop | I52: Pink Sand | J52: =VLOOKUP(D52,'Cover Page'!$B$26:$C$44,2,FALSE) -> 13441597 | L52: =VLOOKUP(A52&"",'Material Master'!A:D,4,FALSE) -> 40
A53: 13441592 | B53: MTEY2LL/A | C53: APPLE WATCH S3 38 SL AL WHT SP GPS-USA | D53: Series 3 | E53: SIlver | F53: 38MM | G53: No | H53: Sport Band | I53: White | J53: =VLOOKUP(D53,'Cover Page'!$B$26:$C$44,2,FALSE) -> 11867130 | L53: =VLOOKUP(A53&"",'Material Master'!A:D,4,FALSE) -> #
A54: 13441600 | B54: MTF02LL/A | C54: APPLE WATCH S3 38 SG AL BLK SP GPS-USA | D54: Series 3 | E54: Space Gray | F54: 38MM | G54: No | H54: Sport Band | I54: Black | J54: =VLOOKUP(D54,'Cover Page'!$B$26:$C$44,2,FALSE) -> 11867130 | L54: =VLOOKUP(A54&"",'Material Master'!A:D,4,FALSE) -> #
A55: 13441601 | B55: MTF22LL/A | C55: APPLE WATCH S3 42 SL AL WHT SP GPS-USA | D55: Series 3 | E55: Silver | F55: 42MM | G55: No | H55: Sport Band | I55: White | J55: =VLOOKUP(D55,'Cover Page'!$B$26:$C$44,2,FALSE) -> 11867130 | L55: =VLOOKUP(A55&"",'Material Master'!A:D,4,FALSE) -> #
A56: 13441602 | B56: MTF32LL/A | C56: APPLE WATCH S3 42 SG AL BLK SP GPS-USA | D56: Series 3 | E56: Space Gray | F56: 42MM | G56: No | H56: Sport Band | I56: Black | J56: =VLOOKUP(D56,'Cover Page'!$B$26:$C$44,2,FALSE) -> 11867130 | L56: =VLOOKUP(A56&"",'Material Master'!A:D,4,FALSE) -> #
A57: 13441603 | B57: MTGG2LL/A | C57: APPLE WATCH S3 38 SL AL WHT SP CEL-USA | D57: Series 3 | E57: Silver | F57: 38MM | G57: Yes | H57: Sport Band | I57: White | J57: =VLOOKUP(D57,'Cover Page'!$B$26:$C$44,2,FALSE) -> 11867130 | L57: =VLOOKUP(A57&"",'Material Master'!A:D,4,FALSE) -> #
A58: 13441604 | B58: MTGH2LL/A | C58: APPLE WATCH S3 38 SG AL BLK SP CEL-USA | D58: Series 3 | E58: Space Gray | F58: 38MM | G58: Yes | H58: Sport Band | I58: Black | J58: =VLOOKUP(D58,'Cover Page'!$B$26:$C$44,2,FALSE) -> 11867130 | L58: =VLOOKUP(A58&"",'Material Master'!A:D,4,FALSE) -> #
A59: 13441605 | B59: MTGR2LL/A | C59: APPLE WATCH S3 42 SL AL WHT SP CEL-USA | D59: Series 3 | E59: Silver | F59: 42MM | G59: Yes | H59: Sport Band | I59: White | J59: =VLOOKUP(D59,'Cover Page'!$B$26:$C$44,2,FALSE) -> 11867130 | L59: =VLOOKUP(A59&"",'Material Master'!A:D,4,FALSE) -> #
A60: 13441606 | B60: MTGT2LL/A | C60: APPLE WATCH S3 42 SG AL BLK SP CEL-USA | D60: Series 3 | E60: Space Gray | F60: 42MM | G60: Yes | H60: Sport Band | I60: Black | J60: =VLOOKUP(D60,'Cover Page'!$B$26:$C$44,2,FALSE) -> 11867130 | L60: =VLOOKUP(A60&"",'Material Master'!A:D,4,FALSE) -> #
A61: 12247522 | B61: MNNG2LL/A | C61: WATCH S1 38MM SLVR ALUM WHT SPT US | D61: Series 1 | E61: Silver | F61: 38MM | G61: No | H61: Sport Band | I61: White | J61: 11867130 | L61: =VLOOKUP(A61&"",'Material Master'!A:D,4,FALSE) -> 01
A62: 12917945 | B62: MQL12LL/A | C62: APPLE WATCH S3 42 SG AL BLK SP GPS-USA | D62: Series 3 | E62: Space Gray | F62: 42MM | G62: No | H62: Sport Band | I62: Black | J62: =VLOOKUP(D62,'Cover Page'!$B$26:$C$44,2,FALSE) -> 11867130 | L62: =VLOOKUP(A62&"",'Material Master'!A:D,4,FALSE) -> 01

Sheet iPod
E1: Color | F1: Storage
A7: *To view our current inventory levels, please visit shop.techdata.com
A15: *Red text denotes EOL product
A16: Tech Data Part Number | B16: Apple Part Number | C16: Description | D16: Model | E16: Color | F16: Storage | G16: AppleCare
A17: 11817005 | B17: MKHV2LL/A | C17: IPOD TCH 32GB BLUE US | D17: iPod Touch | E17: Blue | F17: 32GB | G17: =VLOOKUP(D17,'Cover Page'!$B$26:$C$44,2,FALSE) -> 11213028 | I17: =VLOOKUP(A17&"",'Material Master'!A:D,4,FALSE) -> #
A18: 11817006 | B18: MKHT2LL/A | C18: IPOD TCH 32GB GOLD US | D18: iPod Touch | E18: Gold | F18: 32GB | G18: =VLOOKUP(D18,'Cover Page'!$B$26:$C$44,2,FALSE) -> 11213028 | I18: =VLOOKUP(A18&"",'Material Master'!A:D,4,FALSE) -> #
A19: 11817007 | B19: MKHQ2LL/A | C19: IPOD TCH 32GB PINK US | D19: iPod Touch | E19: Pink | F19: 32GB | G19: =VLOOKUP(D19,'Cover Page'!$B$26:$C$44,2,FALSE) -> 11213028 | I19: =VLOOKUP(A19&"",'Material Master'!A:D,4,FALSE) -> #
A20: 11817003 | B20: MKJ02LL/A | C20: IPOD TCH 32GB SPACE GRY US | D20: iPod Touch | E20: Space Gray | F20: 32GB | G20: =VLOOKUP(D20,'Cover Page'!$B$26:$C$44,2,FALSE) -> 11213028 | I20: =VLOOKUP(A20&"",'Material Master'!A:D,4,FALSE) -> #
A21: 11817004 | B21: MKHX2LL/A | C21: IPOD TCH 32GB WHT & SLVR US | D21: iPod Touch | E21: White/Silver | F21: 32GB | G21: =VLOOKUP(D21,'Cover Page'!$B$26:$C$44,2,FALSE) -> 11213028 | I21: =VLOOKUP(A21&"",'Material Master'!A:D,4,FALSE) -> #
A22: 12359609 | B22: MKWP2LL/A | C22: IPOD TCH 128GB BLUE USA | D22: iPod Touch | E22: Blue | F22: 128GB | G22: =VLOOKUP(D22,'Cover Page'!$B$26:$C$44,2,FALSE) -> 11213028 | I22: =VLOOKUP(A22&"",'Material Master'!A:D,4,FALSE) -> #
A23: 12359731 | B23: MKWM2LL/A | C23: IPOD TCH 128GB GOLD USA | D23: iPod Touch | E23: Gold | F23: 128GB | G23: =VLOOKUP(D23,'Cover Page'!$B$26:$C$44,2,FALSE) -> 11213028 | I23: =VLOOKUP(A23&"",'Material Master'!A:D,4,FALSE) -> #
A24: 12359732 | B24: MKWK2LL/A | C24: IPOD TCH 128GB PINK USA | D24: iPod Touch | E24: Pink | F24: 128GB | G24: =VLOOKUP(D24,'Cover Page'!$B$26:$C$44,2,FALSE) -> 11213028 | I24: =VLOOKUP(A24&"",'Material Master'!A:D,4,FALSE) -> #
A25: 12359733 | B25: MKWU2LL/A | C25: IPOD TCH 128GB SPACE GRY USA | D25: iPod Touch | E25: Space Gray | F25: 128GB | G25: =VLOOKUP(D25,'Cover Page'!$B$26:$C$44,2,FALSE) -> 11213028 | I25: =VLOOKUP(A25&"",'Material Master'!A:D,4,FALSE) -> #
A26: 12359610 | B26: MKWR2LL/A | C26: IPOD TCH 128GB WHT & SLVR USA | D26: iPod Touch | E26: White/Silver | F26: 128GB | G26: =VLOOKUP(D26,'Cover Page'!$B$26:$C$44,2,FALSE) -> 11213028 | I26: =VLOOKUP(A26&"",'Material Master'!A:D,4,FALSE) -> #

Sheet Accessories
A1: Tech Data Part Number | B1: Apple Part Number | C1: Description | D1: Product Name | E1: Product Type | F1: Product Classification | G1: Case Pack QTY
A2: 11834597 | B2: MD824AM/A | C2: 0.2M LIGHTNING TO 30PIN ADPT AME | D2: Lightning to 30Pin | E2: Multi-Use | F2: Cables & Docks | G2: 10 | I2: =VLOOKUP(A2&"",'Material Master'!A:D,4,FALSE) -> #
A3: 11867510 | B3: MLLA2AM/A | C3: 0.3M WATCH MGNT CHARGING CBL AME | D3: Watch Charging Cable | E3: Apple Watch Multi-Use | F3: Cables & Docks | G3: 10 | I3: =VLOOKUP(A3&"",'Material Master'!A:D,4,FALSE) -> 98
A4: 11829279 | B4: ME291AM/A | C4: 0.5M LIGHTNING TO USB CBL | D4: Lightning to USB | E4: Multi-Use | F4: Cables & Docks | G4: 10 | I4: =VLOOKUP(A4&"",'Material Master'!A:D,4,FALSE) -> #
A5: 11711127 | B5: MD862LL/A | C5: 0.5M TBOLT CBL ZML | D5: Thunderbolt Cable | E5: Multi-Use | F5: Cables & Docks | G5: 10 | I5: =VLOOKUP(A5&"",'Material Master'!A:D,4,FALSE) -> #
A6: 13041068 | B6: MQ4H2AM/A | C6: 0.8M TBOLT 3 USB-C CBL AME | D6: Thunderbolt Cable | E6: Multi-Use | F6: Cables & Docks | G6: 10 | I6: =VLOOKUP(A6&"",'Material Master'!A:D,4,FALSE) -> #
A7: 11927449 | B7: MC838LL/B | C7: 1.8M APPLE HDMI CBL USA | D7: Apple HDMI Cable | E7: Multi-Use | F7: Cables & Docks | G7: 10 | I7: =VLOOKUP(A7&"",'Material Master'!A:D,4,FALSE) -> 98
A8: 10933042 | B8: MD836LL/A | C8: 12W USB PWR ADPT USA | D8: 12W USB Power Adapter | E8: Multi-Use | F8: Power | G8: 10 | I8: =VLOOKUP(A8&"",'Material Master'!A:D,4,FALSE) -> #
A9: 13274699 | B9: MQUE2AM/A | C9: 1M USB TO LGHT CBL AME | D9: Lightning to USB | E9: Multi-Use | F9: Cables & Docks | G9: 10 | I9: =VLOOKUP(A9&"",'Material Master'!A:D,4,FALSE) -> #
A10: 13274700 | B10: MQGJ2AM/A | C10: 1M USB-C TO LGHT CBL AME | D10: USB-C to Lightning | E10: Multi-Use | F10: Cables & Docks | G10: 10 | I10: =VLOOKUP(A10&"",'Material Master'!A:D,4,FALSE) -> #
A11: 11867512 | B11: MKLG2AM/A | C11: 1M WATCH MAG CHARGING CBL AME | D11: Watch Charging Cable | E11: Apple Watch Multi-Use | F11: Cables & Docks | G11: 10 | I11: =VLOOKUP(A11&"",'Material Master'!A:D,4,FALSE) -> 98
A12: 11841429 | B12: MD819AM/A | C12: 2M LIGHTNING TO USB CBL AME | D12: Lightning to USB | E12: Multi-Use | F12: Cables & Docks | G12: 10 | I12: =VLOOKUP(A12&"",'Material Master'!A:D,4,FALSE) -> #
A13: 11760178 | B13: MD861LL/A | C13: 2M TBOLT CBL US | D13: Thunderbolt Cable | E13: Multi-Use | F13: Cables & Docks | G13: 10 | I13: =VLOOKUP(A13&"",'Material Master'!A:D,4,FALSE) -> #
A14: 12287504 | B14: MLL82AM/A | C14: 2M USB-C CHRG CBL AME | D14: USB-C Charge Cable | E14: Multi-Use | F14: Cables & Docks | G14: 10 | I14: =VLOOKUP(A14&"",'Material Master'!A:D,4,FALSE) -> #
A15: 12081109 | B15: MKQ42AM/A | C15: 2M USB-C TO LIGHTNING CBL AME | D15: Promise SANLINK | E15: Multi-Use | F15: Cables & Docks | G15: 10 | I15: =VLOOKUP(A15&"",'Material Master'!A:D,4,FALSE) -> #
A16: 11867511 | B16: MJVX2AM/A | C16: 2M WATCH MAG CHARGING CBL AME | D16: Watch Charging Cable | E16: Apple Watch Multi-Use | F16: Cables & Docks | G16: 10 | I16: =VLOOKUP(A16&"",'Material Master'!A:D,4,FALSE) -> 98
A17: 12125480 | B17: MC552AM/B | C17: 30 PIN TO VGA ADPT | D17: 30 Pin to VGA | E17: Multi-Use | F17: Cables & Docks | G17: 10 | I17: =VLOOKUP(A17&"",'Material Master'!A:D,4,FALSE) -> #
A18: 11095902 | B18: MA591G/C | C18: 30-PIN TO USB CBL | D18: 30Pin to USB | E18: Multi-Use | F18: Cables & Docks | G18: 10 | I18: =VLOOKUP(A18&"",'Material Master'!A:D,4,FALSE) -> #
A19: 13332746 | B19: MR2A2LL/A | C19: 30W USB-C PWRADPT | D19: USB-C Power Adapter | E19: Multi-Use | F19: Power | G19: 10 | I19: =VLOOKUP(A19&"",'Material Master'!A:D,4,FALSE) -> #
A20: 11867505 | B20: MLKX2ZM/A | C20: 38MM MN BLUE SPORT W/ SST PIN SM ML ZML | D20: Sport W/ SST PIN SM ML | E20: Apple Watch 38MM | F20: Cases, Covers and Bands | G20: 10 | I20: =VLOOKUP(A20&"",'Material Master'!A:D,4,FALSE) -> 01
A21: 10047310 | B21: MA119G/B | C21: 3PK APPLE IPOD UNIV DOCK ADPT IPOD W/ CL | D21: Apple iPod Dock Adapter | E21: Multi-Use | F21: Cables & Docks | G21: 10 | I21: =VLOOKUP(A21&"",'Material Master'!A:D,4,FALSE) -> #
A22: 11867507 | B22: MLL02ZM/A | C22: 42MM MN BLUE SPORT W/ SST PIN SM ML ZML | D22: Sport W/ SST PIN SM ML | E22: Apple Watch 42 MM | F22: Cases, Covers and Bands | G22: 10 | I22: =VLOOKUP(A22&"",'Material Master'!A:D,4,FALSE) -> 01
A23: 10767451 | B23: MD592LL/A | C23: 45W MAGSAFE 2 PWR ADPT USA | D23: Magsafe 2 Power Adapter | E23: Multi-Use | F23: Power | G23: 10 | I23: =VLOOKUP(A23&"",'Material Master'!A:D,4,FALSE) -> #
A24: 11297195 | B24: MF623G/A | C24: 4GB 1866MHZ DDR3 ECC SDRAM DIMM-GEN | D24: Apple Memory | E24: Multi-Use | F24: Memory | G24: 1 | I24: =VLOOKUP(A24&"",'Material Master'!A:D,4,FALSE) -> #
A25: 10900219 | B25: MD810LL/A | C25: 5W USB PWR ADPT US USA | D25: 5W USB Power Adapter | E25: Multi-Use | F25: Power | G25: 10 | I25: =VLOOKUP(A25&"",'Material Master'!A:D,4,FALSE) -> #
A26: 10933052 | B26: MD565LL/A | C26: 60W MAGSAFE 2 PWR ADPT USA | D26: Magsafe 2 Power Adapter | E26: Multi-Use | F26: Power | G26: 5 | I26: =VLOOKUP(A26&"",'Material Master'!A:D,4,FALSE) -> #
A27: 13478920 | B27: MRW22LL/A | C27: 61W USB-C PWRADPT | D27: USB-C Power Adapter | E27: Multi-Use | F27: Power | I27: =VLOOKUP(A27&"",'Material Master'!A:D,4,FALSE) -> #
A28: 12287506 | B28: MNF72LL/A | C28: 61W USB-C PWRADPT USA | D28: USB-C Power Adapter | E28: Multi-Use | F28: Power | G28: 5 | I28: =VLOOKUP(A28&"",'Material Master'!A:D,4,FALSE) -> 01
A29: 10767450 | B29: MD506LL/A | C29: 85W MAGSAFE 2 PWR ADPT USA | D29: Magsafe 2 Power Adapter | E29: Multi-Use | F29: Power | G29: 10 | I29: =VLOOKUP(A29&"",'Material Master'!A:D,4,FALSE) -> #
A30: 12287450 | B30: MNF82LL/A | C30: 87W USB-C PWRADPT USA | D30: USB-C Power Adapter | E30: Multi-Use | F30: Power | G30: 5 | I30: =VLOOKUP(A30&"",'Material Master'!A:D,4,FALSE) -> #
A31: 12389480 | B31: MMEF2AM/A | C31: AIRPODS AME | D31: Airpods | E31: Multi-Use | F31: Headphones | G31: 10 | I31: =VLOOKUP(A31&"",'Material Master'!A:D,4,FALSE) -> 40
A32: 10767459 | B32: MC414LL/A | C32: AIRPORT EXPRESS BASE STATION USA | D32: Airport Express | E32: Multi-Use | F32: Airport & Wireless | G32: 4 | I32: =VLOOKUP(A32&"",'Material Master'!A:D,4,FALSE) -> 98
A33: 11139190 | B33: ME918LL/A | C33: AIRPORT EXTREME 802.11AC-USA | D33: Airport Extreme | E33: Multi-Use | F33: Airport & Wireless | G33: 4 | I33: =VLOOKUP(A33&"",'Material Master'!A:D,4,FALSE) -> #
A34: 11139191 | B34: ME177LL/A | C34: AIRPORT TIME CAPSULE 802.11AC 2TB-USA | D34: Airport Time Capsule | E34: Multi-Use | F34: Airport & Wireless | G34: 4 | I34: =VLOOKUP(A34&"",'Material Master'!A:D,4,FALSE) -> #
A35: 11139192 | B35: ME182LL/A | C35: AIRPORT TIME CAPSULE 802.11AC 3TB-USA | D35: Airport Time Capsule | E35: Multi-Use | F35: Airport & Wireless | G35: 4 | I35: =VLOOKUP(A35&"",'Material Master'!A:D,4,FALSE) -> #
A36: 10047536 | B36: MC747LL/A | C36: APPLE 45W MAGSAFE POWER ADPT USA | D36: Magsafe Power Adapter | E36: Multi-Use | F36: Power | G36: 5 | I36: =VLOOKUP(A36&"",'Material Master'!A:D,4,FALSE) -> #
A37: 10047464 | B37: MC556LL/B | C37: APPLE 85W MAGSAFE PWR ADPT USA | D37: Magsafe Power Adapter | E37: Multi-Use | F37: Power | G37: 10 | I37: =VLOOKUP(A37&"",'Material Master'!A:D,4,FALSE) -> #
A38: 11587840 | B38: MJVU2AM/A | C38: APPLE HDMI TO DVI ADPT AME | D38: Apple HDMI Adapter | E38: Multi-Use | F38: Cables & Docks | G38: 10 | I38: =VLOOKUP(A38&"",'Material Master'!A:D,4,FALSE) -> #
A39: 13478919 | B39: MU8F2AM/A | C39: APPLE PENCIL 2ND GEN | D39: Apple Pencil | E39: iPad Pro 11 and 2018 12.9 | F39: Mice & Keyboard | I39: =VLOOKUP(A39&"",'Material Master'!A:D,4,FALSE) -> #
A40: 11889202 | B40: MK0C2AM/A | C40: APPLE PENCIL AME | D40: Apple Pencil | E40: iPad Pro Universal | F40: Mice & Keyboard | G40: 10 | I40: =VLOOKUP(A40&"",'Material Master'!A:D,4,FALSE) -> #
A41: 12081120 | B41: MLUN2AM/A | C41: APPLE PENCIL TIPS AME | D41: Apple Pencil Tips | E41: iPad Pro Universal | F41: Mice & Keyboard | G41: 10 | I41: =VLOOKUP(A41&"",'Material Master'!A:D,4,FALSE) -> #
A42: 12084375 | B42: MM4T2AM/A | C42: APPLE REMOTE-AME | D42: Apple Remote | E42: Multi-Use | F42: Extras | G42: 1 | I42: =VLOOKUP(A42&"",'Material Master'!A:D,4,FALSE) -> #
A43: 11813630 | B43: MD464LL/A | C43: APPLE TBOLT FWIRE ADPT USA | D43: Thunderbolt Adapter | E43: Multi-Use | F43: Cables & Docks | G43: 10 | I43: =VLOOKUP(A43&"",'Material Master'!A:D,4,FALSE) -> #
A44: 12917805 | B44: MR912LL/A | C44: APPLE TV 32GB US 2017 | D44: Apple TV | E44: Apple TV | F44: Extras | G44: 6 | I44: =VLOOKUP(A44&"",'Material Master'!A:D,4,FALSE) -> #
A45: 12917804 | B45: MQD22LL/A | C45: APPLE TV 4K 32GB | D45: Apple TV | E45: Apple TV | F45: Extras | G45: 6 | I45: =VLOOKUP(A45&"",'Material Master'!A:D,4,FALSE) -> #
A46: 12917852 | B46: MP7P2LL/A | C46: APPLE TV 4K 64GB US | D46: Apple TV | E46: Apple TV | F46: Extras | G46: 6 | I46: =VLOOKUP(A46&"",'Material Master'!A:D,4,FALSE) -> #
A47: 11816041 | B47: MD564LL/A | C47: APPLE USB SUPERDRIVE USA | D47: USB Superdrive | E47: Multi-Use | F47: Storage | G47: 10 | I47: =VLOOKUP(A47&"",'Material Master'!A:D,4,FALSE) -> #
A48: 12590965 | B48: 3C835AM/A | C48: APPLE WATCH 38 AZURE SPORT DEMO-AME | D48: Sport Band | E48: Apple Watch 38MM | F48: Cases, Covers and Bands | G48: 10 | I48: =VLOOKUP(A48&"",'Material Master'!A:D,4,FALSE) -> #
A49: 12591050 | B49: 3C847AM/A | C49: APPLE WATCH 38 BERRY WOVEN NYLON-AME | D49: Nylon Band | E49: Apple Watch 38MM | F49: Cases, Covers and Bands | G49: 10 | I49: =VLOOKUP(A49&"",'Material Master'!A:D,4,FALSE) -> #
A50: 12590966 | B50: 3C836AM/A | C50: APPLE WATCH 38 CAMELLIA SPORT DEMO-AME | D50: Sport Band | E50: Apple Watch 38MM | F50: Cases, Covers and Bands | G50: 10 | I50: =VLOOKUP(A50&"",'Material Master'!A:D,4,FALSE) -> #
A51: 12591095 | B51: 3C820AM/A | C51: APPLE WATCH 38 CLASSIC B BERRY DEMO-AME | D51: Classic Buckle | E51: Apple Watch 38MM | F51: Cases, Covers and Bands | G51: 10 | I51: =VLOOKUP(A51&"",'Material Master'!A:D,4,FALSE) -> #
A52: 12591091 | B52: 3C816AM/A | C52: APPLE WATCH 38 CLASSIC B MD BLU DEMO-AME | D52: Classic Buckle | E52: Apple Watch 38MM | F52: Cases, Covers and Bands | G52: 10 | I52: =VLOOKUP(A52&"",'Material Master'!A:D,4,FALSE) -> #
A53: 12591092 | B53: 3C817AM/A | C53: APPLE WATCH 38 CLASSIC B RED DEMO-AME | D53: Classic Buckle | E53: Apple Watch 38MM | F53: Cases, Covers and Bands | G53: 10 | I53: =VLOOKUP(A53&"",'Material Master'!A:D,4,FALSE) -> #
A54: 12591094 | B54: 3C819AM/A | C54: APPLE WATCH 38 CLASSIC B SPPHIR DEMO-AME | D54: Classic Buckle | E54: Apple Watch 38MM | F54: Cases, Covers and Bands | G54: 10 | I54: =VLOOKUP(A54&"",'Material Master'!A:D,4,FALSE) -> #
A55: 12591093 | B55: 3C818AM/A | C55: APPLE WATCH 38 CLASSIC B TAUPE DEMO-AME | D55: Classic Buckle | E55: Apple Watch 38MM | F55: Cases, Covers and Bands | G55: 10 | I55: =VLOOKUP(A55&"",'Material Master'!A:D,4,FALSE) -> #
A56: 12591086 | B56: MPWC2AM/A | C56: APPLE WATCH 38 CLASSIC BUCKLE SD BRN-AME | D56: Classic Buckle | E56: Apple Watch 38MM | F56: Cases, Covers and Bands | G56: 10 | I56: =VLOOKUP(A56&"",'Material Master'!A:D,4,FALSE) -> 01
A57: 12591112 | B57: 3C923AM/A | C57: APPLE WATCH 38 MDBL YGPN SPORT DEMO-AME | D57: Sport Band | E57: Apple Watch 38MM | F57: Cases, Covers and Bands | G57: 10 | I57: =VLOOKUP(A57&"",'Material Master'!A:D,4,FALSE) -> #
A58: 12591054 | B58: 3C851AM/A | C58: APPLE WATCH 38 MID BLUE WOVEN NYLON-AME | D58: Nylon Band | E58: Apple Watch 38MM | F58: Cases, Covers and Bands | G58: 10 | I58: =VLOOKUP(A58&"",'Material Master'!A:D,4,FALSE) -> #
A59: 12591049 | B59: 3C846AM/A | C59: APPLE WATCH 38 ORANGE WOVEN NYLON-AME | D59: Nylon Band | E59: Apple Watch 38MM | F59: Cases, Covers and Bands | G59: 10 | I59: =VLOOKUP(A59&"",'Material Master'!A:D,4,FALSE) -> #
A60: 12590964 | B60: 3C834AM/A | C60: APPLE WATCH 38 PEBBLE SPORT DEMO-AME | D60: Sport Band | E60: Apple Watch 38MM | F60: Cases, Covers and Bands | G60: 10 | I60: =VLOOKUP(A60&"",'Material Master'!A:D,4,FALSE) -> #
A61: 12591052 | B61: 3C849AM/A | C61: APPLE WATCH 38 POLLEN WOVEN NYLON-AME | D61: Nylon Band | E61: Apple Watch 38MM | F61: Cases, Covers and Bands | G61: 10 | I61: =VLOOKUP(A61&"",'Material Master'!A:D,4,FALSE) -> #
A62: 12591053 | B62: 3C850AM/A | C62: APPLE WATCH 38 RED WOVEN NYLON-AME | D62: Nylon Band | E62: Apple Watch 38MM | F62: Cases, Covers and Bands | G62: 10 | I62: =VLOOKUP(A62&"",'Material Master'!A:D,4,FALSE) -> #
A63: 12591051 | B63: 3C848AM/A | C63: APPLE WATCH 38 TAHOE BLUE WVEN NYLON-AME | D63: Nylon Band | E63: Apple Watch 38MM | F63: Cases, Covers and Bands | G63: 10 | I63: =VLOOKUP(A63&"",'Material Master'!A:D,4,FALSE) -> #
A64: 12081164 | B64: 3C091AM/A | C64: APPLE WATCH 38MM NYLON BLK DEMO AME | D64: Demo Band | E64: Apple Watch 38MM | F64: Cases, Covers and Bands | G64: 10 | I64: =VLOOKUP(A64&"",'Material Master'!A:D,4,FALSE) -> #
A65: 12081081 | B65: 3C093AM/A | C65: APPLE WATCH 38MM NYLON PEARL DEMO AME | D65: Demo Band | E65: Apple Watch 38MM | F65: Cases, Covers and Bands | G65: 10 | I65: =VLOOKUP(A65&"",'Material Master'!A:D,4,FALSE) -> #
A66: 12590968 | B66: 3C841AM/A | C66: APPLE WATCH 42 AZURE SPORT DEMO-AME | D66: Sport Band | E66: Apple Watch 42 MM | F66: Cases, Covers and Bands | G66: 10 | I66: =VLOOKUP(A66&"",'Material Master'!A:D,4,FALSE) -> #
A67: 12591056 | B67: 3C853AM/A | C67: APPLE WATCH 42 BERRY WOVEN NYLON-AME | D67: Nylon Band | E67: Apple Watch 42 MM | F67: Cases, Covers and Bands | G67: 10 | I67: =VLOOKUP(A67&"",'Material Master'!A:D,4,FALSE) -> #
A68: 12590969 | B68: 3C842AM/A | C68: APPLE WATCH 42 CAMELLIA SPORT DEMO-AME | D68: Sport Band | E68: Apple Watch 42 MM | F68: Cases, Covers and Bands | G68: 10 | I68: =VLOOKUP(A68&"",'Material Master'!A:D,4,FALSE) -> #
A69: 12590963 | B69: 3C828AM/A | C69: APPLE WATCH 42 CLASSIC B BERRY DEMO-AME | D69: Classic Buckle | E69: Apple Watch 42 MM | F69: Cases, Covers and Bands | G69: 10 | I69: =VLOOKUP(A69&"",'Material Master'!A:D,4,FALSE) -> #
A70: 12591098 | B70: 3C824AM/A | C70: APPLE WATCH 42 CLASSIC B MD BLU DEMO-AME | D70: Classic Buckle | E70: Apple Watch 42 MM | F70: Cases, Covers and Bands | G70: 10 | I70: =VLOOKUP(A70&"",'Material Master'!A:D,4,FALSE) -> #
A71: 12590960 | B71: 3C825AM/A | C71: APPLE WATCH 42 CLASSIC B RED DEMO-AME | D71: Classic Buckle | E71: Apple Watch 42 MM | F71: Cases, Covers and Bands | G71: 10 | I71: =VLOOKUP(A71&"",'Material Master'!A:D,4,FALSE) -> #
A72: 12590962 | B72: 3C827AM/A | C72: APPLE WATCH 42 CLASSIC B SPPHIR DEMO-AME | D72: Classic Buckle | E72: Apple Watch 42 MM | F72: Cases, Covers and Bands | G72: 10 | I72: =VLOOKUP(A72&"",'Material Master'!A:D,4,FALSE) -> #
A73: 12590961 | B73: 3C826AM/A | C73: APPLE WATCH 42 CLASSIC B TAUPE DEMO-AME | D73: Classic Buckle | E73: Apple Watch 42 MM | F73: Cases, Covers and Bands | G73: 10 | I73: =VLOOKUP(A73&"",'Material Master'!A:D,4,FALSE) -> #
A74: 12591113 | B74: 3C924AM/A | C74: APPLE WATCH 42 MDBL YGPN SPORT DEMO-AME | D74: Sport Band | E74: Apple Watch 42 MM | F74: Cases, Covers and Bands | G74: 10 | I74: =VLOOKUP(A74&"",'Material Master'!A:D,4,FALSE) -> #
A75: 12591107 | B75: 3C885AM/A | C75: APPLE WATCH 42 MID BLUE WOVEN NYLON-AME | D75: Nylon Band | E75: Apple Watch 42 MM | F75: Cases, Covers and Bands | G75: 10 | I75: =VLOOKUP(A75&"",'Material Master'!A:D,4,FALSE) -> #
A76: 12591055 | B76: 3C852AM/A | C76: APPLE WATCH 42 ORANGE WOVEN NYLON-AME | D76: Nylon Band | E76: Apple Watch 42 MM | F76: Cases, Covers and Bands | G76: 10 | I76: =VLOOKUP(A76&"",'Material Master'!A:D,4,FALSE) -> #
A77: 12590967 | B77: 3C840AM/A | C77: APPLE WATCH 42 PEBBLE SPORT DEMO-AME | D77: Sport Band | E77: Apple Watch 42 MM | F77: Cases, Covers and Bands | G77: 10 | I77: =VLOOKUP(A77&"",'Material Master'!A:D,4,FALSE) -> #
A78: 12591058 | B78: 3C855AM/A | C78: APPLE WATCH 42 POLLEN WOVEN NYLON-AME | D78: Nylon Band | E78: Apple Watch 42 MM | F78: Cases, Covers and Bands | G78: 10 | I78: =VLOOKUP(A78&"",'Material Master'!A:D,4,FALSE) -> #
A79: 12591106 | B79: 3C884AM/A | C79: APPLE WATCH 42 RED WOVEN NYLON-AME | D79: Nylon Band | E79: Apple Watch 42 MM | F79: Cases, Covers and Bands | G79: 10 | I79: =VLOOKUP(A79&"",'Material Master'!A:D,4,FALSE) -> #
A80: 12591083 | B80: MPW72AM/A | C80: APPLE WATCH 42 RED WOVEN NYLON-AME | D80: Nylon Band | E80: Apple Watch 42 MM | F80: Cases, Covers and Bands | G80: 10 | I80: =VLOOKUP(A80&"",'Material Master'!A:D,4,FALSE) -> #
A81: 12591057 | B81: 3C854AM/A | C81: APPLE WATCH 42 TAHOE BLUE WVEN NYLON-AME | D81: Nylon Band | E81: Apple Watch 42 MM | F81: Cases, Covers and Bands | G81: 10 | I81: =VLOOKUP(A81&"",'Material Master'!A:D,4,FALSE) -> #
A82: 12081082 | B82: 3C094AM/A | C82: APPLE WATCH 42MM NYLON BLK DEMO AME | D82: Demo Band | E82: Apple Watch 42 MM | F82: Cases, Covers and Bands | G82: 10 | I82: =VLOOKUP(A82&"",'Material Master'!A:D,4,FALSE) -> #
A83: 12081084 | B83: 3C168AM/A | C83: APPLE WATCH 42MM NYLON PEARL DEMO AME | D83: Demo Band | E83: Apple Watch 42 MM | F83: Cases, Covers and Bands | G83: 10 | I83: =VLOOKUP(A83&"",'Material Master'!A:D,4,FALSE) -> #
A84: 12081087 | B84: MLJH2AM/A | C84: APPLE WATCH 42MM SPC BLK MILANESE LP AME | D84: Milanese Loop | E84: Apple Watch 42 MM | F84: Cases, Covers and Bands | G84: 10 | I84: =VLOOKUP(A84&"",'Material Master'!A:D,4,FALSE) -> 01
A85: 12590912 | B85: MQ2K2AM/A | C85: APPLE WATCH NIKE 38 ANTH/BLACK SPORT-AME | D85: Sport Band | E85: Apple Watch 38MM | F85: Cases, Covers and Bands | G85: 10 | I85: =VLOOKUP(A85&"",'Material Master'!A:D,4,FALSE) -> 01
A86: 12591108 | B86: 3C904AM/A | C86: APPLE WATCH NIKE 38 PLT/WHT DEMO-AME | D86: Nike | E86: Apple Watch 38MM | F86: Cases, Covers and Bands | G86: 10 | I86: =VLOOKUP(A86&"",'Material Master'!A:D,4,FALSE) -> #
A87: 12590915 | B87: MQ2T2AM/A | C87: APPLE WATCH NIKE 42 ANTH/BLACK SPORT-AME | D87: Sport Band | E87: Apple Watch 42 MM | F87: Cases, Covers and Bands | G87: 10 | I87: =VLOOKUP(A87&"",'Material Master'!A:D,4,FALSE) -> 01
A88: 12590913 | B88: MQ2Q2AM/A | C88: APPLE WATCH NIKE 42 BLACK/VOLT SPORT-AME | D88: Sport Band | E88: Apple Watch 42 MM | F88: Cases, Covers and Bands | G88: 10 | I88: =VLOOKUP(A88&"",'Material Master'!A:D,4,FALSE) -> 98
A89: 12590914 | B89: MQ2R2AM/A | C89: APPLE WATCH NIKE 42 PLAT/WHITE SPORT-AME | D89: Sport Band | E89: Apple Watch 42 MM | F89: Cases, Covers and Bands | G89: 10 | I89: =VLOOKUP(A89&"",'Material Master'!A:D,4,FALSE) -> 98
A90: 12591110 | B90: 3C916AM/A | C90: APPLE WATCH NIKE 42 PLT/WHT DEMO-AME | D90: Nike | E90: Apple Watch 42 MM | F90: Cases, Covers and Bands | G90: 10 | I90: =VLOOKUP(A90&"",'Material Master'!A:D,4,FALSE) -> #
A91: 11867130 | B91: S5427LL/A | C91: AppleCare + for Watch | D91: AppleCare+ | E91: Apple Watch | F91: Solutions & Offerings | G91: N/A | I91: =VLOOKUP(A91&"",'Material Master'!A:D,4,FALSE) -> #
A92: 11035823 | B92: S3166LL/A | C92: AppleCare for Apple TV - 2 Year | D92: AppleCare | E92: Apple TV | F92: Solutions & Offerings | G92: N/A | I92: =VLOOKUP(A92&"",'Material Master'!A:D,4,FALSE) -> #
A93: 11052485 | B93: D6603ZM/A | C93: AppleCare Help Desk Support | D93: AppleCare Enterprise Support | E93: AppleCare Enterprise Support | F93: Solutions & Offerings | G93: N/A | I93: =VLOOKUP(A93&"",'Material Master'!A:D,4,FALSE) -> #
A94: 10046692 | B94: D5691ZM/A | C94: AppleCare OS Support - Alliance | D94: AppleCare Enterprise Support | E94: OS - Alliance | F94: Solutions & Offerings | G94: N/A | I94: =VLOOKUP(A94&"",'Material Master'!A:D,4,FALSE) -> #
A95: 10046691 | B95: D5690ZM/A | C95: AppleCare OS Support - Preferred | D95: AppleCare Enterprise Support | E95: OS - Preferred | F95: Solutions & Offerings | G95: N/A | I95: =VLOOKUP(A95&"",'Material Master'!A:D,4,FALSE) -> #
A96: 11052486 | B96: D6602ZM/A | C96: AppleCare OS Support - Select | D96: AppleCare Enterprise Support | E96: OS - Select | F96: Solutions & Offerings | G96: N/A | I96: =VLOOKUP(A96&"",'Material Master'!A:D,4,FALSE) -> #
A97: 11052484 | B97: D6604ZM/A | C97: AppleCare Professional Video Support | D97: AppleCare Enterprise Support | E97: AppleCare Enterprise Support | F97: Solutions & Offerings | G97: N/A | I97: =VLOOKUP(A97&"",'Material Master'!A:D,4,FALSE) -> #
A98: 10047332 | B98: MA714Z/B | C98: AppleCare Technician Training | D98: AppleCare Enterprise Support | E98: AppleCare Enterprise Support | F98: Solutions & Offerings | G98: N/A | I98: =VLOOKUP(A98&"",'Material Master'!A:D,4,FALSE) -> #
A99: 12694943 | B99: S6034LL/A | C99: AppleCare+ for 12-inch MacBook/13-inch MacBook Air | D99: AppleCare+ | E99: MacBook/MacBook Air | F99: Solutions & Offerings | G99: N/A | I99: =VLOOKUP(A99&"",'Material Master'!A:D,4,FALSE) -> #
A100: 12694944 | B100: S6201LL/A | C100: AppleCare+ for 13-inch MacBook Pro - 3 Year | D100: AppleCare+ | E100: MacBook Pro 13" | F100: Solutions & Offerings | G100: N/A | I100: =VLOOKUP(A100&"",'Material Master'!A:D,4,FALSE) -> #
A101: 12694942 | B101: S6054LL/A | C101: AppleCare+ for 15-inch MacBook Pro - 3 Year | D101: AppleCare+ | E101: MacBook Pro 15" | F101: Solutions & Offerings | G101: N/A | I101: =VLOOKUP(A101&"",'Material Master'!A:D,4,FALSE) -> #
A102: 12694940 | B102: S6048LL/A | C102: AppleCare+ for iMac - 3 Year | D102: AppleCare+ | E102: iMac | F102: Solutions & Offerings | G102: N/A | I102: =VLOOKUP(A102&"",'Material Master'!A:D,4,FALSE) -> #
A103: 11213028 | B103: S5094LL/A | C103: AppleCare+ for iPod touch/classic - 2 year | D103: AppleCare+ | E103: iPod Touch | F103: Solutions & Offerings | G103: N/A | I103: =VLOOKUP(A103&"",'Material Master'!A:D,4,FALSE) -> #
A104: 12694941 | B104: S6190LL/A | C104: AppleCare+ for Mac mini | D104: AppleCare+ | E104: Mac Mini | F104: Solutions & Offerings | G104: N/A | I104: =VLOOKUP(A104&"",'Material Master'!A:D,4,FALSE) -> #
A105: 12694945 | B105: S6194LL/A | C105: AppleCare+ for Mac Pro | D105: AppleCare+ | E105: Mac Pro | F105: Solutions & Offerings | G105: N/A | I105: =VLOOKUP(A105&"",'Material Master'!A:D,4,FALSE) -> #
A106: 12081085 | B106: 3C273AM/A | C106: APPLEWATCH 38MM SP BLK MILLOOP DEMO AME | D106: Demo Band | E106: Apple Watch 38MM | F106: Cases, Covers and Bands | G106: 10 | I106: =VLOOKUP(A106&"",'Material Master'!A:D,4,FALSE) -> #
A107: 12081086 | B107: 3C274AM/A | C107: APPLEWATCH 42MM SP BLK MILLOOP DEMO AME | D107: Demo Band | E107: Apple Watch 42 MM | F107: Cases, Covers and Bands | G107: 10 | I107: =VLOOKUP(A107&"",'Material Master'!A:D,4,FALSE) -> #
A108: 10047538 | B108: MC748ZM/A | C108: COMPOSITE AV CBL ZML | D108: AV Cable | E108: Multi-Use | F108: Cables & Docks | G108: 10 | I108: =VLOOKUP(A108&"",'Material Master'!A:D,4,FALSE) -> #
A109: 12467605 | B109: MNHF2AM/A | C109: EARPODS AME | D109: Earpods - 3.5mm Plug | E109: Multi-Use | F109: Headphones | G109: 10 | I109: =VLOOKUP(A109&"",'Material Master'!A:D,4,FALSE) -> #
A110: 12247465 | B110: MMTN2AM/A | C110: EARPODS W LIGHTNING CONN AME | D110: Earpods - Lightning Connector | E110: Multi-Use | F110: Headphones | G110: 10 | I110: =VLOOKUP(A110&"",'Material Master'!A:D,4,FALSE) -> #
A111: 13115195 | B111: MQHW2LL/A | C111: HOMEPOD SPACE GRY USA | D111: HomePod | E111: HomePod | F111: Extras | I111: =VLOOKUP(A111&"",'Material Master'!A:D,4,FALSE) -> #
A112: 13115193 | B112: MQHV2LL/A | C112: HOMEPOD WHT USA | D112: HomePod | E112: HomePod | F112: Extras | I112: =VLOOKUP(A112&"",'Material Master'!A:D,4,FALSE) -> #
A113: 11210842 | B113: ME186LL/A | C113: IN-EAR HEADPH W/ REM & MIC | D113: Apple In-Ear Headphones | E113: Multi-Use | F113: Headphones | G113: 10 | I113: =VLOOKUP(A113&"",'Material Master'!A:D,4,FALSE) -> #
A114: 11858535 | B114: MKLV2ZM/A | C114: IPAD MINI 4 SMART COVER CH GRY ZML | D114: Smart Cover | E114: iPad Mini 4 | F114: Cases, Covers and Bands | G114: 10 | I114: =VLOOKUP(A114&"",'Material Master'!A:D,4,FALSE) -> #
A115: 11858537 | B115: MKLX2ZM/A | C115: IPAD MINI 4 SMART COVER MIDNIGHTBL ZML | D115: Smart Cover | E115: iPad Mini 4 | F115: Cases, Covers and Bands | G115: 10 | I115: =VLOOKUP(A115&"",'Material Master'!A:D,4,FALSE) -> #
A116: 11858538 | B116: MKLY2ZM/A | C116: IPAD MINI 4 SMART COVER RED ZML | D116: Smart Cover | E116: iPad Mini 4 | F116: Cases, Covers and Bands | G116: 10 | I116: =VLOOKUP(A116&"",'Material Master'!A:D,4,FALSE) -> #
A117: 11858536 | B117: MKLW2ZM/A | C117: IPAD MINI 4 SMART COVER WHT ZML | D117: Smart Cover | E117: iPad Mini 4 | F117: Cases, Covers and Bands | G117: 10 | I117: =VLOOKUP(A117&"",'Material Master'!A:D,4,FALSE) -> #
A118: 12695467 | B118: MPU62ZM/A | C118: IPAD PRO 10.5 LTHR SLEEVE BLK ZML | D118: Leather Case | E118: iPad Pro 10.5 | F118: Cases, Covers and Bands | G118: 5 | I118: =VLOOKUP(A118&"",'Material Master'!A:D,4,FALSE) -> #
A119: 12695465 | B119: MPU12ZM/A | C119: IPAD PRO 10.5 LTHR SLEEVE BRN ZML | D119: Leather Case | E119: iPad Pro 10.5 | F119: Cases, Covers and Bands | G119: 5 | I119: =VLOOKUP(A119&"",'Material Master'!A:D,4,FALSE) -> #
A120: 12695466 | B120: MPU22ZM/A | C120: IPAD PRO 10.5 LTHR SLEEVE MID BLUE ZML | D120: Leather Case | E120: iPad Pro 10.5 | F120: Cases, Covers and Bands | G120: 5 | I120: =VLOOKUP(A120&"",'Material Master'!A:D,4,FALSE) -> #
A121: 12695464 | B121: MPU02ZM/A | C121: IPAD PRO 10.5 LTHR SLEEVE TAUPE ZML | D121: Leather Case | E121: iPad Pro 10.5 | F121: Cases, Covers and Bands | G121: 5 | I121: =VLOOKUP(A121&"",'Material Master'!A:D,4,FALSE) -> #
A122: 12695471 | B122: MPUD2ZM/A | C122: IPAD PRO 10.5 LTHR SMART COVER BLK ZML | D122: Leather Case | E122: iPad Pro 10.5 | F122: Cases, Covers and Bands | G122: 10 | I122: =VLOOKUP(A122&"",'Material Master'!A:D,4,FALSE) -> #
A123: 12695470 | B123: MPUA2ZM/A | C123: IPAD PRO 10.5 LTHR SMART COVER BLUE ZML | D123: Leather Case | E123: iPad Pro 10.5 | F123: Cases, Covers and Bands | G123: 10 | I123: =VLOOKUP(A123&"",'Material Master'!A:D,4,FALSE) -> #
A124: 12695469 | B124: MPU92ZM/A | C124: IPAD PRO 10.5 LTHR SMART COVER BRN ZML | D124: Leather Case | E124: iPad Pro 10.5 | F124: Cases, Covers and Bands | G124: 10 | I124: =VLOOKUP(A124&"",'Material Master'!A:D,4,FALSE) -> #
A125: 12695468 | B125: MPU82ZM/A | C125: IPAD PRO 10.5 LTHR SMART COVER TAUPE ZML | D125: Leather Case | E125: iPad Pro 10.5 | F125: Cases, Covers and Bands | G125: 10 | I125: =VLOOKUP(A125&"",'Material Master'!A:D,4,FALSE) -> 01
A126: 12695455 | B126: MQ082ZM/A | C126: IPAD PRO 10.5 SMART COVER CHAR GRY ZML | D126: Smart Cover | E126: iPad Pro 10.5 | F126: Cases, Covers and Bands | G126: 10 | I126: =VLOOKUP(A126&"",'Material Master'!A:D,4,FALSE) -> 01
A127: 12695456 | B127: MQ092ZM/A | C127: IPAD PRO 10.5 SMART COVER MID BLUE ZML | D127: Smart Cover | E127: iPad Pro 10.5 | F127: Cases, Covers and Bands | G127: 10 | I127: =VLOOKUP(A127&"",'Material Master'!A:D,4,FALSE) -> 98
A128: 12695457 | B128: MQ0E2ZM/A | C128: IPAD PRO 10.5 SMART COVER PINK SAND ZML | D128: Smart Cover | E128: iPad Pro 10.5 | F128: Cases, Covers and Bands | G128: 10 | I128: =VLOOKUP(A128&"",'Material Master'!A:D,4,FALSE) -> 98
A129: 12695463 | B129: MPQM2ZM/A | C129: IPAD PRO 10.5 SMART COVER WHT ZML | D129: Smart Cover | E129: iPad Pro 10.5 | F129: Cases, Covers and Bands | G129: 10 | I129: =VLOOKUP(A129&"",'Material Master'!A:D,4,FALSE) -> 98
A130: 12695478 | B130: MPTL2LL/A | C130: IPAD PRO 10.5 SMART KEYBOARD-USA | D130: Smart Keyboard | E130: iPad Pro 10.5 | F130: Mice & Keyboard | G130: 10 | I130: =VLOOKUP(A130&"",'Material Master'!A:D,4,FALSE) -> #
A131: 12695472 | B131: MQ0U2ZM/A | C131: IPAD PRO 12.9 LTHR SLEEVE BLK ZML | D131: Leather Case | E131: iPad Pro 12.9 | F131: Cases, Covers and Bands | G131: 5 | I131: =VLOOKUP(A131&"",'Material Master'!A:D,4,FALSE) -> #
A132: 12695461 | B132: MQ0T2ZM/A | C132: IPAD PRO 12.9 LTHR SLEEVE BLUE ZML | D132: Leather Case | E132: iPad Pro 12.9 | F132: Cases, Covers and Bands | G132: 5 | I132: =VLOOKUP(A132&"",'Material Master'!A:D,4,FALSE) -> #
A133: 12695460 | B133: MQ0Q2ZM/A | C133: IPAD PRO 12.9 LTHR SLEEVE BRN ZML | D133: Leather Case | E133: iPad Pro 12.9 | F133: Cases, Covers and Bands | G133: 5 | I133: =VLOOKUP(A133&"",'Material Master'!A:D,4,FALSE) -> #
A134: 12695454 | B134: MPV62ZM/A | C134: IPAD PRO 12.9 LTHR SMART COVER BLK ZML | D134: Leather Case | E134: iPad Pro 12.9 | F134: Cases, Covers and Bands | G134: 5 | I134: =VLOOKUP(A134&"",'Material Master'!A:D,4,FALSE) -> 01
A135: 12695453 | B135: MPV22ZM/A | C135: IPAD PRO 12.9 LTHR SMART COVER BLUE ZML | D135: Leather Case | E135: iPad Pro 12.9 | F135: Cases, Covers and Bands | G135: 5 | I135: =VLOOKUP(A135&"",'Material Master'!A:D,4,FALSE) -> 98
A136: 12695452 | B136: MPV12ZM/A | C136: IPAD PRO 12.9 LTHR SMART COVER BRN ZML | D136: Leather Case | E136: iPad Pro 12.9 | F136: Cases, Covers and Bands | G136: 5 | I136: =VLOOKUP(A136&"",'Material Master'!A:D,4,FALSE) -> 98
A137: 12695458 | B137: MQ0G2ZM/A | C137: IPAD PRO 12.9 SMART COVER CHAR GRY ZML | D137: Smart Cover | E137: iPad Pro 12.9 | F137: Cases, Covers and Bands | G137: 5 | I137: =VLOOKUP(A137&"",'Material Master'!A:D,4,FALSE) -> 01
A138: 12695459 | B138: MQ0H2ZM/A | C138: IPAD PRO 12.9 SMART COVER WHT ZML | D138: Smart Cover | E138: iPad Pro 12.9 | F138: Cases, Covers and Bands | G138: 5 | I138: =VLOOKUP(A138&"",'Material Master'!A:D,4,FALSE) -> 98
A139: 12590931 | B139: MQ4L2ZM/A | C139: IPAD SMART COVER-CHARCOAL GRAY-ZML | D139: Smart Cover | E139: iPad (5th Gen) | F139: Cases, Covers and Bands | G139: 10 | I139: =VLOOKUP(A139&"",'Material Master'!A:D,4,FALSE) -> #
A140: 12590934 | B140: MQ4P2ZM/A | C140: IPAD SMART COVER-MIDNIGHT BLUE-ZML | D140: Smart Cover | E140: iPad (5th Gen) | F140: Cases, Covers and Bands | G140: 10 | I140: =VLOOKUP(A140&"",'Material Master'!A:D,4,FALSE) -> #
A141: 12590935 | B141: MQ4Q2ZM/A | C141: IPAD SMART COVER-PINK SAND-ZML | D141: Smart Cover | E141: iPad (5th Gen) | F141: Cases, Covers and Bands | G141: 10 | I141: =VLOOKUP(A141&"",'Material Master'!A:D,4,FALSE) -> #
A142: 12590932 | B142: MQ4M2ZM/A | C142: IPAD SMART COVER-WHITE-ZML | D142: Smart Cover | E142: iPad (5th Gen) | F142: Cases, Covers and Bands | G142: 10 | I142: =VLOOKUP(A142&"",'Material Master'!A:D,4,FALSE) -> #
A143: 11773739 | B143: MGRM2AM/A | C143: IPHONE LIGHTNING DOCK AME | D143: iPhone Lightning Dock | E143: Multi-Use | F143: Cables & Docks | G143: 10 | I143: =VLOOKUP(A143&"",'Material Master'!A:D,4,FALSE) -> #
A144: 11755678 | B144: MC003AM/A | C144: IPOD SHUFFLE USB CBL AME | D144: USB Cable | E144: iPod Shuffle | F144: Cables & Docks | G144: 10 | I144: =VLOOKUP(A144&"",'Material Master'!A:D,4,FALSE) -> #
A145: 11711130 | B145: MD826AM/A | C145: LIGHTNING DIGTL AV ADPT ZML | D145: Lightning to Digital AV | E145: Multi-Use | F145: Cables & Docks | G145: 10 | I145: =VLOOKUP(A145&"",'Material Master'!A:D,4,FALSE) -> #
A146: 12247521 | B146: MNN62AM/A | C146: LIGHTNING DOCK BLK AME IPHONE | D146: iPhone Lightning Dock | E146: Multi-Use | F146: Cables & Docks | G146: 10 | I146: =VLOOKUP(A146&"",'Material Master'!A:D,4,FALSE) -> #
A147: 11862804 | B147: ML8J2AM/A | C147: LIGHTNING DOCK SLVR AME IPHONE | D147: iPhone Lightning Dock | E147: Multi-Use | F147: Cables & Docks | G147: 10 | I147: =VLOOKUP(A147&"",'Material Master'!A:D,4,FALSE) -> #
A148: 11862803 | B148: ML8H2AM/A | C148: LIGHTNING DOCK SPACE GRY AME IPHONE | D148: iPhone Lightning Dock | E148: Multi-Use | F148: Cables & Docks | G148: 10 | I148: =VLOOKUP(A148&"",'Material Master'!A:D,4,FALSE) -> #
A149: 12247466 | B149: MMX62AM/A | C149: LIGHTNING TO 3.5MM HEADPH ADPT AME | D149: Lightning to 3.5MM | E149: Multi-Use | F149: Headphones | G149: 10 | I149: =VLOOKUP(A149&"",'Material Master'!A:D,4,FALSE) -> #
A150: 11815879 | B150: MD823AM/A | C150: LIGHTNING TO 30PIN ADPT AME | D150: Lightning to 30Pin | E150: Multi-Use | F150: Cables & Docks | G150: 10 | I150: =VLOOKUP(A150&"",'Material Master'!A:D,4,FALSE) -> #
A151: 11711131 | B151: MD820AM/A | C151: LIGHTNING TO MICRO USB ADPT | D151: Lightning to Micro | E151: Multi-Use | F151: Cables & Docks | G151: 10 | I151: =VLOOKUP(A151&"",'Material Master'!A:D,4,FALSE) -> #
A152: 11980680 | B152: MJYT2AM/A | C152: LIGHTNING TO SD CARD CAM RDR USB3 AME | D152: Lightning to SD Card Reader | E152: Multi-Use | F152: Cables & Docks | G152: 10 | I152: =VLOOKUP(A152&"",'Material Master'!A:D,4,FALSE) -> #
A153: 11823716 | B153: MD821AM/A | C153: LIGHTNING TO USB CAM ADPT AME | D153: Lightning to USB | E153: Multi-Use | F153: Cables & Docks | G153: 10 | I153: =VLOOKUP(A153&"",'Material Master'!A:D,4,FALSE) -> #
A154: 12081108 | B154: MK0W2AM/A | C154: LIGHTNING TO USB3 CAM ADPT AME | D154: Lightning to USB3 | E154: Multi-Use | F154: Cables & Docks | G154: 10 | I154: =VLOOKUP(A154&"",'Material Master'!A:D,4,FALSE) -> #
A155: 11894777 | B155: MD825AM/A | C155: LIGHTNING TO VGA ADPT | D155: Lightning to VGA | E155: Multi-Use | F155: Cables & Docks | G155: 10 | I155: =VLOOKUP(A155&"",'Material Master'!A:D,4,FALSE) -> #
A156: 11862831 | B156: MKXW2ZM/A | C156: LTHR CASE BLK ZML IPHONE 6S | D156: Leather Case | E156: iPhone 6S | F156: Cases, Covers and Bands | G156: 10 | I156: =VLOOKUP(A156&"",'Material Master'!A:D,4,FALSE) -> #
A157: 11862819 | B157: MKXF2ZM/A | C157: LTHR CASE BLK ZML IPHONE 6S PLUS | D157: Leather Case | E157: iPhone 6S Plus | F157: Cases, Covers and Bands | G157: 10 | I157: =VLOOKUP(A157&"",'Material Master'!A:D,4,FALSE) -> #
A158: 12081107 | B158: MMHG2ZM/A | C158: LTHR CASE MID BLUE ZML IPHONE SE | D158: Leather Case | E158: iPhone SE | F158: Cases, Covers and Bands | G158: 10 | I158: =VLOOKUP(A158&"",'Material Master'!A:D,4,FALSE) -> #
A159: 11862817 | B159: MKXD2ZM/A | C159: LTHR CASE MIDNBLU ZML IPHONE 6S PLUS | D159: Leather Case | E159: iPhone 6S Plus | F159: Cases, Covers and Bands | G159: 10 | I159: =VLOOKUP(A159&"",'Material Master'!A:D,4,FALSE) -> #
A160: 11862829 | B160: MKXU2ZM/A | C160: LTHR CASE MIDNIGHT BLUE ZML IPHONE 6S | D160: Leather Case | E160: iPhone 6S | F160: Cases, Covers and Bands | G160: 10 | I160: =VLOOKUP(A160&"",'Material Master'!A:D,4,FALSE) -> #
A161: 11862816 | B161: MKXC2ZM/A | C161: LTHR CASE SADDLEBR ZML IPHONE 6S PLUS | D161: Leather Case | E161: iPhone 6S Plus | F161: Cases, Covers and Bands | G161: 10 | I161: =VLOOKUP(A161&"",'Material Master'!A:D,4,FALSE) -> #
A162: 11467096 | B162: MF858AM/A | C162: MAC PRO SEC LOCK ADPT AME | D162: Mac Pro Lock | E162: Multi-Use | F162: Cables & Docks | G162: 10 | I162: =VLOOKUP(A162&"",'Material Master'!A:D,4,FALSE) -> #
A163: 10047440 | B163: MC461LL/A | C163: MACBOOK 60W MAGSAFE POWER ADPT-USA | D163: Magsafe Power Adapter | E163: Multi-Use | F163: Power | G163: 10 | I163: =VLOOKUP(A163&"",'Material Master'!A:D,4,FALSE) -> #
A164: 13162297 | B164: MRMH2LL/A | C164: MAGIC KEYBOARD WITH NUM KEYPAD SG-USA | D164: Magic Keyboard | E164: Multi-Use | F164: Mice & Keyboard | G164: 5 | I164: =VLOOKUP(A164&"",'Material Master'!A:D,4,FALSE) -> #
A165: 12695094 | B165: MQ052LL/A | C165: MAGIC KEYBOARD WITH NUM KEYPAD -USA | D165: Magic Keyboard | E165: Multi-Use | F165: Mice & Keyboard | G165: 5 | I165: =VLOOKUP(A165&"",'Material Master'!A:D,4,FALSE) -> #
A166: 11888962 | B166: MLA22LL/A | C166: MAGIC KYBD | D166: Apple KeyBoard | E166: Multi-Use | F166: Mice & Keyboard | G166: 10 | I166: =VLOOKUP(A166&"",'Material Master'!A:D,4,FALSE) -> #
A167: 13162295 | B167: MRME2LL/A | C167: MAGIC MOUSE 2 SPACE GRAY-USA | D167: Apple Mouse | E167: Multi-Use | F167: Mice & Keyboard | G167: 10 | I167: =VLOOKUP(A167&"",'Material Master'!A:D,4,FALSE) -> #
A168: 11888961 | B168: MLA02LL/A | C168: MAGIC MSE 2 | D168: Apple Mouse | E168: Multi-Use | F168: Mice & Keyboard | G168: 10 | I168: =VLOOKUP(A168&"",'Material Master'!A:D,4,FALSE) -> #
A169: 11888960 | B169: MJ2R2LL/A | C169: MAGIC TRACKPAD 2 | D169: TrackPad | E169: Multi-Use | F169: Mice & Keyboard | G169: 10 | I169: =VLOOKUP(A169&"",'Material Master'!A:D,4,FALSE) -> #
A170: 13162296 | B170: MRMF2LL/A | C170: MAGIC TRACKPAD 2 SPACE GRAY-USA | D170: Trackpad | E170: Multi-Use | F170: Mice & Keyboard | G170: 10 | I170: =VLOOKUP(A170&"",'Material Master'!A:D,4,FALSE) -> #
A171: 11711129 | B171: MD504LL/A | C171: MAGSAFE TO MAGSAFE 2 CONVRT ZML | D171: Magsafe Converter | E171: Multi-Use | F171: Cables & Docks | G171: 10 | I171: =VLOOKUP(A171&"",'Material Master'!A:D,4,FALSE) -> #
A172: 10914318 | B172: MB572Z/B | C172: MINI DISPLAYPORT TO VGA ADPT | D172: Mini DisplayPort | E172: Multi-Use | F172: Cables & Docks | G172: 10 | I172: =VLOOKUP(A172&"",'Material Master'!A:D,4,FALSE) -> #
A173: 11711518 | B173: MB570LL/B | C173: MINI DPT TO DVI ADPT INT | D173: Mini DisplayPort Adapter | E173: Multi-Use | F173: Cables & Docks | G173: 10 | I173: =VLOOKUP(A173&"",'Material Master'!A:D,4,FALSE) -> #
A174: 12695451 | B174: MQ0X2ZM/A | C174: PENCIL LTHR CASE BLK ZML | D174: Leather Case | E174: iPad Pro Universal | F174: Cases, Covers and Bands | G174: 5 | I174: =VLOOKUP(A174&"",'Material Master'!A:D,4,FALSE) -> #
A175: 12695450 | B175: MQ0W2ZM/A | C175: PENCIL LTHR CASE BLUE ZML | D175: Leather Case | E175: iPad Pro Universal | F175: Cases, Covers and Bands | G175: 5 | I175: =VLOOKUP(A175&"",'Material Master'!A:D,4,FALSE) -> #
A176: 12695449 | B176: MQ0V2ZM/A | C176: PENCIL LTHR CASE BRN ZML | D176: Leather Case | E176: iPad Pro Universal | F176: Cases, Covers and Bands | G176: 5 | I176: =VLOOKUP(A176&"",'Material Master'!A:D,4,FALSE) -> #
A177: 11713325 | B177: MK122LL/A | C177: PWRADPT EXTN CBL | D177: Power Adapter Cable | E177: Multi-Use | F177: Power | G177: 10 | I177: =VLOOKUP(A177&"",'Material Master'!A:D,4,FALSE) -> #
A178: 11889121 | B178: MLFQ2AM/A | C178: REM LOOP AME | D178: Loop | E178: Apple TV | F178: Extras | G178: 10 | I178: =VLOOKUP(A178&"",'Material Master'!A:D,4,FALSE) -> #
A179: 11862832 | B179: MKY02ZM/A | C179: SILICONE CASE CH GRY ZML IPHONE 6S | D179: Silicone Case | E179: iPhone 6S | F179: Cases, Covers and Bands | G179: 10 | I179: =VLOOKUP(A179&"",'Material Master'!A:D,4,FALSE) -> #
A180: 11862820 | B180: MKXJ2ZM/A | C180: SILICONE CASE CH GRY ZML IPHONE 6S PLUS | D180: Silicone Case | E180: iPhone 6S Plus | F180: Cases, Covers and Bands | G180: 10 | I180: =VLOOKUP(A180&"",'Material Master'!A:D,4,FALSE) -> #
A181: 11862834 | B181: MKY22ZM/A | C181: SILICONE CASE MIDNBLU ZML IPHONE 6S | D181: Silicone Case | E181: iPhone 6S | F181: Cases, Covers and Bands | G181: 10 | I181: =VLOOKUP(A181&"",'Material Master'!A:D,4,FALSE) -> #
A182: 11862822 | B182: MKXL2ZM/A | C182: SILICONE CASE MIDNBLU ZML IPHONE 6S PLUS | D182: Silicone Case | E182: iPhone 6S Plus | F182: Cases, Covers and Bands | G182: 10 | I182: =VLOOKUP(A182&"",'Material Master'!A:D,4,FALSE) -> #
A183: 11862823 | B183: MKXM2ZM/A | C183: SILICONE CASE RED ZML IPHONE 6S PLUS | D183: Silicone Case | E183: iPhone 6S Plus | F183: Cases, Covers and Bands | G183: 10 | I183: =VLOOKUP(A183&"",'Material Master'!A:D,4,FALSE) -> #
A184: 11862833 | B184: MKY12ZM/A | C184: SILICONE CASE WHT ZML IPHONE 6S | D184: Silicone Case | E184: iPhone 6S | F184: Cases, Covers and Bands | G184: 10 | I184: =VLOOKUP(A184&"",'Material Master'!A:D,4,FALSE) -> #
A185: 11862821 | B185: MKXK2ZM/A | C185: SILICONE CASE WHT ZML IPHONE 6S PLUS | D185: Silicone Case | E185: iPhone 6S Plus | F185: Cases, Covers and Bands | G185: 10 | I185: =VLOOKUP(A185&"",'Material Master'!A:D,4,FALSE) -> #
A186: 12917806 | B186: MQGD2LL/A | C186: SIRI REM US 2017 | D186: Remote | E186: Apple TV | F186: Extras | G186: 10 | I186: =VLOOKUP(A186&"",'Material Master'!A:D,4,FALSE) -> #
A187: 12247508 | B187: MN002LL/A | C187: SMART BATT CASE BLK US IPHONE 7 | D187: Smart Battery Case | E187: iPhone 7 | F187: Cases, Covers and Bands | G187: 8 | I187: =VLOOKUP(A187&"",'Material Master'!A:D,4,FALSE) -> #
A188: 11978632 | B188: MGQL2LL/A | C188: SMART BATT CASE CHARCL GRY IPHONE 6S USA | D188: Smart Battery Case | E188: iPhone 6S | F188: Cases, Covers and Bands | G188: 6 | I188: =VLOOKUP(A188&"",'Material Master'!A:D,4,FALSE) -> #
A189: 11978633 | B189: MGQM2LL/A | C189: SMART BATT CASE WHT IPHONE 6S USA | D189: Smart Battery Case | E189: iPhone 6S | F189: Cases, Covers and Bands | G189: 6 | I189: =VLOOKUP(A189&"",'Material Master'!A:D,4,FALSE) -> #
A190: 12247509 | B190: MN012LL/A | C190: SMART BATT CASE WHT US IPHONE 7 | D190: Smart Battery Case | E190: iPhone 7 | F190: Cases, Covers and Bands | G190: 8 | I190: =VLOOKUP(A190&"",'Material Master'!A:D,4,FALSE) -> #
A191: 13478961 | B191: MU7P2ZM/A | C191: SMART COVER FOR 10.5IN IPAD PRO CHAR GRY | D191: Smart Cover | E191: iPad Pro 10.5 | F191: Cases, Covers and Bands | I191: =VLOOKUP(A191&"",'Material Master'!A:D,4,FALSE) -> #
A192: 13478916 | B192: MU7R2ZM/A | C192: SMART COVER FOR 10.5IN IPAD PRO PINK | D192: Smart Cover | E192: iPad Pro 10.5 | F192: Cases, Covers and Bands | I192: =VLOOKUP(A192&"",'Material Master'!A:D,4,FALSE) -> #
A193: 13478962 | B193: MU7Q2ZM/A | C193: SMART COVER FOR 10.5IN IPAD PRO WHT | D193: Smart Cover | E193: iPad Pro 10.5 | F193: Cases, Covers and Bands | I193: =VLOOKUP(A193&"",'Material Master'!A:D,4,FALSE) -> #
A194: 12247455 | B194: MNN32ZM/A | C194: SMART COVER PINK SAND ZML IPAD MINI 4 | D194: Smart Cover | E194: iPad Mini 4 | F194: Cases, Covers and Bands | G194: 10 | I194: =VLOOKUP(A194&"",'Material Master'!A:D,4,FALSE) -> #
A195: 12247468 | B195: MN0A2ZM/A | C195: SMART COVER SEA BLUE ZML IPAD MINI 4 | D195: Smart Cover | E195: iPad Mini 4 | F195: Cases, Covers and Bands | G195: 10 | I195: =VLOOKUP(A195&"",'Material Master'!A:D,4,FALSE) -> 98
A196: 13478956 | B196: MRX72ZM/A | C196: SMART FOLIO FOR IPAD PRO 11IN CHAR GRY | D196: Smart Case | E196: iPad Pro 11 | F196: Cases, Covers and Bands | I196: =VLOOKUP(A196&"",'Material Master'!A:D,4,FALSE) -> #
A197: 13478958 | B197: MRX92ZM/A | C197: SMART FOLIO FOR IPAD PRO 11IN SOFT PINK | D197: Smart Case | E197: iPad Pro 11 | F197: Cases, Covers and Bands | I197: =VLOOKUP(A197&"",'Material Master'!A:D,4,FALSE) -> #
A198: 13478957 | B198: MRX82ZM/A | C198: SMART FOLIO FOR IPAD PRO 11IN WHT | D198: Smart Case | E198: iPad Pro 11 | F198: Cases, Covers and Bands | I198: =VLOOKUP(A198&"",'Material Master'!A:D,4,FALSE) -> #
A199: 13478959 | B199: MRXD2ZM/A | C199: SMART FOLIO FOR IPAD PRO 12.9IN 3RD GRY | D199: Smart Case | E199: iPad Pro 12.9 (2018) | F199: Cases, Covers and Bands | I199: =VLOOKUP(A199&"",'Material Master'!A:D,4,FALSE) -> #
A200: 13478960 | B200: MRXE2ZM/A | C200: SMART FOLIO FOR IPAD PRO 12.9IN 3RD WHT | D200: Smart Case | E200: iPad Pro 12.9 (2018) | F200: Cases, Covers and Bands | I200: =VLOOKUP(A200&"",'Material Master'!A:D,4,FALSE) -> #
... 20 more rows

Sheet Material Master (hidden)
F1: Gross weight
A2: Material | C2: Manufacturer Part Number | D2: Sales Block | E2: Local manufacturer | F2: KG
A3: 10046665 | B3: MAC PRO BOX ONLY CALL PM | C3: 602-6126 | D3: 98 | E3: APPLE CPU ACCESSORIES | F3: 0.01
A4: 10046666 | B4: MAC PRO CTO BOXES CALL PM | C4: 602-6222 | D4: 98 | E4: APPLE CPU ACCESSORIES | F4: 1
A5: 10046667 | B5: MAC PRO BOX ONLY MIN PURCH REQ 5 UNITS C | C5: 602-6653 | D5: 98 | E5: APPLE CPU ACCESSORIES | F5: 0.5
A6: 10046668 | B6: SNOW LEOPARD DROP IN CD | C6: 607-4868 | D6: 98 | E6: APPLE SOFTWARE | F6: 0.2
A7: 10046669 | B7: ILIFE DROP IN KIT | C7: 607-6818 | D7: 98 | E7: APPLE SOFTWARE | F7: 0.101
A8: 10046670 | B8: APPLE FAST SHIP 1 MAC | C8: APLFSHP?1 | D8: 98 | E8: APPLE CPU | F8: 10
A9: 10046671 | B9: APPLE FAST SHIP 1 IPAD | C9: APLFSHP?2 | D9: 98 | E9: APPLE IPAD/IPOD ACCESSORIES | F9: 10
A10: 10046672 | B10: APPLE FAST SHIP 1 IPOD | C10: APLFSHP?3 | D10: 98 | E10: APPLE IPOD | F10: 5
A11: 10046673 | B11: BTO SHAKE 4.1 | C11: BB339LL/A | D11: 98 | E11: APPLE CTO | F11: 12
A12: 10046674 | B12: MAC PRO 3YR APPLECARE PROTECT PLAN AUTO | C12: BB753LL/A | D12: 98 | E12: APPLE SVC & WARRANTY | F12: 0
A13: 10046675 | B13: BTO APPLE KYBD & MIGHTY MOUSE | C13: BC791LL/A | D13: 98 | E13: APPLE CTO | F13: 2
A14: 10046676 | B14: BTO FINAL CUT EXPRESS 4.0 | C14: BD173LL/A | D14: 98 | E14: APPLE CTO | F14: 0.01
A15: 10046677 | B15: BTO BDL FINAL CUT 4.0 EXPRESS | C15: BD174LL/A | D15: 98 | E15: APPLE CTO | F15: 0.01
A16: 10046678 | B16: 3YR APPLECARE PROTECTION PLAN MACPRO + A | C16: BD791LL/A | D16: 98 | E16: APPLE SVC & WARRANTY | F16: 0.5
A17: 10046679 | B17: AUTOENROLL-MAC PRO/W DISP 3YR APPLECARE | C17: BD791LL/A?H | D17: 98 | E17: APPLE SVC & WARRANTY | F17: 0.1
A18: 10046680 | B18: AUTO ENROLL-MAC MINI 3YR APPLECARE PROTE | C18: BD793LL/A | D18: 98 | E18: APPLE SVC & WARRANTY | F18: 0.1
A19: 10046681 | B19: BTO BDL APERTURE 2.0 VAR-USA | C19: BE106LL/A | D19: 98 | E19: APPLE CTO | F19: 17
A20: 10046682 | B20: BTO BDL APERTURE 2.0 VAR UPG - USA | C20: BE107LL/A | D20: 98 | E20: APPLE CTO | F20: 0.5
A21: 10046683 | B21: BTO BDL FINAL CUT STUDIO UPG VAR | C21: BF266LL/A | D21: 98 | E21: APPLE CTO | F21: 2
A22: 10046684 | B22: BTO BDL LOGIC STUDIO UPG LE VAR | C22: BF271LL/A | D22: 98 | E22: APPLE CTO | F22: 1.55
A23: 10046685 | B23: BTO BDL FINAL CUT SVR SL/UC VAR | C23: BF272LL/A | D23: 98 | E23: APPLE CTO | F23: 2
A24: 10046686 | B24: BTO BDL FINAL CUT SVR UPG VAR | C24: BF273LL/A | D24: 98 | E24: APPLE CTO | F24: 2
A25: 10046687 | B25: BTO BDL APERTURE VAR-USA | C25: BF579LL/A | D25: 98 | E25: APPLE CTO | F25: 17
A26: 10046688 | B26: BTO BDL APERTURE VAR-USA | C26: BF580LL/A | D26: 98 | E26: APPLE CTO | F26: 17
A27: 10046689 | B27: OS X SERVER S/W SUP ALLIANCE | C27: D2563LL/D | D27: 98 | E27: APPLE SOFTWARE | F27: 0.01
A28: 10046690 | B28: MAC OSX SVR S/W SUP PREFERRED | C28: D2652LL/D | D28: 98 | E28: APPLE SOFTWARE | F28: 0.4
A29: 10046691 | B29: APPLECARE OS SUP PREFERRED | C29: D5690ZM/A | D29: # | E29: APPLE SOFTWARE | F29: 0.01
A30: 10046692 | B30: APPLECARE OS SUP ALLIANCE | C30: D5691ZM/A | D30: # | E30: APPLE SOFTWARE | F30: 1
A31: 10046693 | B31: APPLECARE OS SUP ALLIANCE 3YR SQUARE I U | C31: D5693ZM/A | D31: 98 | E31: APPLE SOFTWARE | F31: 1
A32: 10046694 | B32: PROMISE SMARTSTOR DS4600 4X2TB RAID FWIR | C32: H1106VC/A | D32: 98 | E32: APPLE CTO | F32: 5.5
A33: 10046695 | B33: PROMISE 2TB SATA DR MOD | C33: H1143LL/A | D33: 98 | E33: APPLE CTO | F33: 85
A34: 10046696 | B34: PROMISE VTRAK X30 16TB 8X2TB SATA 3U RAI | C34: H4945LL/A | D34: 98 | E34: APPLE CPU ACCESSORIES | F34: 90
A35: 10046697 | B35: PROMISE VTRAK X30 SERIES 32TB SATA 3U RA | C35: H4946LL/A | D35: 98 | E35: APPLE CPU ACCESSORIES | F35: 99.23
A36: 10046698 | B36: PROMISE VTRAK X30 SERIES 48TB SATA 4U RA | C36: H4947LL/A | D36: 98 | E36: APPLE CPU ACCESSORIES | F36: 121.05
A37: 10046699 | B37: PROMISE VTRAK X30 32TB 16X2TB SATA 3U EX | C37: H4948LL/A | D37: 98 | E37: APPLE CPU ACCESSORIES | F37: 60
A38: 10046700 | B38: PROMISE VTRAK X30 3U RAID SUBSYS SVC PAR | C38: H4949LL/A | D38: 98 | E38: APPLE CPU ACCESSORIES | F38: 16.1
A39: 10046701 | B39: PROMISE VTRAK X30 4U RAID SUBSYS SVC PAR | C39: H4950LL/A | D39: 98 | E39: APPLE CPU ACCESSORIES | F39: 16.3
A40: 10046702 | B40: PROMISE VTRAK X30 3U EXP CHAS SVC PARTS | C40: H4951LL/A | D40: 98 | E40: APPLE CPU ACCESSORIES | F40: 60
A41: 10046703 | B41: PROMISE VTRAK X30 2TB SATA DR MOD | C41: H4952LL/A | D41: 98 | E41: APPLE CPU ACCESSORIES | F41: 2.7
A42: 10046704 | B42: PROMISE PEGASUS R4 4TB RAID SYS | C42: H5184VC/A | D42: 98 | E42: APPLE CPU ACCESSORIES | F42: 19.8
A43: 10046705 | B43: PROMISE PEGASUS R4 8TB RAID SYS | C43: H5185VC/A | D43: 98 | E43: APPLE CPU ACCESSORIES | F43: 19.2
A44: 10046706 | B44: PROMISE PEGASUS R6 6TB RAID SYS | C44: H5186VC/A | D44: 98 | E44: APPLE CPU ACCESSORIES | F44: 23.8
A45: 10046707 | B45: PROMISE PEGASUS R6 12TB RAID SYS | C45: H5187VC/A | D45: 98 | E45: APPLE CPU ACCESSORIES | F45: 25
A46: 10046708 | B46: BTO MACBOOK PRO C2D/2.4 13 4GB 256GB | C46: M2-3140 | D46: 98 | E46: APPLE CTO | F46: 10
A47: 10046709 | B47: BTO MAC PRO QC X/2.26 6GB 2TB | C47: M2-3287 | D47: 98 | E47: APPLE CTO SYSTEMS | F47: 65
A48: 10046710 | B48: BTO XSERVE QC X/2.26 12GB 3X1TB | C48: M2-3412 | D48: 98 | E48: APPLE CTO | F48: 65
A49: 10046711 | B49: APLCTX DUMMY | C49: M2-3433 | D49: 98 | E49: APPLE IPHONE US | F49: 0.01
A50: 10046712 | B50: APLCTX DUMMY | C50: M2-3434 | D50: 98 | E50: APPLE IPHONE US | F50: 0.01
A51: 10046713 | B51: APLCTX DUMMY | C51: M2-3435 | D51: 98 | E51: APPLE IPHONE US | F51: 0.01
A52: 10046714 | B52: APLCTX DUMMY | C52: M2-3436 | D52: 98 | E52: APPLE IPHONE US | F52: 0.01
A53: 10046715 | B53: APLCTX DUMMY | C53: M2-3437 | D53: 98 | E53: APPLE IPHONE US | F53: 0.01
A54: 10046716 | B54: APLCTX DUMMY | C54: M2-3438 | D54: 98 | E54: APPLE IPHONE US | F54: 0.01
A55: 10046717 | B55: APLCTX DUMMY | C55: M2-3439 | D55: 98 | E55: APPLE IPHONE US | F55: 0.01
A56: 10046718 | B56: APLCTX DUMMY | C56: M2-3440 | D56: 98 | E56: APPLE IPHONE US | F56: 0.01
A57: 10046719 | B57: APLCTX DUMMY | C57: M2-3441 | D57: 98 | E57: APPLE IPHONE US | F57: 0.01
A58: 10046720 | B58: APLCTX DUMMY | C58: M2-3442 | D58: 98 | E58: APPLE IPHONE US | F58: 0.01
A59: 10046721 | B59: APLCTX DUMMY | C59: M2-3443 | D59: 98 | E59: APPLE IPHONE US | F59: 0.01
A60: 10046722 | B60: APLCTX DUMMY | C60: M2-3444 | D60: 98 | E60: APPLE IPHONE US | F60: 0.01
A61: 10046723 | B61: APLCTX DUMMY | C61: M2-3445 | D61: 98 | E61: APPLE IPHONE US | F61: 0.01
A62: 10046724 | B62: APLCTX DUMMY | C62: M2-3446 | D62: 98 | E62: APPLE IPHONE US | F62: 0.01
A63: 10046725 | B63: APLCTX DUMMY | C63: M2-3447 | D63: 98 | E63: APPLE IPHONE US | F63: 0.01
A64: 10046726 | B64: APLCTX DUMMY | C64: M2-3448 | D64: 98 | E64: APPLE IPHONE US | F64: 0.01
A65: 10046727 | B65: APLCTX DUMMY | C65: M2-3449 | D65: 98 | E65: APPLE IPHONE US | F65: 0.01
A66: 10046728 | B66: APLCTX DUMMY | C66: M2-3450 | D66: 98 | E66: APPLE IPHONE US | F66: 0.01
A67: 10046729 | B67: APLCTX DUMMY | C67: M2-3451 | D67: 98 | E67: APPLE IPHONE US | F67: 0.01
A68: 10046730 | B68: APLCTX DUMMY | C68: M2-3452 | D68: 98 | E68: APPLE IPHONE US | F68: 0.01
A69: 10046731 | B69: APLCTX DUMMY | C69: M2-3453 | D69: 98 | E69: APPLE IPHONE US | F69: 0.01
A70: 10046732 | B70: APLCTX DUMMY | C70: M2-3454 | D70: 98 | E70: APPLE IPHONE US | F70: 0.01
A71: 10046733 | B71: APLCTX DUMMY | C71: M2-3455 | D71: 98 | E71: APPLE IPHONE US | F71: 0.01
A72: 10046734 | B72: APLCTX DUMMY | C72: M2-3456 | D72: 98 | E72: APPLE IPHONE US | F72: 0.01
A73: 10046735 | B73: APLCTX DUMMY | C73: M2-3457 | D73: 98 | E73: APPLE IPHONE US | F73: 0.01
A74: 10046736 | B74: APLCTX DUMMY | C74: M2-3458 | D74: 98 | E74: APPLE IPHONE US | F74: 0.01
A75: 10046737 | B75: APLCTX DUMMY | C75: M2-3459 | D75: 98 | E75: APPLE IPHONE US | F75: 0.01
A76: 10046738 | B76: APLCTX DUMMY | C76: M2-3460 | D76: 98 | E76: APPLE IPHONE US | F76: 0.01
A77: 10046739 | B77: APLCTX DUMMY | C77: M2-3461 | D77: 98 | E77: APPLE IPHONE US | F77: 0.01
A78: 10046740 | B78: APLCTX DUMMY | C78: M2-3462 | D78: 98 | E78: APPLE IPHONE US | F78: 0.01
A79: 10046741 | B79: APLCTX DUMMY | C79: M2-3463 | D79: 98 | E79: APPLE IPHONE US | F79: 0.01
A80: 10046742 | B80: APLCTX DUMMY | C80: M2-3464 | D80: 98 | E80: APPLE IPHONE US | F80: 0.01
A81: 10046743 | B81: APLCTX DUMMY | C81: M2-3465 | D81: 98 | E81: APPLE IPHONE US | F81: 0.01
A82: 10046744 | B82: APLCTX DUMMY | C82: M2-3466 | D82: 98 | E82: APPLE IPHONE US | F82: 0.01
A83: 10046745 | B83: APLCTX DUMMY | C83: M2-3467 | D83: 98 | E83: APPLE IPHONE US | F83: 0.01
A84: 10046746 | B84: APLCTX DUMMY | C84: M2-3468 | D84: 98 | E84: APPLE IPHONE US | F84: 0.01
A85: 10046747 | B85: APLCTX DUMMY | C85: M2-3469 | D85: 98 | E85: APPLE IPHONE US | F85: 0.01
A86: 10046748 | B86: APLCTX DUMMY | C86: M2-3470 | D86: 98 | E86: APPLE IPHONE US | F86: 0.01
A87: 10046749 | B87: APLCTX DUMMY | C87: M2-3471 | D87: 98 | E87: APPLE IPHONE US | F87: 0.01
A88: 10046750 | B88: APLCTX DUMMY | C88: M2-3472 | D88: 98 | E88: APPLE IPHONE US | F88: 0.01
A89: 10046751 | B89: APLCTX DUMMY | C89: M2-3473 | D89: 98 | E89: APPLE IPHONE US | F89: 0.01
A90: 10046752 | B90: APLCTX DUMMY | C90: M2-3474 | D90: 98 | E90: APPLE IPHONE US | F90: 0.01
A91: 10046753 | B91: APLCTX DUMMY | C91: M2-3475 | D91: 98 | E91: APPLE IPHONE US | F91: 0.01
A92: 10046754 | B92: APLCTX DUMMY | C92: M2-3476 | D92: 98 | E92: APPLE IPHONE US | F92: 0.01
A93: 10046755 | B93: APLCTX DUMMY | C93: M2-3477 | D93: 98 | E93: APPLE IPHONE US | F93: 0.01
A94: 10046756 | B94: APLCTX DUMMY | C94: M2-3478 | D94: 98 | E94: APPLE IPHONE US | F94: 0.01
A95: 10046757 | B95: APLCTX DUMMY | C95: M2-3479 | D95: 98 | E95: APPLE IPHONE US | F95: 0.01
A96: 10046758 | B96: APLCTX DUMMY | C96: M2-3480 | D96: 98 | E96: APPLE IPHONE US | F96: 0.01
A97: 10046759 | B97: APLCTX DUMMY | C97: M2-3481 | D97: 98 | E97: APPLE IPHONE US | F97: 0.01
A98: 10046760 | B98: APLCTX DUMMY | C98: M2-3482 | D98: 98 | E98: APPLE IPHONE US | F98: 0.01
A99: 10046761 | B99: APLCTX DUMMY | C99: M2-3483 | D99: 98 | E99: APPLE IPHONE US | F99: 0.01
A100: 10046762 | B100: APLCTX DUMMY | C100: M2-3484 | D100: 98 | E100: APPLE IPHONE US | F100: 0.01
A101: 10046763 | B101: APLCTX DUMMY | C101: M2-3485 | D101: 98 | E101: APPLE IPHONE US | F101: 0.01
A102: 10046764 | B102: APLCTX DUMMY | C102: M2-3486 | D102: 98 | E102: APPLE IPHONE US | F102: 0.01
A103: 10046765 | B103: APLCTX DUMMY | C103: M2-3487 | D103: 98 | E103: APPLE IPHONE US | F103: 0.01
A104: 10046766 | B104: APLCTX DUMMY | C104: M2-3488 | D104: 98 | E104: APPLE IPHONE US | F104: 0.01
A105: 10046767 | B105: APLCTX DUMMY | C105: M2-3489 | D105: 98 | E105: APPLE IPHONE US | F105: 0.01
A106: 10046768 | B106: APLCTX DUMMY | C106: M2-3490 | D106: 98 | E106: APPLE IPHONE US | F106: 0.01
A107: 10046769 | B107: APLCTX DUMMY | C107: M2-3491 | D107: 98 | E107: APPLE IPHONE US | F107: 0.01
A108: 10046770 | B108: APLCTX DUMMY | C108: M2-3492 | D108: 98 | E108: APPLE IPHONE US | F108: 0.01
A109: 10046771 | B109: APLCTX DUMMY | C109: M2-3493 | D109: 98 | E109: APPLE IPHONE US | F109: 0.01
A110: 10046772 | B110: APLCTX DUMMY | C110: M2-3494 | D110: 98 | E110: APPLE IPHONE US | F110: 0.01
A111: 10046773 | B111: APLCTX DUMMY | C111: M2-3495 | D111: 98 | E111: APPLE IPHONE US | F111: 0.01
A112: 10046774 | B112: APLCTX DUMMY | C112: M2-3496 | D112: 98 | E112: APPLE IPHONE US | F112: 0.01
A113: 10046775 | B113: APLCTX DUMMY | C113: M2-3497 | D113: 98 | E113: APPLE IPHONE US | F113: 0.01
A114: 10046776 | B114: APLCTX DUMMY | C114: M2-3498 | D114: 98 | E114: APPLE IPHONE US | F114: 0.01
A115: 10046777 | B115: APLCTX DUMMY | C115: M2-3499 | D115: 98 | E115: APPLE IPHONE US | F115: 0.01
A116: 10046778 | B116: BTO MACBOOK PRO CI5/2.53 17 8GB 500GB | C116: M2-3556 | D116: 98 | E116: APPLE CTO | F116: 10
A117: 10046779 | B117: BTO MACBOOK PRO CI7/2.66 17 4GB 500GB | C117: M2-3557 | D117: 98 | E117: APPLE CTO | F117: 10
A118: 10046780 | B118: BTO MACBOOK PRO CI7/2.53 17 4GB 500GB | C118: M2-3589 | D118: 98 | E118: APPLE CTO | F118: 10
A119: 10046781 | B119: BTO MACBOOK PRO CI7/2.4 15 4GB 500GB | C119: M2-3590 | D119: 98 | E119: APPLE CTO | F119: 10
A120: 10046782 | B120: APLCTO DUMMY | C120: M2-3599 | D120: 98 | E120: APPLE CTO SYSTEMS | F120: 0.01
A121: 10046783 | B121: APLCTO DUMMY | C121: M2-3600 | D121: 98 | E121: APPLE CTO SYSTEMS | F121: 0.01
A122: 10046784 | B122: APLCTO DUMMY | C122: M2-3601 | D122: 98 | E122: APPLE CTO SYSTEMS | F122: 0.01
A123: 10046785 | B123: APLCTO DUMMY | C123: M2-3602 | D123: 98 | E123: APPLE CTO SYSTEMS | F123: 0.01
A124: 10046786 | B124: APLCTO DUMMY | C124: M2-3603 | D124: 98 | E124: APPLE CTO SYSTEMS | F124: 0.01
A125: 10046787 | B125: APLCTO DUMMY | C125: M2-3604 | D125: 98 | E125: APPLE CTO SYSTEMS | F125: 0.01
A126: 10046788 | B126: APLCTO DUMMY | C126: M2-3605 | D126: 98 | E126: APPLE CTO SYSTEMS | F126: 0.01
A127: 10046789 | B127: APLCTO DUMMY | C127: M2-3606 | D127: 98 | E127: APPLE CTO SYSTEMS | F127: 0.01
A128: 10046790 | B128: APLCTO DUMMY | C128: M2-3607 | D128: 98 | E128: APPLE CTO SYSTEMS | F128: 0.01
A129: 10046791 | B129: APLCTO DUMMY | C129: M2-3608 | D129: 98 | E129: APPLE CTO SYSTEMS | F129: 0.01
A130: 10046792 | B130: APLCTO DUMMY | C130: M2-3609 | D130: 98 | E130: APPLE CTO SYSTEMS | F130: 0.01
A131: 10046793 | B131: APLCTO DUMMY | C131: M2-3610 | D131: 98 | E131: APPLE CTO SYSTEMS | F131: 0.01
A132: 10046794 | B132: APLCTO DUMMY | C132: M2-3611 | D132: 98 | E132: APPLE CTO SYSTEMS | F132: 0.01
A133: 10046795 | B133: APLCTO DUMMY | C133: M2-3612 | D133: 98 | E133: APPLE CTO SYSTEMS | F133: 0.01
A134: 10046796 | B134: APLCTO DUMMY | C134: M2-3613 | D134: 98 | E134: APPLE CTO SYSTEMS | F134: 0.01
A135: 10046797 | B135: APLCTO DUMMY | C135: M2-3614 | D135: 98 | E135: APPLE CTO SYSTEMS | F135: 0.01
A136: 10046798 | B136: APLCTO DUMMY | C136: M2-3615 | D136: 98 | E136: APPLE CTO SYSTEMS | F136: 0.01
A137: 10046799 | B137: APLCTO DUMMY | C137: M2-3616 | D137: 98 | E137: APPLE CTO SYSTEMS | F137: 0.01
A138: 10046800 | B138: APLCTO DUMMY | C138: M2-3617 | D138: 98 | E138: APPLE CTO SYSTEMS | F138: 0.01
A139: 10046801 | B139: APLCTO DUMMY | C139: M2-3618 | D139: 98 | E139: APPLE CTO SYSTEMS | F139: 0.01
A140: 10046802 | B140: APLCTO DUMMY | C140: M2-3619 | D140: 98 | E140: APPLE CTO SYSTEMS | F140: 0.01
A141: 10046803 | B141: APLCTO DUMMY | C141: M2-3620 | D141: 98 | E141: APPLE CTO SYSTEMS | F141: 0.01
A142: 10046804 | B142: APLCTO DUMMY | C142: M2-3621 | D142: 98 | E142: APPLE CTO SYSTEMS | F142: 0.01
A143: 10046805 | B143: APLCTO DUMMY | C143: M2-3622 | D143: 98 | E143: APPLE CTO SYSTEMS | F143: 0.01
A144: 10046806 | B144: APLCTO DUMMY | C144: M2-3623 | D144: 98 | E144: APPLE CTO SYSTEMS | F144: 0.01
A145: 10046807 | B145: APLCTO DUMMY | C145: M2-3624 | D145: 98 | E145: APPLE CTO SYSTEMS | F145: 0.01
A146: 10046808 | B146: APLCTO DUMMY | C146: M2-3625 | D146: 98 | E146: APPLE CTO SYSTEMS | F146: 0.01
A147: 10046809 | B147: APLCTO DUMMY | C147: M2-3626 | D147: 98 | E147: APPLE CTO SYSTEMS | F147: 0.01
A148: 10046810 | B148: APLCTO DUMMY | C148: M2-3627 | D148: 98 | E148: APPLE CTO SYSTEMS | F148: 0.01
A149: 10046811 | B149: APLCTO DUMMY | C149: M2-3628 | D149: 98 | E149: APPLE CTO SYSTEMS | F149: 0.01
A150: 10046812 | B150: APLCTO DUMMY | C150: M2-3629 | D150: 98 | E150: APPLE CTO SYSTEMS | F150: 0.01
A151: 10046813 | B151: APLCTO DUMMY | C151: M2-3630 | D151: 98 | E151: APPLE CTO SYSTEMS | F151: 0.01
A152: 10046814 | B152: APLCTO DUMMY | C152: M2-3631 | D152: 98 | E152: APPLE CTO SYSTEMS | F152: 0.01
A153: 10046815 | B153: APLCTO DUMMY | C153: M2-3632 | D153: 98 | E153: APPLE CTO SYSTEMS | F153: 0.01
A154: 10046816 | B154: APLCTO DUMMY | C154: M2-3633 | D154: 98 | E154: APPLE CTO SYSTEMS | F154: 0.01
A155: 10046817 | B155: APLCTO DUMMY | C155: M2-3634 | D155: 98 | E155: APPLE CTO SYSTEMS | F155: 0.01
A156: 10046818 | B156: APLCTO DUMMY | C156: M2-3635 | D156: 98 | E156: APPLE CTO SYSTEMS | F156: 0.01
A157: 10046819 | B157: APLCTO DUMMY | C157: M2-3636 | D157: 98 | E157: APPLE CTO SYSTEMS | F157: 0.01
A158: 10046820 | B158: APLCTO DUMMY | C158: M2-3637 | D158: 98 | E158: APPLE CTO SYSTEMS | F158: 0.01
A159: 10046821 | B159: APLCTO DUMMY | C159: M2-3638 | D159: 98 | E159: APPLE CTO SYSTEMS | F159: 0.01
A160: 10046822 | B160: APLCTO DUMMY | C160: M2-3639 | D160: 98 | E160: APPLE CTO SYSTEMS | F160: 0.01
A161: 10046823 | B161: APLCTO DUMMY | C161: M2-3640 | D161: 98 | E161: APPLE CTO SYSTEMS | F161: 0.01
A162: 10046824 | B162: APLCTO DUMMY | C162: M2-3641 | D162: 98 | E162: APPLE CTO SYSTEMS | F162: 0.01
A163: 10046825 | B163: APLCTO DUMMY | C163: M2-3642 | D163: 98 | E163: APPLE CTO SYSTEMS | F163: 0.01
A164: 10046826 | B164: APLCTO DUMMY | C164: M2-3643 | D164: 98 | E164: APPLE CTO SYSTEMS | F164: 0.01
A165: 10046827 | B165: APLCTO DUMMY | C165: M2-3644 | D165: 98 | E165: APPLE CTO SYSTEMS | F165: 0.01
A166: 10046828 | B166: APLCTO DUMMY | C166: M2-3645 | D166: 98 | E166: APPLE CTO SYSTEMS | F166: 0.01
A167: 10046829 | B167: APLCTO DUMMY | C167: M2-3646 | D167: 98 | E167: APPLE CTO SYSTEMS | F167: 0.01
A168: 10046830 | B168: APLCTO DUMMY | C168: M2-3647 | D168: 98 | E168: APPLE CTO SYSTEMS | F168: 0.01
A169: 10046831 | B169: APLCTO DUMMY | C169: M2-3648 | D169: 98 | E169: APPLE CTO SYSTEMS | F169: 0.01
A170: 10046832 | B170: APLCTO DUMMY | C170: M2-3649 | D170: 98 | E170: APPLE CTO SYSTEMS | F170: 0.01
A171: 10046833 | B171: APLCTO DUMMY | C171: M2-3650 | D171: 98 | E171: APPLE CTO SYSTEMS | F171: 0.01
A172: 10046834 | B172: APLCTO DUMMY | C172: M2-3651 | D172: 98 | E172: APPLE CTO SYSTEMS | F172: 0.01
A173: 10046835 | B173: APLCTO DUMMY | C173: M2-3652 | D173: 98 | E173: APPLE CTO SYSTEMS | F173: 0.01
A174: 10046836 | B174: APLCTO DUMMY | C174: M2-3653 | D174: 98 | E174: APPLE CTO SYSTEMS | F174: 0.01
A175: 10046837 | B175: APLCTO DUMMY | C175: M2-3654 | D175: 98 | E175: APPLE CTO SYSTEMS | F175: 0.01
A176: 10046838 | B176: APLCTO DUMMY | C176: M2-3655 | D176: 98 | E176: APPLE CTO SYSTEMS | F176: 0.01
A177: 10046839 | B177: APLCTO DUMMY | C177: M2-3656 | D177: 98 | E177: APPLE CTO SYSTEMS | F177: 0.01
A178: 10046840 | B178: APLCTO DUMMY | C178: M2-3657 | D178: 98 | E178: APPLE CTO SYSTEMS | F178: 0.01
A179: 10046841 | B179: APLCTO DUMMY | C179: M2-3658 | D179: 98 | E179: APPLE CTO SYSTEMS | F179: 0.01
A180: 10046842 | B180: APLCTO DUMMY | C180: M2-3659 | D180: 98 | E180: APPLE CTO SYSTEMS | F180: 0.01
A181: 10046843 | B181: APLCTO DUMMY | C181: M2-3660 | D181: 98 | E181: APPLE CTO SYSTEMS | F181: 0.01
A182: 10046844 | B182: APLCTO DUMMY | C182: M2-3661 | D182: 98 | E182: APPLE CTO SYSTEMS | F182: 0.01
A183: 10046845 | B183: APLCTO DUMMY | C183: M2-3662 | D183: 98 | E183: APPLE CTO SYSTEMS | F183: 0.01
A184: 10046846 | B184: APLCTO DUMMY | C184: M2-3663 | D184: 98 | E184: APPLE CTO SYSTEMS | F184: 0.01
A185: 10046847 | B185: APLCTO DUMMY | C185: M2-3664 | D185: 98 | E185: APPLE CTO SYSTEMS | F185: 0.01
A186: 10046848 | B186: APLCTO DUMMY | C186: M2-3665 | D186: 98 | E186: APPLE CTO SYSTEMS | F186: 0.01
A187: 10046849 | B187: APLCTO DUMMY | C187: M2-3666 | D187: 98 | E187: APPLE CTO SYSTEMS | F187: 0.01
A188: 10046850 | B188: APLCTO DUMMY | C188: M2-3667 | D188: 98 | E188: APPLE CTO SYSTEMS | F188: 0.01
A189: 10046851 | B189: APLCTO DUMMY | C189: M2-3668 | D189: 98 | E189: APPLE CTO SYSTEMS | F189: 0.01
A190: 10046852 | B190: APLCTO DUMMY | C190: M2-3669 | D190: 98 | E190: APPLE CTO SYSTEMS | F190: 0.01
A191: 10046853 | B191: APLCTO DUMMY | C191: M2-3670 | D191: 98 | E191: APPLE CTO SYSTEMS | F191: 0.01
A192: 10046854 | B192: APLCTO DUMMY | C192: M2-3671 | D192: 98 | E192: APPLE CTO SYSTEMS | F192: 0.01
A193: 10046855 | B193: APLCTO DUMMY | C193: M2-3672 | D193: 98 | E193: APPLE CTO SYSTEMS | F193: 0.01
A194: 10046856 | B194: APLCTO DUMMY | C194: M2-3673 | D194: 98 | E194: APPLE CTO SYSTEMS | F194: 0.01
A195: 10046857 | B195: APLCTO DUMMY | C195: M2-3674 | D195: 98 | E195: APPLE CTO SYSTEMS | F195: 0.01
A196: 10046858 | B196: APLCTO DUMMY | C196: M2-3675 | D196: 98 | E196: APPLE CTO SYSTEMS | F196: 0.01
A197: 10046859 | B197: APLCTO DUMMY | C197: M2-3676 | D197: 98 | E197: APPLE CTO SYSTEMS | F197: 0.01
A198: 10046860 | B198: APLCTO DUMMY | C198: M2-3677 | D198: 98 | E198: APPLE CTO SYSTEMS | F198: 0.01
A199: 10046861 | B199: APLCTO DUMMY | C199: M2-3678 | D199: 98 | E199: APPLE CTO SYSTEMS | F199: 0.01
A200: 10046862 | B200: APLCTO DUMMY | C200: M2-3679 | D200: 98 | E200: APPLE CTO SYSTEMS | F200: 0.01
... 13599 more rows
